Body Name,Body,Service Label,Service Code,CIPFA Detailed Expenditure Type,CIPFA Detailed Expenditure Code,Date,Transaction Number,Net Amount,Supplier Name
Nottinghamshire County Council,1111/1001,Surplus or Deficit from Trading Undertak,TRADING,#N/A,#N/A,02/03/2017,12-10001,802.52,Staedtler Uk Ltd
Nottinghamshire County Council,1111/1001,Surplus or Deficit from Trading Undertak,TRADING,#N/A,#N/A,02/03/2017,12-10001,632.52,Bic Uk Ltd
Nottinghamshire County Council,1111/1001,Surplus or Deficit from Trading Undertak,TRADING,#N/A,#N/A,02/03/2017,12-10001,2138.45,Office Innovations
Nottinghamshire County Council,1111/1001,Surplus or Deficit from Trading Undertak,TRADING,#N/A,#N/A,02/03/2017,12-10001,783.81,Office Innovations
Nottinghamshire County Council,1111/1001,Surplus or Deficit from Trading Undertak,TRADING,#N/A,#N/A,02/03/2017,12-10001,549,Bunzl Retail & Healthcare Supp Ltd
Nottinghamshire County Council,1111/1001,Surplus or Deficit from Trading Undertak,TRADING,#N/A,#N/A,02/03/2017,12-10001,744,Office Update Ltd
Nottinghamshire County Council,1111/1001,Surplus or Deficit from Trading Undertak,TRADING,#N/A,#N/A,02/03/2017,12-10001,636.6,North West Tea Service Ltd
Nottinghamshire County Council,1111/1001,Surplus or Deficit from Trading Undertak,TRADING,#N/A,#N/A,02/03/2017,12-10001,1790.7,Handset Solutions Ltd
Nottinghamshire County Council,1111/1001,Surplus or Deficit from Trading Undertak,TRADING,#N/A,#N/A,02/03/2017,12-10001,2489.41,James Briggs Holdingst/Apremier Pro
Nottinghamshire County Council,1111/1001,Surplus or Deficit from Trading Undertak,TRADING,#N/A,#N/A,06/03/2017,12-10001,2000.2,Scot Young Research Ltd
Nottinghamshire County Council,1111/1001,Surplus or Deficit from Trading Undertak,TRADING,#N/A,#N/A,06/03/2017,12-10001,1500,Advanced Educational Division
Nottinghamshire County Council,1111/1001,Surplus or Deficit from Trading Undertak,TRADING,#N/A,#N/A,06/03/2017,12-10001,1139.54,Sca Hygiene Products Uk Ltd
Nottinghamshire County Council,1111/1001,Surplus or Deficit from Trading Undertak,TRADING,#N/A,#N/A,06/03/2017,12-10001,2255.9,Office Innovations
Nottinghamshire County Council,1111/1001,Surplus or Deficit from Trading Undertak,TRADING,#N/A,#N/A,06/03/2017,12-10001,852.54,Magiboards Ltd
Nottinghamshire County Council,1111/1001,Surplus or Deficit from Trading Undertak,TRADING,#N/A,#N/A,07/03/2017,12-10001,16832,Martek Marine Ltd T/A Martek Lifeca
Nottinghamshire County Council,1111/1001,Surplus or Deficit from Trading Undertak,TRADING,#N/A,#N/A,08/03/2017,12-10001,725.19,Arco Ltd
Nottinghamshire County Council,1111/1001,Surplus or Deficit from Trading Undertak,TRADING,#N/A,#N/A,08/03/2017,12-10001,1571.6,Antalis Ltd
Nottinghamshire County Council,1111/1001,Surplus or Deficit from Trading Undertak,TRADING,#N/A,#N/A,08/03/2017,12-10001,535.65,Allen Glenold Ltd
Nottinghamshire County Council,1111/1001,Surplus or Deficit from Trading Undertak,TRADING,#N/A,#N/A,08/03/2017,12-10001,665.64,Profile Education Ltd
Nottinghamshire County Council,1111/1001,Surplus or Deficit from Trading Undertak,TRADING,#N/A,#N/A,08/03/2017,12-10001,906.8,Brian Clegg (Educational Products)
Nottinghamshire County Council,1111/1001,Surplus or Deficit from Trading Undertak,TRADING,#N/A,#N/A,08/03/2017,12-10001,526.5,Vivid Laminating Technologies Ltd
Nottinghamshire County Council,1111/1001,Surplus or Deficit from Trading Undertak,TRADING,#N/A,#N/A,08/03/2017,12-10001,501.74,Snopake Ltd
Nottinghamshire County Council,1111/1001,Surplus or Deficit from Trading Undertak,TRADING,#N/A,#N/A,08/03/2017,12-10001,1641.6,Office Update Ltd
Nottinghamshire County Council,1111/1001,Surplus or Deficit from Trading Undertak,TRADING,#N/A,#N/A,08/03/2017,12-10001,504.98,Plastoreg Smidt Gmbh
Nottinghamshire County Council,1111/1001,Surplus or Deficit from Trading Undertak,TRADING,#N/A,#N/A,08/03/2017,12-10001,2681,Willowbrook Education Ltd
Nottinghamshire County Council,1111/1001,Surplus or Deficit from Trading Undertak,TRADING,#N/A,#N/A,10/03/2017,12-10001,556.16,Steroplast Healthcare Ltd
Nottinghamshire County Council,1111/1001,Surplus or Deficit from Trading Undertak,TRADING,#N/A,#N/A,10/03/2017,12-10001,617.8,Newclay Products Ltd
Nottinghamshire County Council,1111/1001,Surplus or Deficit from Trading Undertak,TRADING,#N/A,#N/A,10/03/2017,12-10001,578,Antalis Ltd
Nottinghamshire County Council,1111/1001,Surplus or Deficit from Trading Undertak,TRADING,#N/A,#N/A,10/03/2017,12-10001,1174.7,Staedtler Uk Ltd
Nottinghamshire County Council,1111/1001,Surplus or Deficit from Trading Undertak,TRADING,#N/A,#N/A,10/03/2017,12-10001,554.36,Bic Uk Ltd
Nottinghamshire County Council,1111/1001,Surplus or Deficit from Trading Undertak,TRADING,#N/A,#N/A,10/03/2017,12-10001,1635.96,Diversey
Nottinghamshire County Council,1111/1001,Surplus or Deficit from Trading Undertak,TRADING,#N/A,#N/A,10/03/2017,12-10001,823.16,Evans Vanodine International Ltd
Nottinghamshire County Council,1111/1001,Surplus or Deficit from Trading Undertak,TRADING,#N/A,#N/A,10/03/2017,12-10001,5899.3,Sca Hygiene Products Uk Ltd
Nottinghamshire County Council,1111/1001,Surplus or Deficit from Trading Undertak,TRADING,#N/A,#N/A,10/03/2017,12-10001,4096.56,Sca Hygiene Products Uk Ltd
Nottinghamshire County Council,1111/1001,Surplus or Deficit from Trading Undertak,TRADING,#N/A,#N/A,10/03/2017,12-10001,2274.58,Sca Hygiene Products Uk Ltd
Nottinghamshire County Council,1111/1001,Surplus or Deficit from Trading Undertak,TRADING,#N/A,#N/A,10/03/2017,12-10001,733.02,Slater Harrison & Company Ltd
Nottinghamshire County Council,1111/1001,Surplus or Deficit from Trading Undertak,TRADING,#N/A,#N/A,10/03/2017,12-10001,1605.01,Eastpoint
Nottinghamshire County Council,1111/1001,Surplus or Deficit from Trading Undertak,TRADING,#N/A,#N/A,10/03/2017,12-10001,608.48,Eastpoint
Nottinghamshire County Council,1111/1001,Surplus or Deficit from Trading Undertak,TRADING,#N/A,#N/A,10/03/2017,12-10001,583.56,Eastpoint
Nottinghamshire County Council,1111/1001,Surplus or Deficit from Trading Undertak,TRADING,#N/A,#N/A,10/03/2017,12-10001,648.3,Bunzl Retail & Healthcare Supp Ltd
Nottinghamshire County Council,1111/1001,Surplus or Deficit from Trading Undertak,TRADING,#N/A,#N/A,10/03/2017,12-10001,1905.7,Bunzl Cleaning & Hygiene Supplies
Nottinghamshire County Council,1111/1001,Surplus or Deficit from Trading Undertak,TRADING,#N/A,#N/A,10/03/2017,12-10001,1373.2,Kimberly Clark European Services Lt
Nottinghamshire County Council,1111/1001,Surplus or Deficit from Trading Undertak,TRADING,#N/A,#N/A,10/03/2017,12-10001,1069.2,Kimberly Clark European Services Lt
Nottinghamshire County Council,1111/1001,Surplus or Deficit from Trading Undertak,TRADING,#N/A,#N/A,10/03/2017,12-10001,983.7,Kent County Supplies
Nottinghamshire County Council,1111/1001,Surplus or Deficit from Trading Undertak,TRADING,#N/A,#N/A,14/03/2017,12-10001,1984.68,R H Ritchings Ltd
Nottinghamshire County Council,1111/1001,Surplus or Deficit from Trading Undertak,TRADING,#N/A,#N/A,14/03/2017,12-10001,2199.17,Higher Kings Mill Ltd
Nottinghamshire County Council,1111/1001,Surplus or Deficit from Trading Undertak,TRADING,#N/A,#N/A,14/03/2017,12-10001,759,Combined Office Interiors Ltd
Nottinghamshire County Council,1111/1001,Surplus or Deficit from Trading Undertak,TRADING,#N/A,#N/A,16/03/2017,12-10001,669.28,Numatic International Ltd
Nottinghamshire County Council,1111/1001,Surplus or Deficit from Trading Undertak,TRADING,#N/A,#N/A,16/03/2017,12-10001,989.82,Staedtler Uk Ltd
Nottinghamshire County Council,1111/1001,Surplus or Deficit from Trading Undertak,TRADING,#N/A,#N/A,16/03/2017,12-10001,1969,Diversey
Nottinghamshire County Council,1111/1001,Surplus or Deficit from Trading Undertak,TRADING,#N/A,#N/A,16/03/2017,12-10001,635.8,Henkel Ltd
Nottinghamshire County Council,1111/1001,Surplus or Deficit from Trading Undertak,TRADING,#N/A,#N/A,16/03/2017,12-10001,1425,Premier Paper Group Ltd
Nottinghamshire County Council,1111/1001,Surplus or Deficit from Trading Undertak,TRADING,#N/A,#N/A,16/03/2017,12-10001,1037.85,Hamelin Brands Ltd
Nottinghamshire County Council,1111/1001,Surplus or Deficit from Trading Undertak,TRADING,#N/A,#N/A,16/03/2017,12-10001,667.5,Dualit Ltd
Nottinghamshire County Council,1111/1001,Surplus or Deficit from Trading Undertak,TRADING,#N/A,#N/A,16/03/2017,12-10001,540.57,Complete Office Solutions (Uk) Ltd
Nottinghamshire County Council,1111/1001,Surplus or Deficit from Trading Undertak,TRADING,#N/A,#N/A,16/03/2017,12-10001,993.14,Complete Office Solutions (Uk) Ltd
Nottinghamshire County Council,1111/1001,Surplus or Deficit from Trading Undertak,TRADING,#N/A,#N/A,21/03/2017,12-10001,555.8,Robert Scott & Sons Ltd
Nottinghamshire County Council,1111/1001,Surplus or Deficit from Trading Undertak,TRADING,#N/A,#N/A,21/03/2017,12-10001,2540.65,Antalis Ltd
Nottinghamshire County Council,1111/1001,Surplus or Deficit from Trading Undertak,TRADING,#N/A,#N/A,21/03/2017,12-10001,2525.1,Antalis Ltd
Nottinghamshire County Council,1111/1001,Surplus or Deficit from Trading Undertak,TRADING,#N/A,#N/A,21/03/2017,12-10001,599.58,Diversey
Nottinghamshire County Council,1111/1001,Surplus or Deficit from Trading Undertak,TRADING,#N/A,#N/A,21/03/2017,12-10001,1740,Henkel Ltd
Nottinghamshire County Council,1111/1001,Surplus or Deficit from Trading Undertak,TRADING,#N/A,#N/A,21/03/2017,12-10001,805.5,Midland Wiper Mfg Company Ltd
Nottinghamshire County Council,1111/1001,Surplus or Deficit from Trading Undertak,TRADING,#N/A,#N/A,21/03/2017,12-10001,504.6,Banner Group Limited
Nottinghamshire County Council,1111/1001,Surplus or Deficit from Trading Undertak,TRADING,#N/A,#N/A,21/03/2017,12-10001,867,Principal Furniture
Nottinghamshire County Council,1111/1001,Surplus or Deficit from Trading Undertak,TRADING,#N/A,#N/A,21/03/2017,12-10001,1633.5,Principal Furniture
Nottinghamshire County Council,1111/1001,Surplus or Deficit from Trading Undertak,TRADING,#N/A,#N/A,21/03/2017,12-10001,1409.85,Principal Furniture
Nottinghamshire County Council,1111/1001,Surplus or Deficit from Trading Undertak,TRADING,#N/A,#N/A,21/03/2017,12-10001,908.23,Creativity International Ltd
Nottinghamshire County Council,1111/1001,Surplus or Deficit from Trading Undertak,TRADING,#N/A,#N/A,21/03/2017,12-10001,604.8,Polystar Plastics Ltd
Nottinghamshire County Council,1111/1001,Surplus or Deficit from Trading Undertak,TRADING,#N/A,#N/A,21/03/2017,12-10001,604.8,Polystar Plastics Ltd
Nottinghamshire County Council,1111/1001,Surplus or Deficit from Trading Undertak,TRADING,#N/A,#N/A,21/03/2017,12-10001,1469.2,Bunzl Retail & Healthcare Supp Ltd
Nottinghamshire County Council,1111/1001,Surplus or Deficit from Trading Undertak,TRADING,#N/A,#N/A,21/03/2017,12-10001,657.7,Kit For Kids Ltd
Nottinghamshire County Council,1111/1001,Surplus or Deficit from Trading Undertak,TRADING,#N/A,#N/A,21/03/2017,12-10001,1437.84,Kimberly Clark European Services Lt
Nottinghamshire County Council,1111/1001,Surplus or Deficit from Trading Undertak,TRADING,#N/A,#N/A,21/03/2017,12-10001,2530,Kent County Supplies
Nottinghamshire County Council,1111/1001,Surplus or Deficit from Trading Undertak,TRADING,#N/A,#N/A,21/03/2017,12-10001,5065.34,James Briggs Holdingst/Apremier Pro
Nottinghamshire County Council,1111/1001,Surplus or Deficit from Trading Undertak,TRADING,#N/A,#N/A,22/03/2017,12-10001,1023,Uk Electronics Ltd T/A H Squared
Nottinghamshire County Council,1111/1001,Surplus or Deficit from Trading Undertak,TRADING,#N/A,#N/A,22/03/2017,12-10001,739.62,Allen Glenold Ltd
Nottinghamshire County Council,1111/1001,Surplus or Deficit from Trading Undertak,TRADING,#N/A,#N/A,22/03/2017,12-10001,1120,Vita Cellular Foams (Uk) Ltd
Nottinghamshire County Council,1111/1001,Surplus or Deficit from Trading Undertak,TRADING,#N/A,#N/A,22/03/2017,12-10001,503.76,3M United Kingdom Plc
Nottinghamshire County Council,1111/1001,Surplus or Deficit from Trading Undertak,TRADING,#N/A,#N/A,22/03/2017,12-10001,16744,Grosvenor House Papers Ltd
Nottinghamshire County Council,1111/1001,Surplus or Deficit from Trading Undertak,TRADING,#N/A,#N/A,22/03/2017,12-10001,904,Grosvenor House Papers Ltd
Nottinghamshire County Council,1111/1001,Surplus or Deficit from Trading Undertak,TRADING,#N/A,#N/A,22/03/2017,12-10001,607.55,Slater Harrison & Company Ltd
Nottinghamshire County Council,1111/1001,Surplus or Deficit from Trading Undertak,TRADING,#N/A,#N/A,22/03/2017,12-10001,2577.54,Eastpoint
Nottinghamshire County Council,1111/1001,Surplus or Deficit from Trading Undertak,TRADING,#N/A,#N/A,24/03/2017,12-10001,2007.84,Numatic International Ltd
Nottinghamshire County Council,1111/1001,Surplus or Deficit from Trading Undertak,TRADING,#N/A,#N/A,24/03/2017,12-10001,669.2,Gopak Ltd
Nottinghamshire County Council,1111/1001,Surplus or Deficit from Trading Undertak,TRADING,#N/A,#N/A,24/03/2017,12-10001,571.9,Office Innovations
Nottinghamshire County Council,1111/1001,Surplus or Deficit from Trading Undertak,TRADING,#N/A,#N/A,24/03/2017,12-10001,1282.5,Office Innovations
Nottinghamshire County Council,1111/1001,Surplus or Deficit from Trading Undertak,TRADING,#N/A,#N/A,24/03/2017,12-10001,508.78,Creativity International Ltd
Nottinghamshire County Council,1111/1001,Surplus or Deficit from Trading Undertak,TRADING,#N/A,#N/A,24/03/2017,12-10001,610.58,Metroplan Ltd
Nottinghamshire County Council,1111/1001,Surplus or Deficit from Trading Undertak,TRADING,#N/A,#N/A,24/03/2017,12-10001,1109.4,Bunzl Cleaning & Hygiene Supplies
Nottinghamshire County Council,1111/1001,Surplus or Deficit from Trading Undertak,TRADING,#N/A,#N/A,24/03/2017,12-10001,939.12,Hille Educational Products Ltd
Nottinghamshire County Council,1111/1001,Surplus or Deficit from Trading Undertak,TRADING,#N/A,#N/A,24/03/2017,12-10001,876.67,Reliance Medical Ltd
Nottinghamshire County Council,1111/1001,Surplus or Deficit from Trading Undertak,TRADING,#N/A,#N/A,24/03/2017,12-10001,650,Spaceright Europe Ltd
Nottinghamshire County Council,1111/1001,Children and Young People,CYP,Employee Related,ABA,14/03/2017,12-16866,1500,We Love Learning Ltd
Nottinghamshire County Council,1111/1001,Children and Young People,CYP,Employee Related,ABA,15/03/2017,12-12378,895,[Redacted]
Nottinghamshire County Council,1111/1001,Children and Young People,CYP,Employee Related,ABA,20/03/2017,12-16987,500,Fountaindale Special School
Nottinghamshire County Council,1111/1001,Children and Young People,CYP,Employee Related,ABA,29/03/2017,12-17327,30000,"Culture, Learning & Libraries (Midl"
Nottinghamshire County Council,1111/1001,Children and Young People,CYP,Employee Related,ABA,31/03/2017,12-17395,600,Into The Forest
Nottinghamshire County Council,1111/1001,Children and Young People,CYP,Premises Related,BAA,13/03/2017,12-10260,10967.53,ARC Property Services Partnership L
Nottinghamshire County Council,1111/1001,Children and Young People,CYP,Premises Related,BAA,13/03/2017,12-10462,7503.59,ARC Property Services Partnership L
Nottinghamshire County Council,1111/1001,Children and Young People,CYP,Premises Related,BAA,13/03/2017,12-10468,2064.27,ARC Property Services Partnership L
Nottinghamshire County Council,1111/1001,Children and Young People,CYP,Premises Related,BAA,16/03/2017,12-12512,12527.28,ARC Property Services Partnership L
Nottinghamshire County Council,1111/1001,Children and Young People,CYP,Premises Related,BAA,27/03/2017,12-15999,4796,ARC Property Services Partnership L
Nottinghamshire County Council,1111/1001,Children and Young People,CYP,Premises Related,BAA,27/03/2017,12-16005,15885.26,ARC Property Services Partnership L
Nottinghamshire County Council,1111/1001,Children and Young People,CYP,Premises Related,BCA,03/03/2017,12-16396,862.8,Certas Energy UK Ltd T/A Pace Fuelc
Nottinghamshire County Council,1111/1001,Children and Young People,CYP,Premises Related,BCA,03/03/2017,12-16544,738,High Park Industries Ltd
Nottinghamshire County Council,1111/1001,Children and Young People,CYP,Premises Related,BCA,15/03/2017,12-16923,743.64,Flying High Trust Beeston Fields Pr
Nottinghamshire County Council,1111/1001,Children and Young People,CYP,Premises Related,BCA,16/03/2017,12-16691,896.86,Certas Energy UK Ltd T/A Pace Fuelc
Nottinghamshire County Council,1111/1001,Children and Young People,CYP,Premises Related,BCA,22/03/2017,12-17109,640,Ridgeway Property Services
Nottinghamshire County Council,1111/1001,Children and Young People,CYP,Premises Related,BCA,30/03/2017,12-17375,1627.7,High Park Industries Ltd
Nottinghamshire County Council,1111/1001,Children and Young People,CYP,Premises Related,BCA,31/03/2017,12-17423,570.73,Healdswood Infant & Nursery School
Nottinghamshire County Council,1111/1001,Children and Young People,CYP,Premises Related,BDA,01/03/2017,12-10001,5862.49,Making It! Enterprises Ltd
Nottinghamshire County Council,1111/1001,Children and Young People,CYP,Premises Related,BDA,01/03/2017,12-10010,3500,Diocese of Hallam Trustee
Nottinghamshire County Council,1111/1001,Children and Young People,CYP,Premises Related,BDA,01/03/2017,12-10012,4768.26,Making It! Enterprises Ltd
Nottinghamshire County Council,1111/1001,Children and Young People,CYP,Premises Related,BDA,01/03/2017,12-10017,8274.24,Ekmw Summit Centre
Nottinghamshire County Council,1111/1001,Children and Young People,CYP,Premises Related,BDA,01/03/2017,12-10018,575,Jillings Estates Ltd
Nottinghamshire County Council,1111/1001,Children and Young People,CYP,Premises Related,BDA,01/03/2017,12-10020,582.96,The Nottingham Arimathea Trust
Nottinghamshire County Council,1111/1001,Children and Young People,CYP,Premises Related,BDA,01/03/2017,12-10021,870,J & A Property Management Ltd
Nottinghamshire County Council,1111/1001,Children and Young People,CYP,Premises Related,BDA,01/03/2017,12-10022,7500,Capita Property & Infrastructure Lt
Nottinghamshire County Council,1111/1001,Children and Young People,CYP,Premises Related,BDA,03/03/2017,12-16360,333.33,Holme Pierrepont Leisure Trust
Nottinghamshire County Council,1111/1001,Children and Young People,CYP,Premises Related,BDA,03/03/2017,12-16388,1190,Warsop Sporting Ltd
Nottinghamshire County Council,1111/1001,Children and Young People,CYP,Premises Related,BDA,09/03/2017,12-16721,1871.05,"Culture, Learning & Libraries (Midl"
Nottinghamshire County Council,1111/1001,Children and Young People,CYP,Premises Related,BDA,15/03/2017,12-16940,69.99,Solo Consultancy Ltd
Nottinghamshire County Council,1111/1001,Children and Young People,CYP,Premises Related,BDA,20/03/2017,12-16983,597.25,George Spencer Academy
Nottinghamshire County Council,1111/1001,Children and Young People,CYP,Premises Related,BDA,21/03/2017,12-10024,1280,Oak Property Invests Ltd T/A Oak St
Nottinghamshire County Council,1111/1001,Children and Young People,CYP,Premises Related,BDA,21/03/2017,12-10025,1365,Mayfield Properties Ltd
Nottinghamshire County Council,1111/1001,Children and Young People,CYP,Premises Related,BDA,21/03/2017,12-12552,5702,Derbyshire Dales District Council
Nottinghamshire County Council,1111/1001,Children and Young People,CYP,Premises Related,BDA,22/03/2017,12-10026,1602.61,Refuge
Nottinghamshire County Council,1111/1001,Children and Young People,CYP,Premises Related,BDA,24/03/2017,12-10028,600,Newark Women's Aid
Nottinghamshire County Council,1111/1001,Children and Young People,CYP,Premises Related,BDA,24/03/2017,12-16684,3308,De Vere 2 Ltd
Nottinghamshire County Council,1111/1001,Children and Young People,CYP,Premises Related,BDA,29/03/2017,12-16569,1247.3,Woodhead Enterprises Ltd
Nottinghamshire County Council,1111/1001,Children and Young People,CYP,Premises Related,BDA,30/03/2017,12-16461,2579.5,Brierley Forest Primary & Nursery S
Nottinghamshire County Council,1111/1001,Children and Young People,CYP,Premises Related,BDA,30/03/2017,12-16494,5332.67,De Vere 2 Ltd
Nottinghamshire County Council,1111/1001,Children and Young People,CYP,Premises Related,BDA,30/03/2017,12-16788,1796,De Vere 2 Ltd
Nottinghamshire County Council,1111/1001,Children and Young People,CYP,Premises Related,BDA,30/03/2017,12-16854,2591.6,De Vere 2 Ltd
Nottinghamshire County Council,1111/1001,Children and Young People,CYP,Premises Related,BFA,02/03/2017,12-10273,809.61,Severn Trent Water Ltd
Nottinghamshire County Council,1111/1001,Children and Young People,CYP,Premises Related,BFA,02/03/2017,12-16289,4310.98,Brookside Primary School
Nottinghamshire County Council,1111/1001,Children and Young People,CYP,Premises Related,BJA,02/03/2017,12-16291,892.32,Solutions 4 Cleaning Ltd
Nottinghamshire County Council,1111/1001,Children and Young People,CYP,Premises Related,BJA,02/03/2017,12-16292,975.35,Solutions 4 Cleaning Ltd
Nottinghamshire County Council,1111/1001,Children and Young People,CYP,Premises Related,BJA,02/03/2017,12-16293,563.33,Solutions 4 Cleaning Ltd
Nottinghamshire County Council,1111/1001,Children and Young People,CYP,Premises Related,BJA,02/03/2017,12-16386,1019.39,Hi Spec Facilities Services Plc
Nottinghamshire County Council,1111/1001,Children and Young People,CYP,Premises Related,BJA,13/03/2017,12-16798,1019.39,Hi Spec Facilities Services Plc
Nottinghamshire County Council,1111/1001,Children and Young People,CYP,Premises Related,BJA,24/03/2017,12-17201,638,Wastecycle Ltd
Nottinghamshire County Council,1111/1001,Children and Young People,CYP,Premises Related,BJA,30/03/2017,12-16646,847.08,Newark & Sherwood District Council
Nottinghamshire County Council,1111/1001,Children and Young People,CYP,Premises Related,BJA,30/03/2017,12-16943,1019.39,Hi Spec Facilities Services Plc
Nottinghamshire County Council,1111/1001,Children and Young People,CYP,Transport Related,CAA,15/03/2017,12-16940,71.5,Solo Consultancy Ltd
Nottinghamshire County Council,1111/1001,Children and Young People,CYP,Transport Related,CAA,21/03/2017,12-12544,1421,Via East Midlands Ltd
Nottinghamshire County Council,1111/1001,Children and Young People,CYP,Transport Related,CAA,21/03/2017,12-12553,1421,Via East Midlands Ltd
Nottinghamshire County Council,1111/1001,Children and Young People,CYP,Transport Related,CAA,31/03/2017,12-16275,621.15,Via East Midlands Ltd
Nottinghamshire County Council,1111/1001,Children and Young People,CYP,Transport Related,CCA,02/03/2017,12-10296,1668.52,F4Control Ltd (t/a First4care)
Nottinghamshire County Council,1111/1001,Children and Young People,CYP,Transport Related,CCA,02/03/2017,12-10297,1682.66,F4Control Ltd (t/a First4care)
Nottinghamshire County Council,1111/1001,Children and Young People,CYP,Transport Related,CCA,02/03/2017,12-10298,1696.8,F4Control Ltd (t/a First4care)
Nottinghamshire County Council,1111/1001,Children and Young People,CYP,Transport Related,CCA,02/03/2017,12-10299,1816.22,F4Control Ltd (t/a First4care)
Nottinghamshire County Council,1111/1001,Children and Young People,CYP,Transport Related,CCA,02/03/2017,12-10301,1499.25,F4Control Ltd (t/a First4care)
Nottinghamshire County Council,1111/1001,Children and Young People,CYP,Transport Related,CCA,02/03/2017,12-10302,1496.88,F4Control Ltd (t/a First4care)
Nottinghamshire County Council,1111/1001,Children and Young People,CYP,Transport Related,CCA,02/03/2017,12-10303,1604.12,F4Control Ltd (t/a First4care)
Nottinghamshire County Council,1111/1001,Children and Young People,CYP,Transport Related,CCA,02/03/2017,12-10304,1621.62,F4Control Ltd (t/a First4care)
Nottinghamshire County Council,1111/1001,Children and Young People,CYP,Transport Related,CCA,02/03/2017,12-10305,1760.22,F4Control Ltd (t/a First4care)
Nottinghamshire County Council,1111/1001,Children and Young People,CYP,Transport Related,CCA,02/03/2017,12-10306,1644.72,F4Control Ltd (t/a First4care)
Nottinghamshire County Council,1111/1001,Children and Young People,CYP,Transport Related,CCA,02/03/2017,12-10307,1665.3,F4Control Ltd (t/a First4care)
Nottinghamshire County Council,1111/1001,Children and Young People,CYP,Transport Related,CCA,02/03/2017,12-10308,1705.95,F4Control Ltd (t/a First4care)
Nottinghamshire County Council,1111/1001,Children and Young People,CYP,Transport Related,CCA,02/03/2017,12-10310,1702,Johnson Bros Tours Ltd
Nottinghamshire County Council,1111/1001,Children and Young People,CYP,Transport Related,CCA,02/03/2017,12-10311,1199.1,Arrow Specialised Transport Ltd
Nottinghamshire County Council,1111/1001,Children and Young People,CYP,Transport Related,CCA,02/03/2017,12-10312,1378.13,Arrow Specialised Transport Ltd
Nottinghamshire County Council,1111/1001,Children and Young People,CYP,Transport Related,CCA,02/03/2017,12-10314,2490,Arrow Specialised Transport Ltd
Nottinghamshire County Council,1111/1001,Children and Young People,CYP,Transport Related,CCA,02/03/2017,12-10315,1983,Arrow Specialised Transport Ltd
Nottinghamshire County Council,1111/1001,Children and Young People,CYP,Transport Related,CCA,02/03/2017,12-10316,2175,Arrow Specialised Transport Ltd
Nottinghamshire County Council,1111/1001,Children and Young People,CYP,Transport Related,CCA,02/03/2017,12-10317,2215,Arrow Specialised Transport Ltd
Nottinghamshire County Council,1111/1001,Children and Young People,CYP,Transport Related,CCA,02/03/2017,12-10318,1600,Arrow Specialised Transport Ltd
Nottinghamshire County Council,1111/1001,Children and Young People,CYP,Transport Related,CCA,02/03/2017,12-10319,1680,Arrow Specialised Transport Ltd
Nottinghamshire County Council,1111/1001,Children and Young People,CYP,Transport Related,CCA,02/03/2017,12-10320,1605,Arrow Specialised Transport Ltd
Nottinghamshire County Council,1111/1001,Children and Young People,CYP,Transport Related,CCA,02/03/2017,12-10321,1282.56,Arrow Specialised Transport Ltd
Nottinghamshire County Council,1111/1001,Children and Young People,CYP,Transport Related,CCA,02/03/2017,12-10322,1635,Arrow Specialised Transport Ltd
Nottinghamshire County Council,1111/1001,Children and Young People,CYP,Transport Related,CCA,02/03/2017,12-10323,2025,Arrow Specialised Transport Ltd
Nottinghamshire County Council,1111/1001,Children and Young People,CYP,Transport Related,CCA,02/03/2017,12-10324,1425,Arrow Specialised Transport Ltd
Nottinghamshire County Council,1111/1001,Children and Young People,CYP,Transport Related,CCA,02/03/2017,12-10325,1858.2,Arrow Specialised Transport Ltd
Nottinghamshire County Council,1111/1001,Children and Young People,CYP,Transport Related,CCA,02/03/2017,12-10326,1185,Arrow Specialised Transport Ltd
Nottinghamshire County Council,1111/1001,Children and Young People,CYP,Transport Related,CCA,02/03/2017,12-10327,2623.2,Arrow Specialised Transport Ltd
Nottinghamshire County Council,1111/1001,Children and Young People,CYP,Transport Related,CCA,02/03/2017,12-10328,1573.2,Arrow Specialised Transport Ltd
Nottinghamshire County Council,1111/1001,Children and Young People,CYP,Transport Related,CCA,02/03/2017,12-10329,2698.2,Arrow Specialised Transport Ltd
Nottinghamshire County Council,1111/1001,Children and Young People,CYP,Transport Related,CCA,02/03/2017,12-10330,2473.2,Arrow Specialised Transport Ltd
Nottinghamshire County Council,1111/1001,Children and Young People,CYP,Transport Related,CCA,02/03/2017,12-10331,1573.2,Arrow Specialised Transport Ltd
Nottinghamshire County Council,1111/1001,Children and Young People,CYP,Transport Related,CCA,02/03/2017,12-10332,1787.85,Arrow Specialised Transport Ltd
Nottinghamshire County Council,1111/1001,Children and Young People,CYP,Transport Related,CCA,02/03/2017,12-10333,1445.25,Arrow Specialised Transport Ltd
Nottinghamshire County Council,1111/1001,Children and Young People,CYP,Transport Related,CCA,02/03/2017,12-10334,1858.2,Arrow Specialised Transport Ltd
Nottinghamshire County Council,1111/1001,Children and Young People,CYP,Transport Related,CCA,02/03/2017,12-10335,1548.3,Arrow Specialised Transport Ltd
Nottinghamshire County Council,1111/1001,Children and Young People,CYP,Transport Related,CCA,02/03/2017,12-10336,1654.95,Arrow Specialised Transport Ltd
Nottinghamshire County Council,1111/1001,Children and Young People,CYP,Transport Related,CCA,02/03/2017,12-10337,1302,Arrow Specialised Transport Ltd
Nottinghamshire County Council,1111/1001,Children and Young People,CYP,Transport Related,CCA,02/03/2017,12-10338,1463,Arrow Specialised Transport Ltd
Nottinghamshire County Council,1111/1001,Children and Young People,CYP,Transport Related,CCA,02/03/2017,12-10339,1442,Arrow Specialised Transport Ltd
Nottinghamshire County Council,1111/1001,Children and Young People,CYP,Transport Related,CCA,02/03/2017,12-10340,1470,Arrow Specialised Transport Ltd
Nottinghamshire County Council,1111/1001,Children and Young People,CYP,Transport Related,CCA,02/03/2017,12-10341,1792,Arrow Specialised Transport Ltd
Nottinghamshire County Council,1111/1001,Children and Young People,CYP,Transport Related,CCA,02/03/2017,12-10342,1761.9,Arrow Specialised Transport Ltd
Nottinghamshire County Council,1111/1001,Children and Young People,CYP,Transport Related,CCA,02/03/2017,12-10343,1624,Arrow Specialised Transport Ltd
Nottinghamshire County Council,1111/1001,Children and Young People,CYP,Transport Related,CCA,02/03/2017,12-10344,1344,Arrow Specialised Transport Ltd
Nottinghamshire County Council,1111/1001,Children and Young People,CYP,Transport Related,CCA,02/03/2017,12-10345,1680,Arrow Specialised Transport Ltd
Nottinghamshire County Council,1111/1001,Children and Young People,CYP,Transport Related,CCA,02/03/2017,12-10346,1624,Arrow Specialised Transport Ltd
Nottinghamshire County Council,1111/1001,Children and Young People,CYP,Transport Related,CCA,02/03/2017,12-10347,1680,Arrow Specialised Transport Ltd
Nottinghamshire County Council,1111/1001,Children and Young People,CYP,Transport Related,CCA,02/03/2017,12-10348,1792,Arrow Specialised Transport Ltd
Nottinghamshire County Council,1111/1001,Children and Young People,CYP,Transport Related,CCA,02/03/2017,12-10349,1671.6,Arrow Specialised Transport Ltd
Nottinghamshire County Council,1111/1001,Children and Young People,CYP,Transport Related,CCA,02/03/2017,12-10350,1255.24,Arrow Specialised Transport Ltd
Nottinghamshire County Council,1111/1001,Children and Young People,CYP,Transport Related,CCA,02/03/2017,12-10351,1442,Arrow Specialised Transport Ltd
Nottinghamshire County Council,1111/1001,Children and Young People,CYP,Transport Related,CCA,02/03/2017,12-10352,1560,Arrow Specialised Transport Ltd
Nottinghamshire County Council,1111/1001,Children and Young People,CYP,Transport Related,CCA,02/03/2017,12-10353,1440,Arrow Specialised Transport Ltd
Nottinghamshire County Council,1111/1001,Children and Young People,CYP,Transport Related,CCA,02/03/2017,12-10354,1365,Arrow Specialised Transport Ltd
Nottinghamshire County Council,1111/1001,Children and Young People,CYP,Transport Related,CCA,02/03/2017,12-10355,4124.96,Arrow Specialised Transport Ltd
Nottinghamshire County Council,1111/1001,Children and Young People,CYP,Transport Related,CCA,02/03/2017,12-10356,2000.32,Arrow Specialised Transport Ltd
Nottinghamshire County Council,1111/1001,Children and Young People,CYP,Transport Related,CCA,02/03/2017,12-10357,1824.06,Arrow Specialised Transport Ltd
Nottinghamshire County Council,1111/1001,Children and Young People,CYP,Transport Related,CCA,02/03/2017,12-10358,1470.56,Arrow Specialised Transport Ltd
Nottinghamshire County Council,1111/1001,Children and Young People,CYP,Transport Related,CCA,02/03/2017,12-10359,1042.92,Arrow Specialised Transport Ltd
Nottinghamshire County Council,1111/1001,Children and Young People,CYP,Transport Related,CCA,02/03/2017,12-10361,2340.48,Arrow Specialised Transport Ltd
Nottinghamshire County Council,1111/1001,Children and Young People,CYP,Transport Related,CCA,02/03/2017,12-10363,1843.68,Arrow Specialised Transport Ltd
Nottinghamshire County Council,1111/1001,Children and Young People,CYP,Transport Related,CCA,02/03/2017,12-10365,1603.2,Arrow Specialised Transport Ltd
Nottinghamshire County Council,1111/1001,Children and Young People,CYP,Transport Related,CCA,02/03/2017,12-10366,1772.25,Arrow Specialised Transport Ltd
Nottinghamshire County Council,1111/1001,Children and Young People,CYP,Transport Related,CCA,02/03/2017,12-10367,1536,Arrow Specialised Transport Ltd
Nottinghamshire County Council,1111/1001,Children and Young People,CYP,Transport Related,CCA,02/03/2017,12-10368,"1,965.00",Arrow Specialised Transport Ltd
Nottinghamshire County Council,1111/1001,Children and Young People,CYP,Transport Related,CCA,02/03/2017,12-10369,"2,968.20",Arrow Specialised Transport Ltd
Nottinghamshire County Council,1111/1001,Children and Young People,CYP,Transport Related,CCA,02/03/2017,12-10370,"1,494.15",Arrow Specialised Transport Ltd
Nottinghamshire County Council,1111/1001,Children and Young People,CYP,Transport Related,CCA,02/03/2017,12-10371,1996.4,Arrow Specialised Transport Ltd
Nottinghamshire County Council,1111/1001,Children and Young People,CYP,Transport Related,CCA,02/03/2017,12-10372,1604.68,Arrow Specialised Transport Ltd
Nottinghamshire County Council,1111/1001,Children and Young People,CYP,Transport Related,CCA,02/03/2017,12-10373,"1,669.78",Arrow Specialised Transport Ltd
Nottinghamshire County Council,1111/1001,Children and Young People,CYP,Transport Related,CCA,02/03/2017,12-10374,2092.72,Arrow Specialised Transport Ltd
Nottinghamshire County Council,1111/1001,Children and Young People,CYP,Transport Related,CCA,02/03/2017,12-10375,"1,456.00",Arrow Specialised Transport Ltd
Nottinghamshire County Council,1111/1001,Children and Young People,CYP,Transport Related,CCA,02/03/2017,12-10376,1399.86,Arrow Specialised Transport Ltd
Nottinghamshire County Council,1111/1001,Children and Young People,CYP,Transport Related,CCA,02/03/2017,12-10377,1555.4,Arrow Specialised Transport Ltd
Nottinghamshire County Council,1111/1001,Children and Young People,CYP,Transport Related,CCA,02/03/2017,12-10378,1583.68,Arrow Specialised Transport Ltd
Nottinghamshire County Council,1111/1001,Children and Young People,CYP,Transport Related,CCA,02/03/2017,12-10384,1084.74,Bridges Transport Services
Nottinghamshire County Council,1111/1001,Children and Young People,CYP,Transport Related,CCA,02/03/2017,12-10387,1500,Bridges Transport Services
Nottinghamshire County Council,1111/1001,Children and Young People,CYP,Transport Related,CCA,02/03/2017,12-10388,"1,275.00",Bridges Transport Services
Nottinghamshire County Council,1111/1001,Children and Young People,CYP,Transport Related,CCA,02/03/2017,12-10389,"1,008.75",Bridges Transport Services
Nottinghamshire County Council,1111/1001,Children and Young People,CYP,Transport Related,CCA,02/03/2017,12-10390,1612.5,Bridges Transport Services
Nottinghamshire County Council,1111/1001,Children and Young People,CYP,Transport Related,CCA,02/03/2017,12-10391,"1,401.54",Bridges Transport Services
Nottinghamshire County Council,1111/1001,Children and Young People,CYP,Transport Related,CCA,02/03/2017,12-10392,2200.94,Bridges Transport Services
Nottinghamshire County Council,1111/1001,Children and Young People,CYP,Transport Related,CCA,02/03/2017,12-10393,"2,100.00",Bridges Transport Services
Nottinghamshire County Council,1111/1001,Children and Young People,CYP,Transport Related,CCA,02/03/2017,12-10394,"1,460.34",Bridges Transport Services
Nottinghamshire County Council,1111/1001,Children and Young People,CYP,Transport Related,CCA,02/03/2017,12-10395,1975.68,Bridges Transport Services
Nottinghamshire County Council,1111/1001,Children and Young People,CYP,Transport Related,CCA,02/03/2017,12-10396,954.2,Bridges Transport Services
Nottinghamshire County Council,1111/1001,Children and Young People,CYP,Transport Related,CCA,02/03/2017,12-10397,"1,152.90",Bridges Transport Services
Nottinghamshire County Council,1111/1001,Children and Young People,CYP,Transport Related,CCA,02/03/2017,12-10398,"1,485.00",Bridges Transport Services
Nottinghamshire County Council,1111/1001,Children and Young People,CYP,Transport Related,CCA,02/03/2017,12-10399,1593.06,Bridges Transport Services
Nottinghamshire County Council,1111/1001,Children and Young People,CYP,Transport Related,CCA,02/03/2017,12-10400,1792.5,Bridges Transport Services
Nottinghamshire County Council,1111/1001,Children and Young People,CYP,Transport Related,CCA,02/03/2017,12-10401,2057.1,Bridges Transport Services
Nottinghamshire County Council,1111/1001,Children and Young People,CYP,Transport Related,CCA,02/03/2017,12-10402,"1,848.00",Bridges Transport Services
Nottinghamshire County Council,1111/1001,Children and Young People,CYP,Transport Related,CCA,02/03/2017,12-10403,810,Bridges Transport Services
Nottinghamshire County Council,1111/1001,Children and Young People,CYP,Transport Related,CCA,02/03/2017,12-10404,810,Bridges Transport Services
Nottinghamshire County Council,1111/1001,Children and Young People,CYP,Transport Related,CCA,02/03/2017,12-10405,656.44,Bridges Transport Services
Nottinghamshire County Council,1111/1001,Children and Young People,CYP,Transport Related,CCA,02/03/2017,12-10407,1066,Bridges Transport Services
Nottinghamshire County Council,1111/1001,Children and Young People,CYP,Transport Related,CCA,02/03/2017,12-10410,1780.1,D G Private Hire Ltd
Nottinghamshire County Council,1111/1001,Children and Young People,CYP,Transport Related,CCA,02/03/2017,12-10413,2035.8,F4Control Ltd (t/a First4care)
Nottinghamshire County Council,1111/1001,Children and Young People,CYP,Transport Related,CCA,02/03/2017,12-10414,"2,245.95",F4Control Ltd (t/a First4care)
Nottinghamshire County Council,1111/1001,Children and Young People,CYP,Transport Related,CCA,02/03/2017,12-10415,1563.8,F4Control Ltd (t/a First4care)
Nottinghamshire County Council,1111/1001,Children and Young People,CYP,Transport Related,CCA,02/03/2017,12-10416,"1,855.98",F4Control Ltd (t/a First4care)
Nottinghamshire County Council,1111/1001,Children and Young People,CYP,Transport Related,CCA,02/03/2017,12-10417,"2,321.55",F4Control Ltd (t/a First4care)
Nottinghamshire County Council,1111/1001,Children and Young People,CYP,Transport Related,CCA,02/03/2017,12-10418,2442.6,F4Control Ltd (t/a First4care)
Nottinghamshire County Council,1111/1001,Children and Young People,CYP,Transport Related,CCA,02/03/2017,12-10419,1951.23,F4Control Ltd (t/a First4care)
Nottinghamshire County Council,1111/1001,Children and Young People,CYP,Transport Related,CCA,02/03/2017,12-10421,1440.61,F4Control Ltd (t/a First4care)
Nottinghamshire County Council,1111/1001,Children and Young People,CYP,Transport Related,CCA,02/03/2017,12-10423,1094.8,F4Control Ltd (t/a First4care)
Nottinghamshire County Council,1111/1001,Children and Young People,CYP,Transport Related,CCA,02/03/2017,12-10426,1932.3,F4Control Ltd (t/a First4care)
Nottinghamshire County Council,1111/1001,Children and Young People,CYP,Transport Related,CCA,02/03/2017,12-10427,1277.09,F4Control Ltd (t/a First4care)
Nottinghamshire County Council,1111/1001,Children and Young People,CYP,Transport Related,CCA,02/03/2017,12-10429,2181.75,F4Control Ltd (t/a First4care)
Nottinghamshire County Council,1111/1001,Children and Young People,CYP,Transport Related,CCA,02/03/2017,12-10430,"1,410.24",F4Control Ltd (t/a First4care)
Nottinghamshire County Council,1111/1001,Children and Young People,CYP,Transport Related,CCA,02/03/2017,12-10431,"1,593.00",F4Control Ltd (t/a First4care)
Nottinghamshire County Council,1111/1001,Children and Young People,CYP,Transport Related,CCA,02/03/2017,12-10432,1652.85,F4Control Ltd (t/a First4care)
Nottinghamshire County Council,1111/1001,Children and Young People,CYP,Transport Related,CCA,02/03/2017,12-10433,1688.68,F4Control Ltd (t/a First4care)
Nottinghamshire County Council,1111/1001,Children and Young People,CYP,Transport Related,CCA,02/03/2017,12-10434,1706.82,F4Control Ltd (t/a First4care)
Nottinghamshire County Council,1111/1001,Children and Young People,CYP,Transport Related,CCA,02/03/2017,12-10436,2353.05,F4Control Ltd (t/a First4care)
Nottinghamshire County Council,1111/1001,Children and Young People,CYP,Transport Related,CCA,02/03/2017,12-10437,1050,D G Private Hire Ltd
Nottinghamshire County Council,1111/1001,Children and Young People,CYP,Transport Related,CCA,02/03/2017,12-10438,1200,D G Private Hire Ltd
Nottinghamshire County Council,1111/1001,Children and Young People,CYP,Transport Related,CCA,02/03/2017,12-10439,2375,D G Private Hire Ltd
Nottinghamshire County Council,1111/1001,Children and Young People,CYP,Transport Related,CCA,02/03/2017,12-10440,960,D G Private Hire Ltd
Nottinghamshire County Council,1111/1001,Children and Young People,CYP,Transport Related,CCA,02/03/2017,12-10441,637.5,D G Private Hire Ltd
Nottinghamshire County Council,1111/1001,Children and Young People,CYP,Transport Related,CCA,02/03/2017,12-10442,"1,050.00",D G Private Hire Ltd
Nottinghamshire County Council,1111/1001,Children and Young People,CYP,Transport Related,CCA,02/03/2017,12-10443,"1,200.00",D G Private Hire Ltd
Nottinghamshire County Council,1111/1001,Children and Young People,CYP,Transport Related,CCA,02/03/2017,12-10444,600,D G Private Hire Ltd
Nottinghamshire County Council,1111/1001,Children and Young People,CYP,Transport Related,CCA,02/03/2017,12-10445,"1,131.20",D G Private Hire Ltd
Nottinghamshire County Council,1111/1001,Children and Young People,CYP,Transport Related,CCA,02/03/2017,12-10446,840,D G Private Hire Ltd
Nottinghamshire County Council,1111/1001,Children and Young People,CYP,Transport Related,CCA,02/03/2017,12-10447,900,D G Private Hire Ltd
Nottinghamshire County Council,1111/1001,Children and Young People,CYP,Transport Related,CCA,02/03/2017,12-10448,1200,D G Private Hire Ltd
Nottinghamshire County Council,1111/1001,Children and Young People,CYP,Transport Related,CCA,02/03/2017,12-10449,630,D G Private Hire Ltd
Nottinghamshire County Council,1111/1001,Children and Young People,CYP,Transport Related,CCA,02/03/2017,12-10450,1425,D G Private Hire Ltd
Nottinghamshire County Council,1111/1001,Children and Young People,CYP,Transport Related,CCA,02/03/2017,12-10451,750,D G Private Hire Ltd
Nottinghamshire County Council,1111/1001,Children and Young People,CYP,Transport Related,CCA,02/03/2017,12-10452,900,D G Private Hire Ltd
Nottinghamshire County Council,1111/1001,Children and Young People,CYP,Transport Related,CCA,06/03/2017,12-10476,"2,181.60",Taxicover Uk Ltd
Nottinghamshire County Council,1111/1001,Children and Young People,CYP,Transport Related,CCA,06/03/2017,12-10477,2212,Taxicover Uk Ltd
Nottinghamshire County Council,1111/1001,Children and Young People,CYP,Transport Related,CCA,06/03/2017,12-10478,"2,658.32",Taxicover Uk Ltd
Nottinghamshire County Council,1111/1001,Children and Young People,CYP,Transport Related,CCA,06/03/2017,12-10479,"1,372.00",Taxicover Uk Ltd
Nottinghamshire County Council,1111/1001,Children and Young People,CYP,Transport Related,CCA,06/03/2017,12-10480,1467.5,Taxicover Uk Ltd
Nottinghamshire County Council,1111/1001,Children and Young People,CYP,Transport Related,CCA,06/03/2017,12-10481,2730,Taxicover Uk Ltd
Nottinghamshire County Council,1111/1001,Children and Young People,CYP,Transport Related,CCA,06/03/2017,12-10482,2091.6,Taxicover Uk Ltd
Nottinghamshire County Council,1111/1001,Children and Young People,CYP,Transport Related,CCA,06/03/2017,12-10483,"2,224.60",Taxicover Uk Ltd
Nottinghamshire County Council,1111/1001,Children and Young People,CYP,Transport Related,CCA,06/03/2017,12-10484,2366,Taxicover Uk Ltd
Nottinghamshire County Council,1111/1001,Children and Young People,CYP,Transport Related,CCA,06/03/2017,12-10485,2576,Taxicover Uk Ltd
Nottinghamshire County Council,1111/1001,Children and Young People,CYP,Transport Related,CCA,06/03/2017,12-10486,2191.7,Taxicover Uk Ltd
Nottinghamshire County Council,1111/1001,Children and Young People,CYP,Transport Related,CCA,06/03/2017,12-10487,2784.46,Taxicover Uk Ltd
Nottinghamshire County Council,1111/1001,Children and Young People,CYP,Transport Related,CCA,06/03/2017,12-10488,2092.72,Taxicover Uk Ltd
Nottinghamshire County Council,1111/1001,Children and Young People,CYP,Transport Related,CCA,06/03/2017,12-10489,"2,858.52",Taxicover Uk Ltd
Nottinghamshire County Council,1111/1001,Children and Young People,CYP,Transport Related,CCA,06/03/2017,12-10490,"2,205.84",Taxicover Uk Ltd
Nottinghamshire County Council,1111/1001,Children and Young People,CYP,Transport Related,CCA,06/03/2017,12-10491,"2,212.00",Taxicover Uk Ltd
Nottinghamshire County Council,1111/1001,Children and Young People,CYP,Transport Related,CCA,06/03/2017,12-10492,859.5,Southside Cars
Nottinghamshire County Council,1111/1001,Children and Young People,CYP,Transport Related,CCA,06/03/2017,12-10493,"1,137.33",Southside Cars
Nottinghamshire County Council,1111/1001,Children and Young People,CYP,Transport Related,CCA,06/03/2017,12-10495,1656,Southside Cars
Nottinghamshire County Council,1111/1001,Children and Young People,CYP,Transport Related,CCA,06/03/2017,12-10496,"1,656.00",Southside Cars
Nottinghamshire County Council,1111/1001,Children and Young People,CYP,Transport Related,CCA,06/03/2017,12-10497,"1,100.00",Southside Cars
Nottinghamshire County Council,1111/1001,Children and Young People,CYP,Transport Related,CCA,06/03/2017,12-10501,1750,All Wayz Travel
Nottinghamshire County Council,1111/1001,Children and Young People,CYP,Transport Related,CCA,06/03/2017,12-10506,1725.08,Martins Travel
Nottinghamshire County Council,1111/1001,Children and Young People,CYP,Transport Related,CCA,06/03/2017,12-10514,98.45,Acorn Contracts
Nottinghamshire County Council,1111/1001,Children and Young People,CYP,Transport Related,CCA,06/03/2017,12-10516,560,Alpha Cars
Nottinghamshire County Council,1111/1001,Children and Young People,CYP,Transport Related,CCA,06/03/2017,12-10517,544,Alpha Cars
Nottinghamshire County Council,1111/1001,Children and Young People,CYP,Transport Related,CCA,06/03/2017,12-10519,575,Fozcabs Newark Taxis
Nottinghamshire County Council,1111/1001,Children and Young People,CYP,Transport Related,CCA,06/03/2017,12-10523,"2,666.86",Galaxy Cabs
Nottinghamshire County Council,1111/1001,Children and Young People,CYP,Transport Related,CCA,06/03/2017,12-10524,840,Galaxy Cabs
Nottinghamshire County Council,1111/1001,Children and Young People,CYP,Transport Related,CCA,06/03/2017,12-10525,1650,Galaxy Cabs
Nottinghamshire County Council,1111/1001,Children and Young People,CYP,Transport Related,CCA,06/03/2017,12-10526,"1,666.50",Horizon Travel
Nottinghamshire County Council,1111/1001,Children and Young People,CYP,Transport Related,CCA,06/03/2017,12-10527,"1,674.58",Horizon Travel
Nottinghamshire County Council,1111/1001,Children and Young People,CYP,Transport Related,CCA,06/03/2017,12-10529,1800,Sprays Transport Ltd
Nottinghamshire County Council,1111/1001,Children and Young People,CYP,Transport Related,CCA,06/03/2017,12-10530,1770,Sprays Transport Ltd
Nottinghamshire County Council,1111/1001,Children and Young People,CYP,Transport Related,CCA,06/03/2017,12-10531,"1,650.00",Sprays Transport Ltd
Nottinghamshire County Council,1111/1001,Children and Young People,CYP,Transport Related,CCA,06/03/2017,12-10532,1750,Sprays Transport Ltd
Nottinghamshire County Council,1111/1001,Children and Young People,CYP,Transport Related,CCA,06/03/2017,12-10533,"1,470.00",Sprays Transport Ltd
Nottinghamshire County Council,1111/1001,Children and Young People,CYP,Transport Related,CCA,06/03/2017,12-10534,"1,770.00",Sprays Transport Ltd
Nottinghamshire County Council,1111/1001,Children and Young People,CYP,Transport Related,CCA,06/03/2017,12-10535,1680,Sprays Transport Ltd
Nottinghamshire County Council,1111/1001,Children and Young People,CYP,Transport Related,CCA,06/03/2017,12-10536,1668.52,Sprays Transport Ltd
Nottinghamshire County Council,1111/1001,Children and Young People,CYP,Transport Related,CCA,06/03/2017,12-10537,"1,555.40",Sprays Transport Ltd
Nottinghamshire County Council,1111/1001,Children and Young People,CYP,Transport Related,CCA,06/03/2017,12-10538,1484.7,Sprays Transport Ltd
Nottinghamshire County Council,1111/1001,Children and Young People,CYP,Transport Related,CCA,06/03/2017,12-10539,1696.8,Sprays Transport Ltd
Nottinghamshire County Council,1111/1001,Children and Young People,CYP,Transport Related,CCA,06/03/2017,12-10540,1568,Sprays Transport Ltd
Nottinghamshire County Council,1111/1001,Children and Young People,CYP,Transport Related,CCA,06/03/2017,12-10541,"2,086.20",Sprays Transport Ltd
Nottinghamshire County Council,1111/1001,Children and Young People,CYP,Transport Related,CCA,06/03/2017,12-10542,"1,830.00",Sprays Transport Ltd
Nottinghamshire County Council,1111/1001,Children and Young People,CYP,Transport Related,CCA,06/03/2017,12-10544,"1,488.76",Sprays Transport Ltd
Nottinghamshire County Council,1111/1001,Children and Young People,CYP,Transport Related,CCA,06/03/2017,12-10545,1695,Sprays Transport Ltd
Nottinghamshire County Council,1111/1001,Children and Young People,CYP,Transport Related,CCA,06/03/2017,12-10546,2403.8,Vallances Coaches
Nottinghamshire County Council,1111/1001,Children and Young People,CYP,Transport Related,CCA,06/03/2017,12-10548,"2,092.72",Vallances Coaches
Nottinghamshire County Council,1111/1001,Children and Young People,CYP,Transport Related,CCA,06/03/2017,12-10549,528,Elkingtons Park Garage
Nottinghamshire County Council,1111/1001,Children and Young People,CYP,Transport Related,CCA,06/03/2017,12-10550,"1,962.00",K & S Coaches
Nottinghamshire County Council,1111/1001,Children and Young People,CYP,Transport Related,CCA,06/03/2017,12-10551,1836.1,Midfield Travel
Nottinghamshire County Council,1111/1001,Children and Young People,CYP,Transport Related,CCA,06/03/2017,12-10552,1708.95,Midfield Travel
Nottinghamshire County Council,1111/1001,Children and Young People,CYP,Transport Related,CCA,06/03/2017,12-10567,1038.4,Nunns Cars
Nottinghamshire County Council,1111/1001,Children and Young People,CYP,Transport Related,CCA,06/03/2017,12-10568,1365,P & P Taxis
Nottinghamshire County Council,1111/1001,Children and Young People,CYP,Transport Related,CCA,06/03/2017,12-10571,1444.8,P & P Taxis
Nottinghamshire County Council,1111/1001,Children and Young People,CYP,Transport Related,CCA,06/03/2017,12-10575,"1,700.00",Freeway Coaches Ltd
Nottinghamshire County Council,1111/1001,Children and Young People,CYP,Transport Related,CCA,06/03/2017,12-10576,"1,600.00",Freeway Coaches Ltd
Nottinghamshire County Council,1111/1001,Children and Young People,CYP,Transport Related,CCA,06/03/2017,12-10593,870,Town Cars (UK) Ltd
Nottinghamshire County Council,1111/1001,Children and Young People,CYP,Transport Related,CCA,06/03/2017,12-10594,545.4,Town Cars (UK) Ltd
Nottinghamshire County Council,1111/1001,Children and Young People,CYP,Transport Related,CCA,06/03/2017,12-10595,540,Town Cars (UK) Ltd
Nottinghamshire County Council,1111/1001,Children and Young People,CYP,Transport Related,CCA,06/03/2017,12-10599,"1,563.75",Ace Cars
Nottinghamshire County Council,1111/1001,Children and Young People,CYP,Transport Related,CCA,06/03/2017,12-10600,"1,342.50",Ace Cars
Nottinghamshire County Council,1111/1001,Children and Young People,CYP,Transport Related,CCA,06/03/2017,12-10601,1883,Ace Cars
Nottinghamshire County Council,1111/1001,Children and Young People,CYP,Transport Related,CCA,06/03/2017,12-10602,"1,792.50",Ace Cars
Nottinghamshire County Council,1111/1001,Children and Young People,CYP,Transport Related,CCA,06/03/2017,12-10603,"2,242.50",Ace Cars
Nottinghamshire County Council,1111/1001,Children and Young People,CYP,Transport Related,CCA,06/03/2017,12-10604,"1,440.00",Ace Cars
Nottinghamshire County Council,1111/1001,Children and Young People,CYP,Transport Related,CCA,06/03/2017,12-10605,1419,Ace Cars
Nottinghamshire County Council,1111/1001,Children and Young People,CYP,Transport Related,CCA,06/03/2017,12-10606,1792.5,Ace Cars
Nottinghamshire County Council,1111/1001,Children and Young People,CYP,Transport Related,CCA,06/03/2017,12-10607,1623,Ace Cars
Nottinghamshire County Council,1111/1001,Children and Young People,CYP,Transport Related,CCA,06/03/2017,12-10608,"1,885.80",L A Travel
Nottinghamshire County Council,1111/1001,Children and Young People,CYP,Transport Related,CCA,06/03/2017,12-10615,"1,470.00",Forest Cars
Nottinghamshire County Council,1111/1001,Children and Young People,CYP,Transport Related,CCA,06/03/2017,12-10616,720,Forest Cars
Nottinghamshire County Council,1111/1001,Children and Young People,CYP,Transport Related,CCA,06/03/2017,12-10619,1410,Forest Cars
Nottinghamshire County Council,1111/1001,Children and Young People,CYP,Transport Related,CCA,06/03/2017,12-10622,1785,Forest Cars
Nottinghamshire County Council,1111/1001,Children and Young People,CYP,Transport Related,CCA,06/03/2017,12-10623,1350,Forest Cars
Nottinghamshire County Council,1111/1001,Children and Young People,CYP,Transport Related,CCA,06/03/2017,12-10624,2010,Forest Cars
Nottinghamshire County Council,1111/1001,Children and Young People,CYP,Transport Related,CCA,06/03/2017,12-10625,486.4,Forest Cars
Nottinghamshire County Council,1111/1001,Children and Young People,CYP,Transport Related,CCA,06/03/2017,12-10627,846,Forest Cars
Nottinghamshire County Council,1111/1001,Children and Young People,CYP,Transport Related,CCA,06/03/2017,12-10628,"1,036.00",Forest Cars
Nottinghamshire County Council,1111/1001,Children and Young People,CYP,Transport Related,CCA,06/03/2017,12-10629,666,Forest Cars
Nottinghamshire County Council,1111/1001,Children and Young People,CYP,Transport Related,CCA,06/03/2017,12-10630,381.5,Forest Cars
Nottinghamshire County Council,1111/1001,Children and Young People,CYP,Transport Related,CCA,06/03/2017,12-10632,1330,Sean's Taxi Services
Nottinghamshire County Council,1111/1001,Children and Young People,CYP,Transport Related,CCA,07/03/2017,12-10820,8060.3,Sharpes Of Nottingham
Nottinghamshire County Council,1111/1001,Children and Young People,CYP,Transport Related,CCA,07/03/2017,12-10821,900,6 Five 2s
Nottinghamshire County Council,1111/1001,Children and Young People,CYP,Transport Related,CCA,07/03/2017,12-10822,1320,6 Five 2s
Nottinghamshire County Council,1111/1001,Children and Young People,CYP,Transport Related,CCA,07/03/2017,12-10823,1272.6,6 Five 2s
Nottinghamshire County Council,1111/1001,Children and Young People,CYP,Transport Related,CCA,07/03/2017,12-10824,1445.08,6 Five 2s
Nottinghamshire County Council,1111/1001,Children and Young People,CYP,Transport Related,CCA,07/03/2017,12-10825,"1,424.10",6 Five 2s
Nottinghamshire County Council,1111/1001,Children and Young People,CYP,Transport Related,CCA,07/03/2017,12-10826,549.78,6 Five 2s
Nottinghamshire County Council,1111/1001,Children and Young People,CYP,Transport Related,CCA,07/03/2017,12-10827,525,6 Five 2s
Nottinghamshire County Council,1111/1001,Children and Young People,CYP,Transport Related,CCA,07/03/2017,12-10832,750,Ace Of Mansfield Ltd
Nottinghamshire County Council,1111/1001,Children and Young People,CYP,Transport Related,CCA,07/03/2017,12-10836,702,Ace Of Mansfield Ltd
Nottinghamshire County Council,1111/1001,Children and Young People,CYP,Transport Related,CCA,07/03/2017,12-10838,750,Ace Of Mansfield Ltd
Nottinghamshire County Council,1111/1001,Children and Young People,CYP,Transport Related,CCA,07/03/2017,12-10839,1364.3,Ace Of Mansfield Ltd
Nottinghamshire County Council,1111/1001,Children and Young People,CYP,Transport Related,CCA,07/03/2017,12-10840,1380,Ace Of Mansfield Ltd
Nottinghamshire County Council,1111/1001,Children and Young People,CYP,Transport Related,CCA,07/03/2017,12-10841,1176,Headland Taxi Services
Nottinghamshire County Council,1111/1001,Children and Young People,CYP,Transport Related,CCA,07/03/2017,12-10847,510,Ng11 Cars
Nottinghamshire County Council,1111/1001,Children and Young People,CYP,Transport Related,CCA,07/03/2017,12-10849,"1,352.00",Ng11 Cars
Nottinghamshire County Council,1111/1001,Children and Young People,CYP,Transport Related,CCA,07/03/2017,12-10850,750,Ng11 Cars
Nottinghamshire County Council,1111/1001,Children and Young People,CYP,Transport Related,CCA,07/03/2017,12-10851,540,Ng11 Cars
Nottinghamshire County Council,1111/1001,Children and Young People,CYP,Transport Related,CCA,07/03/2017,12-10852,840,Ng11 Cars
Nottinghamshire County Council,1111/1001,Children and Young People,CYP,Transport Related,CCA,07/03/2017,12-10854,840,Shelleys Taxis Ltd
Nottinghamshire County Council,1111/1001,Children and Young People,CYP,Transport Related,CCA,07/03/2017,12-10855,810,Shelleys Taxis Ltd
Nottinghamshire County Council,1111/1001,Children and Young People,CYP,Transport Related,CCA,07/03/2017,12-10856,1050,Shelleys Taxis Ltd
Nottinghamshire County Council,1111/1001,Children and Young People,CYP,Transport Related,CCA,07/03/2017,12-10857,1400,Shelleys Taxis Ltd
Nottinghamshire County Council,1111/1001,Children and Young People,CYP,Transport Related,CCA,07/03/2017,12-10860,675,Shelleys Taxis Ltd
Nottinghamshire County Council,1111/1001,Children and Young People,CYP,Transport Related,CCA,07/03/2017,12-10862,924,Shelleys Taxis Ltd
Nottinghamshire County Council,1111/1001,Children and Young People,CYP,Transport Related,CCA,07/03/2017,12-10863,1050,Shelleys Taxis Ltd
Nottinghamshire County Council,1111/1001,Children and Young People,CYP,Transport Related,CCA,07/03/2017,12-10864,686,Shelleys Taxis Ltd
Nottinghamshire County Council,1111/1001,Children and Young People,CYP,Transport Related,CCA,07/03/2017,12-10865,"3,511.05",BN Gibson Ltd
Nottinghamshire County Council,1111/1001,Children and Young People,CYP,Transport Related,CCA,07/03/2017,12-10866,1803.9,BN Gibson Ltd
Nottinghamshire County Council,1111/1001,Children and Young People,CYP,Transport Related,CCA,07/03/2017,12-10867,"1,476.58",BN Gibson Ltd
Nottinghamshire County Council,1111/1001,Children and Young People,CYP,Transport Related,CCA,07/03/2017,12-10868,"3,367.56",BN Gibson Ltd
Nottinghamshire County Council,1111/1001,Children and Young People,CYP,Transport Related,CCA,07/03/2017,12-10869,2175.3,BN Gibson Ltd
Nottinghamshire County Council,1111/1001,Children and Young People,CYP,Transport Related,CCA,07/03/2017,12-10870,2875.95,BN Gibson Ltd
Nottinghamshire County Council,1111/1001,Children and Young People,CYP,Transport Related,CCA,07/03/2017,12-10871,2378.7,BN Gibson Ltd
Nottinghamshire County Council,1111/1001,Children and Young People,CYP,Transport Related,CCA,07/03/2017,12-10872,"3,656.24",BN Gibson Ltd
Nottinghamshire County Council,1111/1001,Children and Young People,CYP,Transport Related,CCA,07/03/2017,12-10873,4273.2,BN Gibson Ltd
Nottinghamshire County Council,1111/1001,Children and Young People,CYP,Transport Related,CCA,07/03/2017,12-10874,2240.84,BN Gibson Ltd
Nottinghamshire County Council,1111/1001,Children and Young People,CYP,Transport Related,CCA,07/03/2017,12-10875,2822.82,BN Gibson Ltd
Nottinghamshire County Council,1111/1001,Children and Young People,CYP,Transport Related,CCA,07/03/2017,12-10876,2592.8,BN Gibson Ltd
Nottinghamshire County Council,1111/1001,Children and Young People,CYP,Transport Related,CCA,07/03/2017,12-10877,2240,BN Gibson Ltd
Nottinghamshire County Council,1111/1001,Children and Young People,CYP,Transport Related,CCA,07/03/2017,12-10878,"1,768.06",BN Gibson Ltd
Nottinghamshire County Council,1111/1001,Children and Young People,CYP,Transport Related,CCA,07/03/2017,12-10879,"1,647.24",BN Gibson Ltd
Nottinghamshire County Council,1111/1001,Children and Young People,CYP,Transport Related,CCA,07/03/2017,12-10880,"1,582.00",BN Gibson Ltd
Nottinghamshire County Council,1111/1001,Children and Young People,CYP,Transport Related,CCA,07/03/2017,12-10881,1770.45,BN Gibson Ltd
Nottinghamshire County Council,1111/1001,Children and Young People,CYP,Transport Related,CCA,07/03/2017,12-10882,"1,319.25",BN Gibson Ltd
Nottinghamshire County Council,1111/1001,Children and Young People,CYP,Transport Related,CCA,07/03/2017,12-10883,1463.4,BN Gibson Ltd
Nottinghamshire County Council,1111/1001,Children and Young People,CYP,Transport Related,CCA,07/03/2017,12-10884,"3,339.00",BN Gibson Ltd
Nottinghamshire County Council,1111/1001,Children and Young People,CYP,Transport Related,CCA,07/03/2017,12-10885,"1,994.40",BN Gibson Ltd
Nottinghamshire County Council,1111/1001,Children and Young People,CYP,Transport Related,CCA,07/03/2017,12-10886,1891.05,BN Gibson Ltd
Nottinghamshire County Council,1111/1001,Children and Young People,CYP,Transport Related,CCA,07/03/2017,12-10887,1494.23,BN Gibson Ltd
Nottinghamshire County Council,1111/1001,Children and Young People,CYP,Transport Related,CCA,07/03/2017,12-10889,"1,384.20",BN Gibson Ltd
Nottinghamshire County Council,1111/1001,Children and Young People,CYP,Transport Related,CCA,07/03/2017,12-10890,"1,582.05",BN Gibson Ltd
Nottinghamshire County Council,1111/1001,Children and Young People,CYP,Transport Related,CCA,07/03/2017,12-10891,1154.53,BN Gibson Ltd
Nottinghamshire County Council,1111/1001,Children and Young People,CYP,Transport Related,CCA,07/03/2017,12-10893,1532.55,BN Gibson Ltd
Nottinghamshire County Council,1111/1001,Children and Young People,CYP,Transport Related,CCA,07/03/2017,12-10894,"1,582.05",BN Gibson Ltd
Nottinghamshire County Council,1111/1001,Children and Young People,CYP,Transport Related,CCA,07/03/2017,12-10895,"2,122.82",BN Gibson Ltd
Nottinghamshire County Council,1111/1001,Children and Young People,CYP,Transport Related,CCA,07/03/2017,12-10896,1682.25,BN Gibson Ltd
Nottinghamshire County Council,1111/1001,Children and Young People,CYP,Transport Related,CCA,07/03/2017,12-10897,"2,388.82",BN Gibson Ltd
Nottinghamshire County Council,1111/1001,Children and Young People,CYP,Transport Related,CCA,07/03/2017,12-10898,"1,891.82",BN Gibson Ltd
Nottinghamshire County Council,1111/1001,Children and Young People,CYP,Transport Related,CCA,07/03/2017,12-10899,1414.56,BN Gibson Ltd
Nottinghamshire County Council,1111/1001,Children and Young People,CYP,Transport Related,CCA,07/03/2017,12-10900,1366.71,BN Gibson Ltd
Nottinghamshire County Council,1111/1001,Children and Young People,CYP,Transport Related,CCA,07/03/2017,12-10902,"1,463.28",BN Gibson Ltd
Nottinghamshire County Council,1111/1001,Children and Young People,CYP,Transport Related,CCA,07/03/2017,12-10935,1204,Rio Cabs
Nottinghamshire County Council,1111/1001,Children and Young People,CYP,Transport Related,CCA,07/03/2017,12-10936,756,Rio Cabs
Nottinghamshire County Council,1111/1001,Children and Young People,CYP,Transport Related,CCA,07/03/2017,12-10937,840,Rio Cabs
Nottinghamshire County Council,1111/1001,Children and Young People,CYP,Transport Related,CCA,07/03/2017,12-10939,1562.63,Rio Cabs
Nottinghamshire County Council,1111/1001,Children and Young People,CYP,Transport Related,CCA,07/03/2017,12-10941,509.94,Rio Cabs
Nottinghamshire County Council,1111/1001,Children and Young People,CYP,Transport Related,CCA,07/03/2017,12-10950,"1,500.00",Trevor Bailey t/a Trevor Bailey Tra
Nottinghamshire County Council,1111/1001,Children and Young People,CYP,Transport Related,CCA,07/03/2017,12-10952,870,Shiny Sky Ltd T/A A2b Cars
Nottinghamshire County Council,1111/1001,Children and Young People,CYP,Transport Related,CCA,07/03/2017,12-10953,302.4,Shiny Sky Ltd T/A A2b Cars
Nottinghamshire County Council,1111/1001,Children and Young People,CYP,Transport Related,CCA,07/03/2017,12-10955,728,Shiny Sky Ltd T/A A2b Cars
Nottinghamshire County Council,1111/1001,Children and Young People,CYP,Transport Related,CCA,07/03/2017,12-10956,1740,Shiny Sky Ltd T/A A2b Cars
Nottinghamshire County Council,1111/1001,Children and Young People,CYP,Transport Related,CCA,07/03/2017,12-10957,840,Shiny Sky Ltd T/A A2b Cars
Nottinghamshire County Council,1111/1001,Children and Young People,CYP,Transport Related,CCA,07/03/2017,12-10958,1026,Shiny Sky Ltd T/A A2b Cars
Nottinghamshire County Council,1111/1001,Children and Young People,CYP,Transport Related,CCA,07/03/2017,12-10959,1500,Shiny Sky Ltd T/A A2b Cars
Nottinghamshire County Council,1111/1001,Children and Young People,CYP,Transport Related,CCA,07/03/2017,12-10960,945,Shiny Sky Ltd T/A A2b Cars
Nottinghamshire County Council,1111/1001,Children and Young People,CYP,Transport Related,CCA,07/03/2017,12-10961,912.5,Shiny Sky Ltd T/A A2b Cars
Nottinghamshire County Council,1111/1001,Children and Young People,CYP,Transport Related,CCA,07/03/2017,12-10962,935,Shiny Sky Ltd T/A A2b Cars
Nottinghamshire County Council,1111/1001,Children and Young People,CYP,Transport Related,CCA,07/03/2017,12-10963,1540,Shiny Sky Ltd T/A A2b Cars
Nottinghamshire County Council,1111/1001,Children and Young People,CYP,Transport Related,CCA,07/03/2017,12-10965,1080,Shiny Sky Ltd T/A A2b Cars
Nottinghamshire County Council,1111/1001,Children and Young People,CYP,Transport Related,CCA,07/03/2017,12-10966,630,Shiny Sky Ltd T/A A2b Cars
Nottinghamshire County Council,1111/1001,Children and Young People,CYP,Transport Related,CCA,08/03/2017,12-11714,1209.6,Muskham Car Hire Ltd T/A Z Cars
Nottinghamshire County Council,1111/1001,Children and Young People,CYP,Transport Related,CCA,08/03/2017,12-11715,726.7,Muskham Car Hire Ltd T/A Z Cars
Nottinghamshire County Council,1111/1001,Children and Young People,CYP,Transport Related,CCA,08/03/2017,12-11716,560,Muskham Car Hire Ltd T/A Z Cars
Nottinghamshire County Council,1111/1001,Children and Young People,CYP,Transport Related,CCA,08/03/2017,12-11717,1918,Arrow Specialised Transport Ltd
Nottinghamshire County Council,1111/1001,Children and Young People,CYP,Transport Related,CCA,08/03/2017,12-11718,2070.32,Arrow Specialised Transport Ltd
Nottinghamshire County Council,1111/1001,Children and Young People,CYP,Transport Related,CCA,08/03/2017,12-11719,1860.88,Arrow Specialised Transport Ltd
Nottinghamshire County Council,1111/1001,Children and Young People,CYP,Transport Related,CCA,08/03/2017,12-11720,1399.86,Arrow Specialised Transport Ltd
Nottinghamshire County Council,1111/1001,Children and Young People,CYP,Transport Related,CCA,08/03/2017,12-11721,1725,Arrow Specialised Transport Ltd
Nottinghamshire County Council,1111/1001,Children and Young People,CYP,Transport Related,CCA,08/03/2017,12-11722,2700,Shelleys Taxis Ltd
Nottinghamshire County Council,1111/1001,Children and Young People,CYP,Transport Related,CCA,08/03/2017,12-11723,2947.35,BN Gibson Ltd
Nottinghamshire County Council,1111/1001,Children and Young People,CYP,Transport Related,CCA,08/03/2017,12-11724,3439.65,BN Gibson Ltd
Nottinghamshire County Council,1111/1001,Children and Young People,CYP,Transport Related,CCA,08/03/2017,12-11725,2641.95,BN Gibson Ltd
Nottinghamshire County Council,1111/1001,Children and Young People,CYP,Transport Related,CCA,08/03/2017,12-11727,2429.56,BN Gibson Ltd
Nottinghamshire County Council,1111/1001,Children and Young People,CYP,Transport Related,CCA,08/03/2017,12-11728,988.68,BN Gibson Ltd
Nottinghamshire County Council,1111/1001,Children and Young People,CYP,Transport Related,CCA,08/03/2017,12-11729,2034,BN Gibson Ltd
Nottinghamshire County Council,1111/1001,Children and Young People,CYP,Transport Related,CCA,08/03/2017,12-11730,1254.33,BN Gibson Ltd
Nottinghamshire County Council,1111/1001,Children and Young People,CYP,Transport Related,CCA,08/03/2017,12-11731,1901.1,BN Gibson Ltd
Nottinghamshire County Council,1111/1001,Children and Young People,CYP,Transport Related,CCA,08/03/2017,12-11781,3191.68,Travel Wright Ltd
Nottinghamshire County Council,1111/1001,Children and Young People,CYP,Transport Related,CCA,08/03/2017,12-11783,186.64,Travel Wright Ltd
Nottinghamshire County Council,1111/1001,Children and Young People,CYP,Transport Related,CCA,08/03/2017,12-11798,2240,K Matthews Travel
Nottinghamshire County Council,1111/1001,Children and Young People,CYP,Transport Related,CCA,08/03/2017,12-11799,2380,K Matthews Travel
Nottinghamshire County Council,1111/1001,Children and Young People,CYP,Transport Related,CCA,08/03/2017,12-11800,1656,K Matthews Travel
Nottinghamshire County Council,1111/1001,Children and Young People,CYP,Transport Related,CCA,08/03/2017,12-11805,823.5,Ace Cars
Nottinghamshire County Council,1111/1001,Children and Young People,CYP,Transport Related,CCA,08/03/2017,12-11807,1673,Ace Cars
Nottinghamshire County Council,1111/1001,Children and Young People,CYP,Transport Related,CCA,08/03/2017,12-11808,1717.5,Ace Cars
Nottinghamshire County Council,1111/1001,Children and Young People,CYP,Transport Related,CCA,08/03/2017,12-11809,1417.5,Ace Cars
Nottinghamshire County Council,1111/1001,Children and Young People,CYP,Transport Related,CCA,08/03/2017,12-11810,1496.25,Ace Cars
Nottinghamshire County Council,1111/1001,Children and Young People,CYP,Transport Related,CCA,08/03/2017,12-11811,2205,Ace Cars
Nottinghamshire County Council,1111/1001,Children and Young People,CYP,Transport Related,CCA,08/03/2017,12-11812,1606.5,Ace Cars
Nottinghamshire County Council,1111/1001,Children and Young People,CYP,Transport Related,CCA,09/03/2017,12-12132,2014.04,Arrow Specialised Transport Ltd
Nottinghamshire County Council,1111/1001,Children and Young People,CYP,Transport Related,CCA,09/03/2017,12-12136,675,Bridges Transport Services
Nottinghamshire County Council,1111/1001,Children and Young People,CYP,Transport Related,CCA,09/03/2017,12-12137,10378.48,Erewash Community Transport
Nottinghamshire County Council,1111/1001,Children and Young People,CYP,Transport Related,CCA,09/03/2017,12-12139,2297.82,Ja Travel Ltd
Nottinghamshire County Council,1111/1001,Children and Young People,CYP,Transport Related,CCA,09/03/2017,12-12140,2262.4,Ja Travel Ltd
Nottinghamshire County Council,1111/1001,Children and Young People,CYP,Transport Related,CCA,09/03/2017,12-12141,1250.76,Ja Travel Ltd
Nottinghamshire County Council,1111/1001,Children and Young People,CYP,Transport Related,CCA,09/03/2017,12-12149,565.6,D G Private Hire Ltd
Nottinghamshire County Council,1111/1001,Children and Young People,CYP,Transport Related,CCA,09/03/2017,12-12163,2403.8,Abacus Cars
Nottinghamshire County Council,1111/1001,Children and Young People,CYP,Transport Related,CCA,09/03/2017,12-12167,680,Abacus Cars
Nottinghamshire County Council,1111/1001,Children and Young People,CYP,Transport Related,CCA,09/03/2017,12-12168,1275,Abacus Cars
Nottinghamshire County Council,1111/1001,Children and Young People,CYP,Transport Related,CCA,09/03/2017,12-12169,1275,Abacus Cars
Nottinghamshire County Council,1111/1001,Children and Young People,CYP,Transport Related,CCA,09/03/2017,12-12172,1200,Abacus Cars
Nottinghamshire County Council,1111/1001,Children and Young People,CYP,Transport Related,CCA,09/03/2017,12-12173,600,Abacus Cars
Nottinghamshire County Council,1111/1001,Children and Young People,CYP,Transport Related,CCA,09/03/2017,12-12174,2262.4,Abacus Cars
Nottinghamshire County Council,1111/1001,Children and Young People,CYP,Transport Related,CCA,09/03/2017,12-12175,1200,Abacus Cars
Nottinghamshire County Council,1111/1001,Children and Young People,CYP,Transport Related,CCA,09/03/2017,12-12176,989.8,Abacus Cars
Nottinghamshire County Council,1111/1001,Children and Young People,CYP,Transport Related,CCA,09/03/2017,12-12177,840,Abacus Cars
Nottinghamshire County Council,1111/1001,Children and Young People,CYP,Transport Related,CCA,09/03/2017,12-12178,2100,Abacus Cars
Nottinghamshire County Council,1111/1001,Children and Young People,CYP,Transport Related,CCA,09/03/2017,12-12181,1960,Abacus Cars
Nottinghamshire County Council,1111/1001,Children and Young People,CYP,Transport Related,CCA,09/03/2017,12-12190,2142,Ace Cars
Nottinghamshire County Council,1111/1001,Children and Young People,CYP,Transport Related,CCA,09/03/2017,12-12191,1499.4,Ace Cars
Nottinghamshire County Council,1111/1001,Children and Young People,CYP,Transport Related,CCA,09/03/2017,12-12192,1176,Forest Cars
Nottinghamshire County Council,1111/1001,Children and Young People,CYP,Transport Related,CCA,10/03/2017,12-12215,1875,Central Cars Nottm Ltd
Nottinghamshire County Council,1111/1001,Children and Young People,CYP,Transport Related,CCA,10/03/2017,12-12216,1211.48,Central Cars Nottm Ltd
Nottinghamshire County Council,1111/1001,Children and Young People,CYP,Transport Related,CCA,10/03/2017,12-12218,1470,Central Cars Nottm Ltd
Nottinghamshire County Council,1111/1001,Children and Young People,CYP,Transport Related,CCA,10/03/2017,12-12219,2550,Central Cars Nottm Ltd
Nottinghamshire County Council,1111/1001,Children and Young People,CYP,Transport Related,CCA,10/03/2017,12-12220,778.84,Alpha Cars
Nottinghamshire County Council,1111/1001,Children and Young People,CYP,Transport Related,CCA,10/03/2017,12-12221,1348.5,Amvale Ltd
Nottinghamshire County Council,1111/1001,Children and Young People,CYP,Transport Related,CCA,10/03/2017,12-12223,1157,Skills Motor Coaches Ltd
Nottinghamshire County Council,1111/1001,Children and Young People,CYP,Transport Related,CCA,10/03/2017,12-12224,1830,Skills Motor Coaches Ltd
Nottinghamshire County Council,1111/1001,Children and Young People,CYP,Transport Related,CCA,10/03/2017,12-12225,1090,Skills Motor Coaches Ltd
Nottinghamshire County Council,1111/1001,Children and Young People,CYP,Transport Related,CCA,14/03/2017,12-12325,1685.34,F4Control Ltd (t/a First4care)
Nottinghamshire County Council,1111/1001,Children and Young People,CYP,Transport Related,CCA,14/03/2017,12-12326,600,Martins Travel
Nottinghamshire County Council,1111/1001,Children and Young People,CYP,Transport Related,CCA,14/03/2017,12-12327,805,D G Private Hire Ltd
Nottinghamshire County Council,1111/1001,Children and Young People,CYP,Transport Related,CCA,14/03/2017,12-12328,597,Shelleys Taxis Ltd
Nottinghamshire County Council,1111/1001,Children and Young People,CYP,Transport Related,CCA,14/03/2017,12-12329,600,Shelleys Taxis Ltd
Nottinghamshire County Council,1111/1001,Children and Young People,CYP,Transport Related,CCA,14/03/2017,12-12330,540,Sprays Transport Ltd
Nottinghamshire County Council,1111/1001,Children and Young People,CYP,Transport Related,CCA,14/03/2017,12-12332,1866.76,BN Gibson Ltd
Nottinghamshire County Council,1111/1001,Children and Young People,CYP,Transport Related,CCA,14/03/2017,12-12333,1792.98,BN Gibson Ltd
Nottinghamshire County Council,1111/1001,Children and Young People,CYP,Transport Related,CCA,14/03/2017,12-12334,602,Skills Motor Coaches Ltd
Nottinghamshire County Council,1111/1001,Children and Young People,CYP,Transport Related,CCA,14/03/2017,12-12335,1185,Skills Motor Coaches Ltd
Nottinghamshire County Council,1111/1001,Children and Young People,CYP,Transport Related,CCA,14/03/2017,12-12339,3248.13,Gem Mini Travel Ltd
Nottinghamshire County Council,1111/1001,Children and Young People,CYP,Transport Related,CCA,14/03/2017,12-12340,2772,Marshalls Of Sutton On Trent Ltd
Nottinghamshire County Council,1111/1001,Children and Young People,CYP,Transport Related,CCA,14/03/2017,12-12349,799.36,Travel Wright Ltd
Nottinghamshire County Council,1111/1001,Children and Young People,CYP,Transport Related,CCA,14/03/2017,12-12350,500.22,Bassetlaw Action Centre
Nottinghamshire County Council,1111/1001,Children and Young People,CYP,Transport Related,CCA,14/03/2017,12-12351,589.95,Bassetlaw Action Centre
Nottinghamshire County Council,1111/1001,Children and Young People,CYP,Transport Related,CCA,14/03/2017,12-12352,1270.88,Bassetlaw Action Centre
Nottinghamshire County Council,1111/1001,Children and Young People,CYP,Transport Related,CCA,14/03/2017,12-12353,885.6,Bassetlaw Action Centre
Nottinghamshire County Council,1111/1001,Children and Young People,CYP,Transport Related,CCA,14/03/2017,12-12356,1235,Eurocab 2000 Ltd
Nottinghamshire County Council,1111/1001,Children and Young People,CYP,Transport Related,CCA,14/03/2017,12-12358,380,Eurocab 2000 Ltd
Nottinghamshire County Council,1111/1001,Children and Young People,CYP,Transport Related,CCA,14/03/2017,12-12360,1430,Eurocab 2000 Ltd
Nottinghamshire County Council,1111/1001,Children and Young People,CYP,Transport Related,CCA,14/03/2017,12-12362,"1,040.00",Shiny Sky Ltd T/A A2b Cars
Nottinghamshire County Council,1111/1001,Children and Young People,CYP,Transport Related,CCA,15/03/2017,12-12390,"1,830.00",Silverdale Tours Nottm Ltd
Nottinghamshire County Council,1111/1001,Children and Young People,CYP,Transport Related,CCA,15/03/2017,12-12394,585.99,I Can Charity
Nottinghamshire County Council,1111/1001,Children and Young People,CYP,Transport Related,CCA,15/03/2017,12-12395,540,I Can Charity
Nottinghamshire County Council,1111/1001,Children and Young People,CYP,Transport Related,CCA,16/03/2017,12-12520,1890,Vallances Coaches
Nottinghamshire County Council,1111/1001,Children and Young People,CYP,Transport Related,CCA,20/03/2017,12-12539,2142,Wallis Coachways
Nottinghamshire County Council,1111/1001,Children and Young People,CYP,Transport Related,CCA,22/03/2017,12-15459,1644.72,F4Control Ltd (t/a First4care)
Nottinghamshire County Council,1111/1001,Children and Young People,CYP,Transport Related,CCA,22/03/2017,12-15468,3733.31,BN Gibson Ltd
Nottinghamshire County Council,1111/1001,Children and Young People,CYP,Transport Related,CCA,22/03/2017,12-15469,4356.89,BN Gibson Ltd
Nottinghamshire County Council,1111/1001,Children and Young People,CYP,Transport Related,CCA,22/03/2017,12-15470,"4,447.33",BN Gibson Ltd
Nottinghamshire County Council,1111/1001,Children and Young People,CYP,Transport Related,CCA,22/03/2017,12-15481,660,Forest Cars
Nottinghamshire County Council,1111/1001,Children and Young People,CYP,Transport Related,CCA,22/03/2017,12-16931,538.95,Square Peg
Nottinghamshire County Council,1111/1001,Children and Young People,CYP,Transport Related,CCA,27/03/2017,12-15706,"9,185.21",Stagecoach Services Ltd
Nottinghamshire County Council,1111/1001,Children and Young People,CYP,Transport Related,CCA,29/03/2017,12-16188,1350,Acorn Contracts
Nottinghamshire County Council,1111/1001,Children and Young People,CYP,Transport Related,CCA,29/03/2017,12-16190,"2,560.35",Butler Brothers Ltd
Nottinghamshire County Council,1111/1001,Children and Young People,CYP,Transport Related,CCA,29/03/2017,12-16191,"3,755.18",Butler Brothers Ltd
Nottinghamshire County Council,1111/1001,Children and Young People,CYP,Transport Related,CCA,29/03/2017,12-16192,"2,389.66",Butler Brothers Ltd
Nottinghamshire County Council,1111/1001,Children and Young People,CYP,Transport Related,CCA,29/03/2017,12-16194,3413.8,Butler Brothers Ltd
Nottinghamshire County Council,1111/1001,Children and Young People,CYP,Transport Related,CCA,29/03/2017,12-16196,2389.66,Butler Brothers Ltd
Nottinghamshire County Council,1111/1001,Children and Young People,CYP,Transport Related,CCA,29/03/2017,12-16197,"1,407.00",Butler Brothers Ltd
Nottinghamshire County Council,1111/1001,Children and Young People,CYP,Transport Related,CCA,30/03/2017,12-10597,219.05,Nottm City Transport Ltd
Nottinghamshire County Council,1111/1001,Children and Young People,CYP,Transport Related,CCA,30/03/2017,12-16249,4576,Sprays Transport Ltd
Nottinghamshire County Council,1111/1001,Children and Young People,CYP,Transport Related,CCA,31/03/2017,12-16263,1135,Nottingham Coaches
Nottinghamshire County Council,1111/1001,Children and Young People,CYP,Transport Related,CDA,02/03/2017,12-10312,196.87,Arrow Specialised Transport Ltd
Nottinghamshire County Council,1111/1001,Children and Young People,CYP,Transport Related,CDA,02/03/2017,12-10405,802.31,Bridges Transport Services
Nottinghamshire County Council,1111/1001,Children and Young People,CYP,Transport Related,CDA,02/03/2017,12-10434,68.24,F4Control Ltd (t/a First4care)
Nottinghamshire County Council,1111/1001,Children and Young People,CYP,Transport Related,CDA,06/03/2017,12-10493,414.27,Southside Cars
Nottinghamshire County Council,1111/1001,Children and Young People,CYP,Transport Related,CDA,06/03/2017,12-10507,312,200 Cars Ltd
Nottinghamshire County Council,1111/1001,Children and Young People,CYP,Transport Related,CDA,06/03/2017,12-10509,308,200 Cars Ltd
Nottinghamshire County Council,1111/1001,Children and Young People,CYP,Transport Related,CDA,06/03/2017,12-10519,575,Fozcabs Newark Taxis
Nottinghamshire County Council,1111/1001,Children and Young People,CYP,Transport Related,CDA,06/03/2017,12-10527,333.3,Horizon Travel
Nottinghamshire County Council,1111/1001,Children and Young People,CYP,Transport Related,CDA,06/03/2017,12-10543,"2,285.65",Sprays Transport Ltd
Nottinghamshire County Council,1111/1001,Children and Young People,CYP,Transport Related,CDA,06/03/2017,12-10557,"2,100.00",Nottingham Minibuses & Coaches
Nottinghamshire County Council,1111/1001,Children and Young People,CYP,Transport Related,CDA,06/03/2017,12-10558,1820,Nottingham Minibuses & Coaches
Nottinghamshire County Council,1111/1001,Children and Young People,CYP,Transport Related,CDA,06/03/2017,12-10559,2691,Nottingham Minibuses & Coaches
Nottinghamshire County Council,1111/1001,Children and Young People,CYP,Transport Related,CDA,06/03/2017,12-10560,"1,425.00",Nottingham Minibuses & Coaches
Nottinghamshire County Council,1111/1001,Children and Young People,CYP,Transport Related,CDA,06/03/2017,12-10561,"1,875.00",Nottingham Minibuses & Coaches
Nottinghamshire County Council,1111/1001,Children and Young People,CYP,Transport Related,CDA,06/03/2017,12-10563,2121,Nottingham Minibuses & Coaches
Nottinghamshire County Council,1111/1001,Children and Young People,CYP,Transport Related,CDA,06/03/2017,12-10564,"1,950.00",Nottingham Minibuses & Coaches
Nottinghamshire County Council,1111/1001,Children and Young People,CYP,Transport Related,CDA,06/03/2017,12-10566,"6,889.50",Nottingham Minibuses & Coaches
Nottinghamshire County Council,1111/1001,Children and Young People,CYP,Transport Related,CDA,06/03/2017,12-10569,"1,140.00",P & P Taxis
Nottinghamshire County Council,1111/1001,Children and Young People,CYP,Transport Related,CDA,06/03/2017,12-10572,"1,260.00",P & P Taxis
Nottinghamshire County Council,1111/1001,Children and Young People,CYP,Transport Related,CDA,06/03/2017,12-10589,"7,518.00",C W Moxon Ltd
Nottinghamshire County Council,1111/1001,Children and Young People,CYP,Transport Related,CDA,06/03/2017,12-10590,"2,520.00",C W Moxon Ltd
Nottinghamshire County Council,1111/1001,Children and Young People,CYP,Transport Related,CDA,06/03/2017,12-10613,855,Forest Cars
Nottinghamshire County Council,1111/1001,Children and Young People,CYP,Transport Related,CDA,06/03/2017,12-10617,282,Forest Cars
Nottinghamshire County Council,1111/1001,Children and Young People,CYP,Transport Related,CDA,06/03/2017,12-10620,360,Forest Cars
Nottinghamshire County Council,1111/1001,Children and Young People,CYP,Transport Related,CDA,06/03/2017,12-10630,381.5,Forest Cars
Nottinghamshire County Council,1111/1001,Children and Young People,CYP,Transport Related,CDA,07/03/2017,12-10827,525,6 Five 2s
Nottinghamshire County Council,1111/1001,Children and Young People,CYP,Transport Related,CDA,07/03/2017,12-10833,312.5,Ace Of Mansfield Ltd
Nottinghamshire County Council,1111/1001,Children and Young People,CYP,Transport Related,CDA,07/03/2017,12-10853,"2,400.00",Ng11 Cars
Nottinghamshire County Council,1111/1001,Children and Young People,CYP,Transport Related,CDA,07/03/2017,12-10887,"1,494.22",BN Gibson Ltd
Nottinghamshire County Council,1111/1001,Children and Young People,CYP,Transport Related,CDA,07/03/2017,12-10891,229.79,BN Gibson Ltd
Nottinghamshire County Council,1111/1001,Children and Young People,CYP,Transport Related,CDA,07/03/2017,12-10932,1593,Tiger European Uk Ltd
Nottinghamshire County Council,1111/1001,Children and Young People,CYP,Transport Related,CDA,07/03/2017,12-10933,"1,155.00",Tiger European Uk Ltd
Nottinghamshire County Council,1111/1001,Children and Young People,CYP,Transport Related,CDA,07/03/2017,12-10939,520.87,Rio Cabs
Nottinghamshire County Council,1111/1001,Children and Young People,CYP,Transport Related,CDA,07/03/2017,12-10953,369.6,Shiny Sky Ltd T/A A2b Cars
Nottinghamshire County Council,1111/1001,Children and Young People,CYP,Transport Related,CDA,08/03/2017,12-11732,"2,706.00",AOT Coaches
Nottinghamshire County Council,1111/1001,Children and Young People,CYP,Transport Related,CDA,08/03/2017,12-11734,1650,AOT Coaches
Nottinghamshire County Council,1111/1001,Children and Young People,CYP,Transport Related,CDA,08/03/2017,12-11737,3567.2,Mass Special Engineering Ltd
Nottinghamshire County Council,1111/1001,Children and Young People,CYP,Transport Related,CDA,08/03/2017,12-11801,4793.6,Paul S Winson Coaches
Nottinghamshire County Council,1111/1001,Children and Young People,CYP,Transport Related,CDA,09/03/2017,12-12128,880,Taxicover Uk Ltd
Nottinghamshire County Council,1111/1001,Children and Young People,CYP,Transport Related,CDA,09/03/2017,12-12129,862.8,Ace Of Mansfield Ltd
Nottinghamshire County Council,1111/1001,Children and Young People,CYP,Transport Related,CDA,09/03/2017,12-12148,"1,595.00",D G Private Hire Ltd
Nottinghamshire County Council,1111/1001,Children and Young People,CYP,Transport Related,CDA,09/03/2017,12-12150,1153.88,D G Private Hire Ltd
Nottinghamshire County Council,1111/1001,Children and Young People,CYP,Transport Related,CDA,09/03/2017,12-12164,435,Abacus Cars
Nottinghamshire County Council,1111/1001,Children and Young People,CYP,Transport Related,CDA,09/03/2017,12-12170,552,Abacus Cars
Nottinghamshire County Council,1111/1001,Children and Young People,CYP,Transport Related,CDA,09/03/2017,12-12189,1440,Travel Wright Ltd
Nottinghamshire County Council,1111/1001,Children and Young People,CYP,Transport Related,CDA,10/03/2017,12-12222,961,Shelleys Taxis Ltd
Nottinghamshire County Council,1111/1001,Children and Young People,CYP,Transport Related,CDA,14/03/2017,12-12348,9030,Silverdale Tours Nottm Ltd
Nottinghamshire County Council,1111/1001,Children and Young People,CYP,Transport Related,CDA,14/03/2017,12-12355,"1,680.00",Eurocab 2000 Ltd
Nottinghamshire County Council,1111/1001,Children and Young People,CYP,Transport Related,CDA,14/03/2017,12-12357,1425,Eurocab 2000 Ltd
Nottinghamshire County Council,1111/1001,Children and Young People,CYP,Transport Related,CDA,14/03/2017,12-12358,380,Eurocab 2000 Ltd
Nottinghamshire County Council,1111/1001,Children and Young People,CYP,Transport Related,CDA,21/03/2017,12-12563,460.8,6 Five 2s
Nottinghamshire County Council,1111/1001,Children and Young People,CYP,Transport Related,CDA,21/03/2017,12-12568,"1,680.00",Eurocab 2000 Ltd
Nottinghamshire County Council,1111/1001,Children and Young People,CYP,Transport Related,CDA,22/03/2017,12-15471,51040.1,Mass Special Engineering Ltd
Nottinghamshire County Council,1111/1001,Children and Young People,CYP,Transport Related,CDA,22/03/2017,12-15481,660,Forest Cars
Nottinghamshire County Council,1111/1001,Children and Young People,CYP,Transport Related,CDA,27/03/2017,12-15707,52031.46,Stagecoach Services Ltd
Nottinghamshire County Council,1111/1001,Children and Young People,CYP,Transport Related,CDA,28/03/2017,12-16182,"114,149.91",Stagecoach Services Ltd
Nottinghamshire County Council,1111/1001,Children and Young People,CYP,Transport Related,CDA,29/03/2017,12-16198,630.06,Abacus Cars
Nottinghamshire County Council,1111/1001,Children and Young People,CYP,Transport Related,CDA,30/03/2017,12-10597,437.95,Nottm City Transport Ltd
Nottinghamshire County Council,1111/1001,Children and Young People,CYP,Transport Related,CDA,31/03/2017,12-16261,580.35,Nunns Cars
Nottinghamshire County Council,1111/1001,Children and Young People,CYP,Supplies & Services,DAA,03/03/2017,12-16545,"1,750.00",Bookworm
Nottinghamshire County Council,1111/1001,Children and Young People,CYP,Supplies & Services,DAA,06/03/2017,12-10771,600,Fountaindale Special School
Nottinghamshire County Council,1111/1001,Children and Young People,CYP,Supplies & Services,DAA,06/03/2017,12-16566,510.9,Itc First Aid Ltd
Nottinghamshire County Council,1111/1001,Children and Young People,CYP,Supplies & Services,DAA,09/03/2017,12-11709,"85,480.50",The Parkgate Academy
Nottinghamshire County Council,1111/1001,Children and Young People,CYP,Supplies & Services,DAA,20/03/2017,12-12542,"1,577.50",Calzados Boreal S.L
Nottinghamshire County Council,1111/1001,Children and Young People,CYP,Supplies & Services,DAA,22/03/2017,12-17102,541,Anthony & Pykett
Nottinghamshire County Council,1111/1001,Children and Young People,CYP,Supplies & Services,DAA,27/03/2017,12-17118,912,G & S Smirthwaite Ltd
Nottinghamshire County Council,1111/1001,Children and Young People,CYP,Supplies & Services,DAA,28/03/2017,12-17303,4060.5,Gerald Simonds Healthcare Ltd
Nottinghamshire County Council,1111/1001,Children and Young People,CYP,Supplies & Services,DAA,29/03/2017,12-17237,1844.1,Worth Publishing Ltd
Nottinghamshire County Council,1111/1001,Children and Young People,CYP,Supplies & Services,DAA,30/03/2017,12-12396,"45,406.99",Horsendale Primary School
Nottinghamshire County Council,1111/1001,Children and Young People,CYP,Supplies & Services,DAA,30/03/2017,12-12397,155258.43,Crossdale Primary School
Nottinghamshire County Council,1111/1001,Children and Young People,CYP,Supplies & Services,DAA,30/03/2017,12-12398,27082.95,Keyworth Primary & Nursery School
Nottinghamshire County Council,1111/1001,Children and Young People,CYP,Supplies & Services,DBA,03/03/2017,12-16360,234.67,Holme Pierrepont Leisure Trust
Nottinghamshire County Council,1111/1001,Children and Young People,CYP,Supplies & Services,DCA,07/03/2017,12-16632,698.09,Clean Sheet Laundry Ltd
Nottinghamshire County Council,1111/1001,Children and Young People,CYP,Supplies & Services,DCA,30/03/2017,12-16530,645.09,Clean Sheet Laundry Ltd
Nottinghamshire County Council,1111/1001,Children and Young People,CYP,Supplies & Services,DCA,30/03/2017,12-16633,727.13,Clean Sheet Laundry Ltd
Nottinghamshire County Council,1111/1001,Children and Young People,CYP,Supplies & Services,DEA,01/03/2017,12-16370,621.4,The Child Psychology Service
Nottinghamshire County Council,1111/1001,Children and Young People,CYP,Supplies & Services,DEA,01/03/2017,12-16372,615.53,Synchrony Psychology Ltd
Nottinghamshire County Council,1111/1001,Children and Young People,CYP,Supplies & Services,DEA,01/03/2017,12-16444,"2,025.00",[Redacted]
Nottinghamshire County Council,1111/1001,Children and Young People,CYP,Supplies & Services,DEA,02/03/2017,12-16373,1718.76,Chris Few Consultancy Ltd
Nottinghamshire County Council,1111/1001,Children and Young People,CYP,Supplies & Services,DEA,02/03/2017,12-16390,521,Phoenix Psychological Services Limi
Nottinghamshire County Council,1111/1001,Children and Young People,CYP,Supplies & Services,DEA,02/03/2017,12-16469,"16,162.17","Culture, Learning & Libraries (Midl"
Nottinghamshire County Council,1111/1001,Children and Young People,CYP,Supplies & Services,DEA,02/03/2017,12-16475,"2,937.50",Adoption Plus Ltd
Nottinghamshire County Council,1111/1001,Children and Young People,CYP,Supplies & Services,DEA,02/03/2017,12-16477,909,University Hospital Day Nursery Ltd
Nottinghamshire County Council,1111/1001,Children and Young People,CYP,Supplies & Services,DEA,03/03/2017,12-16371,592.25,[Redacted]
Nottinghamshire County Council,1111/1001,Children and Young People,CYP,Supplies & Services,DEA,03/03/2017,12-16400,"2,242.10",Chris Quigley Education Ltd
Nottinghamshire County Council,1111/1001,Children and Young People,CYP,Supplies & Services,DEA,03/03/2017,12-16481,"4,725.00",Schofield Education
Nottinghamshire County Council,1111/1001,Children and Young People,CYP,Supplies & Services,DEA,06/03/2017,12-16507,"1,200.00",Kate Cairns Associates Ltd
Nottinghamshire County Council,1111/1001,Children and Young People,CYP,Supplies & Services,DEA,06/03/2017,12-16585,500,[Redacted]
Nottinghamshire County Council,1111/1001,Children and Young People,CYP,Supplies & Services,DEA,07/03/2017,12-16606,"1,375.00",[Redacted]
Nottinghamshire County Council,1111/1001,Children and Young People,CYP,Supplies & Services,DEA,07/03/2017,12-16653,"2,090.00",Birgitta Lundberg Independent Socia
Nottinghamshire County Council,1111/1001,Children and Young People,CYP,Supplies & Services,DEA,07/03/2017,12-16654,"1,891.15",The Maddocks Consultancy Ltd
Nottinghamshire County Council,1111/1001,Children and Young People,CYP,Supplies & Services,DEA,07/03/2017,12-16658,"8,517.30",The Maddocks Consultancy Ltd
Nottinghamshire County Council,1111/1001,Children and Young People,CYP,Supplies & Services,DEA,09/03/2017,12-16772,"1,580.00",Creative Cascade UK Ltd
Nottinghamshire County Council,1111/1001,Children and Young People,CYP,Supplies & Services,DEA,10/03/2017,12-16771,"1,077.50",Weightmans
Nottinghamshire County Council,1111/1001,Children and Young People,CYP,Supplies & Services,DEA,10/03/2017,12-16783,"1,950.00",The Together Trust Ltd
Nottinghamshire County Council,1111/1001,Children and Young People,CYP,Supplies & Services,DEA,13/03/2017,12-16803,"1,013.12",ARC Property Services Partnership L
Nottinghamshire County Council,1111/1001,Children and Young People,CYP,Supplies & Services,DEA,13/03/2017,12-16829,"1,500.00",[Redacted]
Nottinghamshire County Council,1111/1001,Children and Young People,CYP,Supplies & Services,DEA,13/03/2017,12-16830,"1,200.00",[Redacted]
Nottinghamshire County Council,1111/1001,Children and Young People,CYP,Supplies & Services,DEA,14/03/2017,12-16749,900,[Redacted]
Nottinghamshire County Council,1111/1001,Children and Young People,CYP,Supplies & Services,DEA,14/03/2017,12-16852,800,[Redacted]
Nottinghamshire County Council,1111/1001,Children and Young People,CYP,Supplies & Services,DEA,14/03/2017,12-16855,600,FML Education Consultancy Ltd
Nottinghamshire County Council,1111/1001,Children and Young People,CYP,Supplies & Services,DEA,14/03/2017,12-16896,671.4,The Child Psychology Service
Nottinghamshire County Council,1111/1001,Children and Young People,CYP,Supplies & Services,DEA,14/03/2017,12-16900,800,[Redacted]
Nottinghamshire County Council,1111/1001,Children and Young People,CYP,Supplies & Services,DEA,15/03/2017,12-16926,"1,350.00",Katie Hunt Psychology
Nottinghamshire County Council,1111/1001,Children and Young People,CYP,Supplies & Services,DEA,15/03/2017,12-16940,850,Solo Consultancy Ltd
Nottinghamshire County Council,1111/1001,Children and Young People,CYP,Supplies & Services,DEA,16/03/2017,12-16607,"1,375.00",[Redacted]
Nottinghamshire County Council,1111/1001,Children and Young People,CYP,Supplies & Services,DEA,16/03/2017,12-16958,"3,954.52",Fountaindale Special School
Nottinghamshire County Council,1111/1001,Children and Young People,CYP,Supplies & Services,DEA,20/03/2017,12-16717,"1,500.00",B Bradshaw Associates
Nottinghamshire County Council,1111/1001,Children and Young People,CYP,Supplies & Services,DEA,20/03/2017,12-16982,"4,275.00",[Redacted]
Nottinghamshire County Council,1111/1001,Children and Young People,CYP,Supplies & Services,DEA,20/03/2017,12-16986,"1,000.00",Anna Pinkerton Ltd
Nottinghamshire County Council,1111/1001,Children and Young People,CYP,Supplies & Services,DEA,20/03/2017,12-16993,"16,162.17","Culture, Learning & Libraries (Midl"
Nottinghamshire County Council,1111/1001,Children and Young People,CYP,Supplies & Services,DEA,20/03/2017,12-17018,631.5,Ruth Pearson Training Ltd
Nottinghamshire County Council,1111/1001,Children and Young People,CYP,Supplies & Services,DEA,21/03/2017,12-17010,600,[Redacted]
Nottinghamshire County Council,1111/1001,Children and Young People,CYP,Supplies & Services,DEA,21/03/2017,12-17054,"43,000.00","Futures Advice, Skills & Employment"
Nottinghamshire County Council,1111/1001,Children and Young People,CYP,Supplies & Services,DEA,21/03/2017,12-17055,"1,013.12",ARC Property Services Partnership L
Nottinghamshire County Council,1111/1001,Children and Young People,CYP,Supplies & Services,DEA,21/03/2017,12-17056,"43,000.00","Futures Advice, Skills & Employment"
Nottinghamshire County Council,1111/1001,Children and Young People,CYP,Supplies & Services,DEA,21/03/2017,12-17057,"2,400.00",Kate Cairns Associates Ltd
Nottinghamshire County Council,1111/1001,Children and Young People,CYP,Supplies & Services,DEA,21/03/2017,12-17058,"43,000.00","Futures Advice, Skills & Employment"
Nottinghamshire County Council,1111/1001,Children and Young People,CYP,Supplies & Services,DEA,21/03/2017,12-17066,690,Safeguarding Services Ltd
Nottinghamshire County Council,1111/1001,Children and Young People,CYP,Supplies & Services,DEA,22/03/2017,12-17086,"4,275.00",[Redacted]
Nottinghamshire County Council,1111/1001,Children and Young People,CYP,Supplies & Services,DEA,22/03/2017,12-17111,518.74,Jon Ralphs Consultancy
Nottinghamshire County Council,1111/1001,Children and Young People,CYP,Supplies & Services,DEA,23/03/2017,12-17156,900,E Learning Team Ltd
Nottinghamshire County Council,1111/1001,Children and Young People,CYP,Supplies & Services,DEA,23/03/2017,12-17176,"1,098.50",J Masters T/A Systemic Family Thera
Nottinghamshire County Council,1111/1001,Children and Young People,CYP,Supplies & Services,DEA,24/03/2017,12-16466,"1,076.00",Hopscotch Early Years Consultancy
Nottinghamshire County Council,1111/1001,Children and Young People,CYP,Supplies & Services,DEA,24/03/2017,12-16715,"1,440.00",Global Mediation Ltd
Nottinghamshire County Council,1111/1001,Children and Young People,CYP,Supplies & Services,DEA,24/03/2017,12-17063,"1,800.00",E-Safety Training & Consultancy
Nottinghamshire County Council,1111/1001,Children and Young People,CYP,Supplies & Services,DEA,24/03/2017,12-17113,"1,125.00",[Redacted]
Nottinghamshire County Council,1111/1001,Children and Young People,CYP,Supplies & Services,DEA,27/03/2017,12-17272,686,[Redacted]
Nottinghamshire County Council,1111/1001,Children and Young People,CYP,Supplies & Services,DEA,28/03/2017,12-17300,"3,580.00",Kids
Nottinghamshire County Council,1111/1001,Children and Young People,CYP,Supplies & Services,DEA,29/03/2017,12-16499,"1,800.00",Kate Cairns Associates Ltd
Nottinghamshire County Council,1111/1001,Children and Young People,CYP,Supplies & Services,DEA,29/03/2017,12-17119,"12,000.00","Futures Advice, Skills & Employment"
Nottinghamshire County Council,1111/1001,Children and Young People,CYP,Supplies & Services,DEA,29/03/2017,12-17120,"7,000.00","Futures Advice, Skills & Employment"
Nottinghamshire County Council,1111/1001,Children and Young People,CYP,Supplies & Services,DEA,29/03/2017,12-17323,530.15,Pathway Care Solutions II Ltd
Nottinghamshire County Council,1111/1001,Children and Young People,CYP,Supplies & Services,DEA,29/03/2017,12-17330,"1,210.00",[Redacted]
Nottinghamshire County Council,1111/1001,Children and Young People,CYP,Supplies & Services,DEA,29/03/2017,12-17360,629.7,Pathway Care Solutions II Ltd
Nottinghamshire County Council,1111/1001,Children and Young People,CYP,Supplies & Services,DEA,30/03/2017,12-16541,"1,200.00",Rebecca Riley & Associates Ltd
Nottinghamshire County Council,1111/1001,Children and Young People,CYP,Supplies & Services,DEA,30/03/2017,12-16542,"1,200.00",Rebecca Riley & Associates Ltd
Nottinghamshire County Council,1111/1001,Children and Young People,CYP,Supplies & Services,DEA,30/03/2017,12-16587,632.55,The Child Psychology Service
Nottinghamshire County Council,1111/1001,Children and Young People,CYP,Supplies & Services,DEA,30/03/2017,12-16588,705.55,The Child Psychology Service
Nottinghamshire County Council,1111/1001,Children and Young People,CYP,Supplies & Services,DEA,30/03/2017,12-16634,600,Jenny McAuslane Private Therapist
Nottinghamshire County Council,1111/1001,Children and Young People,CYP,Supplies & Services,DEA,30/03/2017,12-16647,667.68,Newark & Sherwood District Council
Nottinghamshire County Council,1111/1001,Children and Young People,CYP,Supplies & Services,DEA,30/03/2017,12-16663,900,Global Mediation Ltd
Nottinghamshire County Council,1111/1001,Children and Young People,CYP,Supplies & Services,DEA,30/03/2017,12-16828,"1,700.63",Family Focused Ltd
Nottinghamshire County Council,1111/1001,Children and Young People,CYP,Supplies & Services,DEA,30/03/2017,12-16873,"1,981.46",Band Hatton Button Solicitors
Nottinghamshire County Council,1111/1001,Children and Young People,CYP,Supplies & Services,DEA,30/03/2017,12-17064,"2,371.88",Chris Few Consultancy Ltd
Nottinghamshire County Council,1111/1001,Children and Young People,CYP,Supplies & Services,DEA,30/03/2017,12-17123,"1,105.00",Enhance EHC Ltd
Nottinghamshire County Council,1111/1001,Children and Young People,CYP,Supplies & Services,DEA,30/03/2017,12-17128,500,Leicester City Council
Nottinghamshire County Council,1111/1001,Children and Young People,CYP,Supplies & Services,DEA,30/03/2017,12-17269,"1,157.50",[Redacted]
Nottinghamshire County Council,1111/1001,Children and Young People,CYP,Supplies & Services,DEA,30/03/2017,12-17352,"1,923.29",Beighton Painting & Decorating
Nottinghamshire County Council,1111/1001,Children and Young People,CYP,Supplies & Services,DEA,30/03/2017,12-17390,"16,162.17","Culture, Learning & Libraries (Midl"
Nottinghamshire County Council,1111/1001,Children and Young People,CYP,Supplies & Services,DEA,31/03/2017,12-17172,557.18,University Of Nottingham
Nottinghamshire County Council,1111/1001,Children and Young People,CYP,Supplies & Services,DEA,31/03/2017,12-17335,"1,350.00",[Redacted]
Nottinghamshire County Council,1111/1001,Children and Young People,CYP,Supplies & Services,DEA,31/03/2017,12-17376,850,Equation
Nottinghamshire County Council,1111/1001,Children and Young People,CYP,Supplies & Services,DEA,31/03/2017,12-17425,"4,275.00",[Redacted]
Nottinghamshire County Council,1111/1001,Children and Young People,CYP,Supplies & Services,DFA,01/03/2017,12-10264,934.55,Adept Telecom
Nottinghamshire County Council,1111/1001,Children and Young People,CYP,Supplies & Services,DFA,10/03/2017,12-12201,715.81,Lantec Services Ltd
Nottinghamshire County Council,1111/1001,Children and Young People,CYP,Supplies & Services,DFA,13/03/2017,12-12238,966.01,Adept Telecom
Nottinghamshire County Council,1111/1001,Children and Young People,CYP,Supplies & Services,DFA,13/03/2017,12-16801,"2,001.00",Softbox Ltd
Nottinghamshire County Council,1111/1001,Children and Young People,CYP,Supplies & Services,DFA,15/03/2017,12-16832,"1,350.00",Mark Wise Services
Nottinghamshire County Council,1111/1001,Children and Young People,CYP,Supplies & Services,DFA,20/03/2017,12-12534,575.28,Lantec Services Ltd
Nottinghamshire County Council,1111/1001,Children and Young People,CYP,Supplies & Services,DFA,24/03/2017,12-17238,"5,850.00",E Learning Team Ltd
Nottinghamshire County Council,1111/1001,Children and Young People,CYP,Supplies & Services,DFA,30/03/2017,12-16635,"4,800.00",Evolution Internet Ltd
Nottinghamshire County Council,1111/1001,Children and Young People,CYP,Supplies & Services,DFA,30/03/2017,12-16699,"6,999.00",Edufocus Ltd
Nottinghamshire County Council,1111/1001,Children and Young People,CYP,Supplies & Services,DHA,08/03/2017,12-16664,720,Coordination Group Publications
Nottinghamshire County Council,1111/1001,Children and Young People,CYP,Supplies & Services,DHA,21/03/2017,12-17026,"2,852.00",Fostering Network
Nottinghamshire County Council,1111/1001,Children and Young People,CYP,Supplies & Services,DHA,31/03/2017,12-16284,"5,000.00",Townrow Tiny Tots Ltd
Nottinghamshire County Council,1111/1001,Children and Young People,CYP,Supplies & Services,DKA,01/03/2017,12-16443,510,[Redacted]
Nottinghamshire County Council,1111/1001,Children and Young People,CYP,Supplies & Services,DKA,03/03/2017,12-10454,"21,452.00",Brinsley Primary School
Nottinghamshire County Council,1111/1001,Children and Young People,CYP,Supplies & Services,DKA,03/03/2017,12-10456,"1,126.86",Robin Thompson Client Account
Nottinghamshire County Council,1111/1001,Children and Young People,CYP,Supplies & Services,DKA,03/03/2017,12-16391,524.28,Rotherham Rise
Nottinghamshire County Council,1111/1001,Children and Young People,CYP,Supplies & Services,DKA,13/03/2017,12-12245,"22,795.00",Bracken Lane Primary School
Nottinghamshire County Council,1111/1001,Children and Young People,CYP,Supplies & Services,DKA,13/03/2017,12-12316,"1,500.00",Leen Mills Primary School
Nottinghamshire County Council,1111/1001,Children and Young People,CYP,Supplies & Services,DKA,15/03/2017,12-16640,"1,820.00",Teen Support Services Ltd
Nottinghamshire County Council,1111/1001,Children and Young People,CYP,Supplies & Services,DKA,27/03/2017,12-17263,"2,008.16",Framework Housing Association
Nottinghamshire County Council,1111/1001,Children and Young People,CYP,Supplies & Services,DKA,27/03/2017,12-17264,"2,121.84",Framework Housing Association
Nottinghamshire County Council,1111/1001,Children and Young People,CYP,Supplies & Services,DKA,28/03/2017,12-17268,"1,680.00",Teen Support Services Ltd
Nottinghamshire County Council,1111/1001,Children and Young People,CYP,Supplies & Services,DKA,29/03/2017,12-17331,718.91,Refuge
Nottinghamshire County Council,1111/1001,Children and Young People,CYP,Supplies & Services,DKA,29/03/2017,12-17348,95.8,Safe Haven Accommodation Ltd
Nottinghamshire County Council,1111/1001,Children and Young People,CYP,Supplies & Services,DKA,30/03/2017,12-16183,"4,565.00",Westdale Infant School
Nottinghamshire County Council,1111/1001,Children and Young People,CYP,Supplies & Services,DNA,01/03/2017,12-16442,990,Rose Callan Education Services
Nottinghamshire County Council,1111/1001,Children and Young People,CYP,Supplies & Services,DNA,02/03/2017,12-16349,"1,100.00",Ann Lugering Education Services
Nottinghamshire County Council,1111/1001,Children and Young People,CYP,Supplies & Services,DNA,30/03/2017,12-16722,990,Ann Lugering Education Services
Nottinghamshire County Council,1111/1001,Children and Young People,CYP,Third Party Payments,EAA,30/03/2017,12-17094,"1,081.08",Newark & Sherwood District Council
Nottinghamshire County Council,1111/1001,Children and Young People,CYP,Third Party Payments,EAA,31/03/2017,12-17396,"11,589.83",[Redacted]
Nottinghamshire County Council,1111/1001,Children and Young People,CYP,Third Party Payments,EAA,31/03/2017,12-17397,"10,062.96",[Redacted]
Nottinghamshire County Council,1111/1001,Children and Young People,CYP,Third Party Payments,EAA,31/03/2017,12-17399,"7,511.48",[Redacted]
Nottinghamshire County Council,1111/1001,Children and Young People,CYP,Third Party Payments,EBA,03/03/2017,12-16319,"6,566.73",Derbyshire County Council
Nottinghamshire County Council,1111/1001,Children and Young People,CYP,Third Party Payments,EBA,29/03/2017,12-16172,"10,000.41",East Leake Schools Ltd
Nottinghamshire County Council,1111/1001,Children and Young People,CYP,Third Party Payments,EBA,29/03/2017,12-16173,"17,402.29",Transform Schools
Nottinghamshire County Council,1111/1001,Children and Young People,CYP,Third Party Payments,EBA,29/03/2017,12-16174,"35,713.99",Transform Schools
Nottinghamshire County Council,1111/1001,Children and Young People,CYP,Third Party Payments,EBA,29/03/2017,12-16175,"1,398.31",Transform Schools
Nottinghamshire County Council,1111/1001,Children and Young People,CYP,Third Party Payments,EBA,29/03/2017,12-16176,"2,710.78",Transform Schools
Nottinghamshire County Council,1111/1001,Children and Young People,CYP,Third Party Payments,EBA,29/03/2017,12-16179,"1,478,100.00",Transform Schools
Nottinghamshire County Council,1111/1001,Children and Young People,CYP,Third Party Payments,EBA,29/03/2017,12-16181,"256,900.20",East Leake Schools Ltd
Nottinghamshire County Council,1111/1001,Children and Young People,CYP,Third Party Payments,EBA,29/03/2017,12-16187,"22,006.59",Transform Schools
Nottinghamshire County Council,1111/1001,Children and Young People,CYP,Third Party Payments,EBA,30/03/2017,12-16561,"4,573.00",Derbyshire County Council
Nottinghamshire County Council,1111/1001,Children and Young People,CYP,Third Party Payments,EBA,30/03/2017,12-17245,"1,914.97",Derbyshire County Council
Nottinghamshire County Council,1111/1001,Children and Young People,CYP,Third Party Payments,EBA,30/03/2017,12-17359,"1,189.76",Derbyshire County Council
Nottinghamshire County Council,1111/1001,Children and Young People,CYP,Third Party Payments,EDA,01/03/2017,12-10232,"8,544.00",Retford Oaks Academy
Nottinghamshire County Council,1111/1001,Children and Young People,CYP,Third Party Payments,EDA,01/03/2017,12-10240,"1,709.00",George Spencer Academy
Nottinghamshire County Council,1111/1001,Children and Young People,CYP,Third Party Payments,EDA,01/03/2017,12-10244,"1,830.00",St Peters C of E Academy
Nottinghamshire County Council,1111/1001,Children and Young People,CYP,Third Party Payments,EDA,01/03/2017,12-10257,"1,489.00",Sacred Heart Catholic Voluntary Aca
Nottinghamshire County Council,1111/1001,Children and Young People,CYP,Third Party Payments,EDA,01/03/2017,12-10258,"1,489.00",Holy Cross Catholic Voluntary Acade
Nottinghamshire County Council,1111/1001,Children and Young People,CYP,Third Party Payments,EDA,14/03/2017,12-10231,"4,751.00",Leverton C Of E Academy
Nottinghamshire County Council,1111/1001,Children and Young People,CYP,Third Party Payments,EDA,30/03/2017,12-10223,"11,904.00",East Leake Academy
Nottinghamshire County Council,1111/1001,Children and Young People,CYP,Third Party Payments,EDA,30/03/2017,12-10224,"7,680.00",St Josephs Catholic Primary Sch Aca
Nottinghamshire County Council,1111/1001,Children and Young People,CYP,Third Party Payments,EDA,30/03/2017,12-10225,"8,646.00",Holy Trinity Catholic Voluntary Aca
Nottinghamshire County Council,1111/1001,Children and Young People,CYP,Third Party Payments,EDA,30/03/2017,12-10226,"21,504.00",St Philip Neri with St Bede Vol Aca
Nottinghamshire County Council,1111/1001,Children and Young People,CYP,Third Party Payments,EDA,30/03/2017,12-10227,"6,300.00",All Saints Catholic Voluntary Acade
Nottinghamshire County Council,1111/1001,Children and Young People,CYP,Third Party Payments,EDA,30/03/2017,12-10228,"11,132.00",Flying High Trust Bilsthorpe High A
Nottinghamshire County Council,1111/1001,Children and Young People,CYP,Third Party Payments,EDA,30/03/2017,12-10229,"4,200.00",The Parkgate Academy
Nottinghamshire County Council,1111/1001,Children and Young People,CYP,Third Party Payments,EDA,30/03/2017,12-10230,"7,500.00",Dukeries Academy
Nottinghamshire County Council,1111/1001,Children and Young People,CYP,Third Party Payments,EDA,30/03/2017,12-10233,"8,205.00",Redhill Academy
Nottinghamshire County Council,1111/1001,Children and Young People,CYP,Third Party Payments,EDA,30/03/2017,12-10234,"6,038.00",National Church Of England Academy
Nottinghamshire County Council,1111/1001,Children and Young People,CYP,Third Party Payments,EDA,30/03/2017,12-10235,"8,930.00",The Manor Academy
Nottinghamshire County Council,1111/1001,Children and Young People,CYP,Third Party Payments,EDA,30/03/2017,12-10236,"4,800.00",Peafield Lane Academy
Nottinghamshire County Council,1111/1001,Children and Young People,CYP,Third Party Payments,EDA,30/03/2017,12-10237,"3,600.00",The Bramble Academy
Nottinghamshire County Council,1111/1001,Children and Young People,CYP,Third Party Payments,EDA,30/03/2017,12-10238,"1,741.00",Fairfield Primary Academy
Nottinghamshire County Council,1111/1001,Children and Young People,CYP,Third Party Payments,EDA,30/03/2017,12-10239,"1,730.00",Sunnyside Spencer Academy
Nottinghamshire County Council,1111/1001,Children and Young People,CYP,Third Party Payments,EDA,30/03/2017,12-10241,"2,143.00",Heymann Primary School
Nottinghamshire County Council,1111/1001,Children and Young People,CYP,Third Party Payments,EDA,30/03/2017,12-10242,"1,385.00",Greythorn Primary Academy
Nottinghamshire County Council,1111/1001,Children and Young People,CYP,Third Party Payments,EDA,30/03/2017,12-10243,"1,930.00",Toothill Academy
Nottinghamshire County Council,1111/1001,Children and Young People,CYP,Third Party Payments,EDA,30/03/2017,12-10245,"2,100.00",Robert Miles Junior School
Nottinghamshire County Council,1111/1001,Children and Young People,CYP,Third Party Payments,EDA,30/03/2017,12-10246,"1,930.00",Cropwell Bishop Primary School Acad
Nottinghamshire County Council,1111/1001,Children and Young People,CYP,Third Party Payments,EDA,30/03/2017,12-10247,"1,830.00",Archbishop Cranmer C of E Academy
Nottinghamshire County Council,1111/1001,Children and Young People,CYP,Third Party Payments,EDA,30/03/2017,12-10248,"1,125.00",Tollerton Primary School
Nottinghamshire County Council,1111/1001,Children and Young People,CYP,Third Party Payments,EDA,30/03/2017,12-10249,"1,125.00",Crossdale Primary School
Nottinghamshire County Council,1111/1001,Children and Young People,CYP,Third Party Payments,EDA,30/03/2017,12-10250,"1,874.00",Keyworth Primary & Nursery School
Nottinghamshire County Council,1111/1001,Children and Young People,CYP,Third Party Payments,EDA,30/03/2017,12-10251,505,The Parkgate Academy
Nottinghamshire County Council,1111/1001,Children and Young People,CYP,Third Party Payments,EDA,30/03/2017,12-10252,505,Flying High Trust Bilsthorpe High A
Nottinghamshire County Council,1111/1001,Children and Young People,CYP,Third Party Payments,EDA,30/03/2017,12-10253,505,Dukeries Academy
Nottinghamshire County Council,1111/1001,Children and Young People,CYP,Third Party Payments,EDA,30/03/2017,12-10254,"7,484.00",Candleby Lane School
Nottinghamshire County Council,1111/1001,Children and Young People,CYP,Third Party Payments,EDA,30/03/2017,12-10255,"4,865.00",South Nottinghamshire Academy
Nottinghamshire County Council,1111/1001,Children and Young People,CYP,Third Party Payments,EDA,30/03/2017,12-10256,"1,489.00",Good Shephard Prim Catholic Vol Aca
Nottinghamshire County Council,1111/1001,Children and Young People,CYP,Third Party Payments,EDA,30/03/2017,12-10259,"1,914.00",Christ The King Catholic Voluntary
Nottinghamshire County Council,1111/1001,Children and Young People,CYP,Third Party Payments,EFA,01/03/2017,12-10047,"25,141.00",Killisick Junior Academy
Nottinghamshire County Council,1111/1001,Children and Young People,CYP,Third Party Payments,EFA,01/03/2017,12-16351,935,New College Worcester
Nottinghamshire County Council,1111/1001,Children and Young People,CYP,Third Party Payments,EFA,01/03/2017,12-16427,"11,632.00",Sutherland House Trading Ltd
Nottinghamshire County Council,1111/1001,Children and Young People,CYP,Third Party Payments,EFA,01/03/2017,12-16428,"16,267.00",Sutherland House Trading Ltd
Nottinghamshire County Council,1111/1001,Children and Young People,CYP,Third Party Payments,EFA,01/03/2017,12-16429,"11,632.00",Sutherland House Trading Ltd
Nottinghamshire County Council,1111/1001,Children and Young People,CYP,Third Party Payments,EFA,01/03/2017,12-16431,"11,632.00",Sutherland House Trading Ltd
Nottinghamshire County Council,1111/1001,Children and Young People,CYP,Third Party Payments,EFA,01/03/2017,12-16432,"11,632.00",Sutherland House Trading Ltd
Nottinghamshire County Council,1111/1001,Children and Young People,CYP,Third Party Payments,EFA,01/03/2017,12-16433,"15,907.00",Sutherland House Trading Ltd
Nottinghamshire County Council,1111/1001,Children and Young People,CYP,Third Party Payments,EFA,01/03/2017,12-16434,"4,694.79",Castle Homes Care Ltd
Nottinghamshire County Council,1111/1001,Children and Young People,CYP,Third Party Payments,EFA,01/03/2017,12-16435,"10,140.00",Creative Family Solutions Ltd
Nottinghamshire County Council,1111/1001,Children and Young People,CYP,Third Party Payments,EFA,01/03/2017,12-16438,"1,410.25",Independant Educational Services Lt
Nottinghamshire County Council,1111/1001,Children and Young People,CYP,Third Party Payments,EFA,01/03/2017,12-16439,"9,871.75",Independant Educational Services Lt
Nottinghamshire County Council,1111/1001,Children and Young People,CYP,Third Party Payments,EFA,01/03/2017,12-16440,"1,410.25",Independant Educational Services Lt
Nottinghamshire County Council,1111/1001,Children and Young People,CYP,Third Party Payments,EFA,01/03/2017,12-16445,"10,133.32",Nisai Virtual Academy Ltd
Nottinghamshire County Council,1111/1001,Children and Young People,CYP,Third Party Payments,EFA,02/03/2017,12-16322,648,Crisp Vocational Provision Ltd
Nottinghamshire County Council,1111/1001,Children and Young People,CYP,Third Party Payments,EFA,02/03/2017,12-16326,"4,735.00",Brooksby Melton College
Nottinghamshire County Council,1111/1001,Children and Young People,CYP,Third Party Payments,EFA,02/03/2017,12-16333,"277,618.00",Portland College
Nottinghamshire County Council,1111/1001,Children and Young People,CYP,Third Party Payments,EFA,02/03/2017,12-16407,"1,575.00",Stone Soup Academy
Nottinghamshire County Council,1111/1001,Children and Young People,CYP,Third Party Payments,EFA,02/03/2017,12-16422,"7,455.00",Stone Soup Academy
Nottinghamshire County Council,1111/1001,Children and Young People,CYP,Third Party Payments,EFA,03/03/2017,12-16346,"4,495.00",First Universal Enterprises Ltd
Nottinghamshire County Council,1111/1001,Children and Young People,CYP,Third Party Payments,EFA,03/03/2017,12-16381,"2,000.00",Jubilee House Christian School
Nottinghamshire County Council,1111/1001,Children and Young People,CYP,Third Party Payments,EFA,03/03/2017,12-16550,"5,743.70",Teaching Personnel Ltd
Nottinghamshire County Council,1111/1001,Children and Young People,CYP,Third Party Payments,EFA,03/03/2017,12-16551,"5,743.70",Teaching Personnel Ltd
Nottinghamshire County Council,1111/1001,Children and Young People,CYP,Third Party Payments,EFA,07/03/2017,12-16625,564.1,Independant Educational Services Lt
Nottinghamshire County Council,1111/1001,Children and Young People,CYP,Third Party Payments,EFA,07/03/2017,12-16627,"9,222.00",Homefield College Ltd
Nottinghamshire County Council,1111/1001,Children and Young People,CYP,Third Party Payments,EFA,08/03/2017,12-16636,"6,783.50",Hope House School Ltd
Nottinghamshire County Council,1111/1001,Children and Young People,CYP,Third Party Payments,EFA,08/03/2017,12-16637,"1,160.00",Hope House School Ltd
Nottinghamshire County Council,1111/1001,Children and Young People,CYP,Third Party Payments,EFA,08/03/2017,12-16660,532.55,V M Smith T/A COTAS
Nottinghamshire County Council,1111/1001,Children and Young People,CYP,Third Party Payments,EFA,08/03/2017,12-16675,"5,743.70",Teaching Personnel Ltd
Nottinghamshire County Council,1111/1001,Children and Young People,CYP,Third Party Payments,EFA,08/03/2017,12-16676,"1,410.25",Independant Educational Services Lt
Nottinghamshire County Council,1111/1001,Children and Young People,CYP,Third Party Payments,EFA,08/03/2017,12-16678,"1,410.25",Independant Educational Services Lt
Nottinghamshire County Council,1111/1001,Children and Young People,CYP,Third Party Payments,EFA,08/03/2017,12-16679,"1,410.25",Independant Educational Services Lt
Nottinghamshire County Council,1111/1001,Children and Young People,CYP,Third Party Payments,EFA,09/03/2017,12-16485,"8,034.00",Horizon Care & Education Group Ltd
Nottinghamshire County Council,1111/1001,Children and Young People,CYP,Third Party Payments,EFA,09/03/2017,12-16770,"3,600.00",Good Apple Education
Nottinghamshire County Council,1111/1001,Children and Young People,CYP,Third Party Payments,EFA,10/03/2017,12-16745,"2,040.00",Fresh Start in Education Ltd
Nottinghamshire County Council,1111/1001,Children and Young People,CYP,Third Party Payments,EFA,10/03/2017,12-16746,"4,234.00",Alternative Programme Education Ltd
Nottinghamshire County Council,1111/1001,Children and Young People,CYP,Third Party Payments,EFA,10/03/2017,12-16767,"3,000.00",Rainbow Horses Learning Centre
Nottinghamshire County Council,1111/1001,Children and Young People,CYP,Third Party Payments,EFA,14/03/2017,12-16838,"2,327.00",A Place To Call Our Own Ltd
Nottinghamshire County Council,1111/1001,Children and Young People,CYP,Third Party Payments,EFA,14/03/2017,12-16864,"1,105.75",Alternative Programme Education Ltd
Nottinghamshire County Council,1111/1001,Children and Young People,CYP,Third Party Payments,EFA,15/03/2017,12-16891,"5,068.76",First Class Tailored Solutions Ltd
Nottinghamshire County Council,1111/1001,Children and Young People,CYP,Third Party Payments,EFA,16/03/2017,12-16890,"56,920.25",First Class Tailored Solutions Ltd
Nottinghamshire County Council,1111/1001,Children and Young People,CYP,Third Party Payments,EFA,16/03/2017,12-16892,690.55,First Class Tailored Solutions Ltd
Nottinghamshire County Council,1111/1001,Children and Young People,CYP,Third Party Payments,EFA,16/03/2017,12-16932,"1,074.00",A Place To Call Our Own Ltd
Nottinghamshire County Council,1111/1001,Children and Young People,CYP,Third Party Payments,EFA,16/03/2017,12-16935,"6,825.00",I Can Services Ltd
Nottinghamshire County Council,1111/1001,Children and Young People,CYP,Third Party Payments,EFA,16/03/2017,12-16936,"6,825.00",I Can Services Ltd
Nottinghamshire County Council,1111/1001,Children and Young People,CYP,Third Party Payments,EFA,16/03/2017,12-16957,"27,454.60",Real Education Ltd
Nottinghamshire County Council,1111/1001,Children and Young People,CYP,Third Party Payments,EFA,20/03/2017,12-17005,"15,941.54",Sutherland House Trading Ltd
Nottinghamshire County Council,1111/1001,Children and Young People,CYP,Third Party Payments,EFA,20/03/2017,12-17020,"3,555.00",Good Apple Education
Nottinghamshire County Council,1111/1001,Children and Young People,CYP,Third Party Payments,EFA,21/03/2017,12-16894,"32,000.00",Strachan Football Foundation Commun
Nottinghamshire County Council,1111/1001,Children and Young People,CYP,Third Party Payments,EFA,21/03/2017,12-17029,"4,120.00",Horizon Care & Education Group Ltd
Nottinghamshire County Council,1111/1001,Children and Young People,CYP,Third Party Payments,EFA,21/03/2017,12-17035,522,Teaching Personnel Ltd
Nottinghamshire County Council,1111/1001,Children and Young People,CYP,Third Party Payments,EFA,21/03/2017,12-17036,"5,743.70",Teaching Personnel Ltd
Nottinghamshire County Council,1111/1001,Children and Young People,CYP,Third Party Payments,EFA,22/03/2017,12-17003,"13,055.25",Horizon Care & Education Group Ltd
Nottinghamshire County Council,1111/1001,Children and Young People,CYP,Third Party Payments,EFA,22/03/2017,12-17030,"6,695.00",Horizon Care & Education Group Ltd
Nottinghamshire County Council,1111/1001,Children and Young People,CYP,Third Party Payments,EFA,22/03/2017,12-17091,"13,061.54",Sutherland House Trading Ltd
Nottinghamshire County Council,1111/1001,Children and Young People,CYP,Third Party Payments,EFA,23/03/2017,12-17017,"3,900.00",Rainbow Horses Learning Centre
Nottinghamshire County Council,1111/1001,Children and Young People,CYP,Third Party Payments,EFA,23/03/2017,12-17067,"35,923.00",First Class Tailored Solutions Ltd
Nottinghamshire County Council,1111/1001,Children and Young People,CYP,Third Party Payments,EFA,23/03/2017,12-17068,"1,500.00",First Class Tailored Solutions Ltd
Nottinghamshire County Council,1111/1001,Children and Young People,CYP,Third Party Payments,EFA,23/03/2017,12-17138,"5,715.40",Castle Homes Care Ltd
Nottinghamshire County Council,1111/1001,Children and Young People,CYP,Third Party Payments,EFA,23/03/2017,12-17144,"5,743.70",Teaching Personnel Ltd
Nottinghamshire County Council,1111/1001,Children and Young People,CYP,Third Party Payments,EFA,23/03/2017,12-17145,"8,758.63",Nova Centric Ltd
Nottinghamshire County Council,1111/1001,Children and Young People,CYP,Third Party Payments,EFA,23/03/2017,12-17152,"3,179.30",Alternative Programme Education Ltd
Nottinghamshire County Council,1111/1001,Children and Young People,CYP,Third Party Payments,EFA,24/03/2017,12-17177,"39,300.00",REAL Independent School Ltd
Nottinghamshire County Council,1111/1001,Children and Young People,CYP,Third Party Payments,EFA,24/03/2017,12-17204,800,"Culture, Learning & Libraries (Midl"
Nottinghamshire County Council,1111/1001,Children and Young People,CYP,Third Party Payments,EFA,24/03/2017,12-17221,"18,332.50",Wings Education Ltd
Nottinghamshire County Council,1111/1001,Children and Young People,CYP,Third Party Payments,EFA,27/03/2017,12-17232,"17,047.20",Landmarks Ltd
Nottinghamshire County Council,1111/1001,Children and Young People,CYP,Third Party Payments,EFA,27/03/2017,12-17251,"3,700.00",CAST Angling Projects
Nottinghamshire County Council,1111/1001,Children and Young People,CYP,Third Party Payments,EFA,27/03/2017,12-17252,"4,450.00",CAST Angling Projects
Nottinghamshire County Council,1111/1001,Children and Young People,CYP,Third Party Payments,EFA,28/03/2017,12-16871,"1,350.00",The Huntercome Group
Nottinghamshire County Council,1111/1001,Children and Young People,CYP,Third Party Payments,EFA,28/03/2017,12-17285,"48,580.12",Real Education Ltd
Nottinghamshire County Council,1111/1001,Children and Young People,CYP,Third Party Payments,EFA,28/03/2017,12-17305,"7,800.00",First Class Tailored Solutions Ltd
Nottinghamshire County Council,1111/1001,Children and Young People,CYP,Third Party Payments,EFA,28/03/2017,12-17306,"67,217.00",First Class Tailored Solutions Ltd
Nottinghamshire County Council,1111/1001,Children and Young People,CYP,Third Party Payments,EFA,28/03/2017,12-17307,"6,681.98",Real Education Ltd
Nottinghamshire County Council,1111/1001,Children and Young People,CYP,Third Party Payments,EFA,28/03/2017,12-17308,750,[Redacted]
Nottinghamshire County Council,1111/1001,Children and Young People,CYP,Third Party Payments,EFA,28/03/2017,12-17313,"2,500.00",First Class Tailored Solutions Ltd
Nottinghamshire County Council,1111/1001,Children and Young People,CYP,Third Party Payments,EFA,29/03/2017,12-17317,"10,908.14",Wings Education Ltd
Nottinghamshire County Council,1111/1001,Children and Young People,CYP,Third Party Payments,EFA,29/03/2017,12-17326,"1,000.00",First Class Tailored Solutions Ltd
Nottinghamshire County Council,1111/1001,Children and Young People,CYP,Third Party Payments,EFA,29/03/2017,12-17334,"40,823.59","Culture, Learning & Libraries (Midl"
Nottinghamshire County Council,1111/1001,Children and Young People,CYP,Third Party Payments,EFA,29/03/2017,12-17336,560,A Place To Call Our Own Ltd
Nottinghamshire County Council,1111/1001,Children and Young People,CYP,Third Party Payments,EFA,29/03/2017,12-17355,"5,743.70",Teaching Personnel Ltd
Nottinghamshire County Council,1111/1001,Children and Young People,CYP,Third Party Payments,EFA,30/03/2017,12-16495,"2,338.00",Royal School For The Deaf
Nottinghamshire County Council,1111/1001,Children and Young People,CYP,Third Party Payments,EFA,30/03/2017,12-16638,"15,542.00",Portland College
Nottinghamshire County Council,1111/1001,Children and Young People,CYP,Third Party Payments,EFA,30/03/2017,12-16893,"5,325.00",Stone Soup Academy
Nottinghamshire County Council,1111/1001,Children and Young People,CYP,Third Party Payments,EFA,30/03/2017,12-16945,"1,125.00",Stone Soup Academy
Nottinghamshire County Council,1111/1001,Children and Young People,CYP,Third Party Payments,EFA,30/03/2017,12-17228,"7,105.00",Hope House School Ltd
Nottinghamshire County Council,1111/1001,Children and Young People,CYP,Third Party Payments,EFA,30/03/2017,12-17229,"14,210.52",Hope House School Ltd
Nottinghamshire County Council,1111/1001,Children and Young People,CYP,Third Party Payments,EFA,30/03/2017,12-17230,"6,277.00",Hope House School Ltd
Nottinghamshire County Council,1111/1001,Children and Young People,CYP,Third Party Payments,EFA,30/03/2017,12-17301,"15,631.44",Wilds Lodge School
Nottinghamshire County Council,1111/1001,Children and Young People,CYP,Third Party Payments,EFA,30/03/2017,12-17379,"3,060.00",Fresh Start in Education Ltd
Nottinghamshire County Council,1111/1001,Children and Young People,CYP,Third Party Payments,EFA,31/03/2017,12-17405,"9,120.11",I Can Services Ltd
Nottinghamshire County Council,1111/1001,Children and Young People,CYP,Third Party Payments,EGA,01/03/2017,12-10087,"4,559.66",Costock Pre School
Nottinghamshire County Council,1111/1001,Children and Young People,CYP,Third Party Payments,EGA,01/03/2017,12-10088,"1,679.70",Christ Church C Of E Infant School
Nottinghamshire County Council,1111/1001,Children and Young People,CYP,Third Party Payments,EGA,01/03/2017,12-10089,"3,900.21",Stanhope Primary School
Nottinghamshire County Council,1111/1001,Children and Young People,CYP,Third Party Payments,EGA,01/03/2017,12-10090,839.85,Selston C Of E Infant School
Nottinghamshire County Council,1111/1001,Children and Young People,CYP,Third Party Payments,EGA,01/03/2017,12-10091,"10,078.20",Netherfield Primary School
Nottinghamshire County Council,1111/1001,Children and Young People,CYP,Third Party Payments,EGA,01/03/2017,12-10092,839.85,King Edward Primary School
Nottinghamshire County Council,1111/1001,Children and Young People,CYP,Third Party Payments,EGA,01/03/2017,12-10093,"10,078.20",Blidworth Oaks Primary School
Nottinghamshire County Council,1111/1001,Children and Young People,CYP,Third Party Payments,EGA,01/03/2017,12-10094,"13,437.60",Abbey Hill Primary & Nursery School
Nottinghamshire County Council,1111/1001,Children and Young People,CYP,Third Party Payments,EGA,01/03/2017,12-10095,"11,421.96",Ordsall Primary School
Nottinghamshire County Council,1111/1001,Children and Young People,CYP,Third Party Payments,EGA,01/03/2017,12-10096,"3,359.40",Robert Mellors Primary School
Nottinghamshire County Council,1111/1001,Children and Young People,CYP,Third Party Payments,EGA,01/03/2017,12-16426,835.25,Sensory Learning & Play CIC
Nottinghamshire County Council,1111/1001,Children and Young People,CYP,Third Party Payments,EGA,01/03/2017,12-16448,"16,188.54",Scope
Nottinghamshire County Council,1111/1001,Children and Young People,CYP,Third Party Payments,EGA,01/03/2017,12-16449,"3,210.67",Compass Fostering Central Ltd
Nottinghamshire County Council,1111/1001,Children and Young People,CYP,Third Party Payments,EGA,01/03/2017,12-16451,"2,485.68",Compass Fostering Central Ltd
Nottinghamshire County Council,1111/1001,Children and Young People,CYP,Third Party Payments,EGA,01/03/2017,12-16455,"3,210.67",Compass Fostering Central Ltd
Nottinghamshire County Council,1111/1001,Children and Young People,CYP,Third Party Payments,EGA,02/03/2017,12-10288,"2,650.53",Arnold View Pre-School
Nottinghamshire County Council,1111/1001,Children and Young People,CYP,Third Party Payments,EGA,02/03/2017,12-10289,837,Jesters Childcare Ltd
Nottinghamshire County Council,1111/1001,Children and Young People,CYP,Third Party Payments,EGA,02/03/2017,12-16298,"58,750.00",Nottm Community Housing Assoc
Nottinghamshire County Council,1111/1001,Children and Young People,CYP,Third Party Payments,EGA,02/03/2017,12-16340,"6,775.67",Banya Family Placement Agency Ltd
Nottinghamshire County Council,1111/1001,Children and Young People,CYP,Third Party Payments,EGA,02/03/2017,12-16387,"113,725.69",G4S Care & Justice Services (UK) Li
Nottinghamshire County Council,1111/1001,Children and Young People,CYP,Third Party Payments,EGA,02/03/2017,12-16389,"33,390.55",Absolute Children�s Services Ltd
Nottinghamshire County Council,1111/1001,Children and Young People,CYP,Third Party Payments,EGA,02/03/2017,12-16392,"34,875.01",Nottinghamshire YMCA (HO)
Nottinghamshire County Council,1111/1001,Children and Young People,CYP,Third Party Payments,EGA,02/03/2017,12-16412,"1,171.88",Nottingham Mencap
Nottinghamshire County Council,1111/1001,Children and Young People,CYP,Third Party Payments,EGA,02/03/2017,12-16413,"1,126.13",Nottingham Mencap
Nottinghamshire County Council,1111/1001,Children and Young People,CYP,Third Party Payments,EGA,02/03/2017,12-16414,784.38,Nottingham Mencap
Nottinghamshire County Council,1111/1001,Children and Young People,CYP,Third Party Payments,EGA,02/03/2017,12-16415,"1,968.75",Nottingham Mencap
Nottinghamshire County Council,1111/1001,Children and Young People,CYP,Third Party Payments,EGA,02/03/2017,12-16423,"27,243.96",Treehouse Care Fostering Solutions
Nottinghamshire County Council,1111/1001,Children and Young People,CYP,Third Party Payments,EGA,02/03/2017,12-16463,"3,000.00","Futures Advice, Skills & Employment"
Nottinghamshire County Council,1111/1001,Children and Young People,CYP,Third Party Payments,EGA,02/03/2017,12-16474,600,JPAC Ltd
Nottinghamshire County Council,1111/1001,Children and Young People,CYP,Third Party Payments,EGA,03/03/2017,12-10457,909.84,Stanhope Primary School
Nottinghamshire County Council,1111/1001,Children and Young People,CYP,Third Party Payments,EGA,03/03/2017,12-10458,839.85,Ordsall Primary School
Nottinghamshire County Council,1111/1001,Children and Young People,CYP,Third Party Payments,EGA,03/03/2017,12-10459,839.85,North Clifton Primary School
Nottinghamshire County Council,1111/1001,Children and Young People,CYP,Third Party Payments,EGA,03/03/2017,12-16376,"9,600.08",Chrysalis Consortium Ltd
Nottinghamshire County Council,1111/1001,Children and Young People,CYP,Third Party Payments,EGA,03/03/2017,12-16418,"32,653.76",Total Care Matters Ltd
Nottinghamshire County Council,1111/1001,Children and Young People,CYP,Third Party Payments,EGA,03/03/2017,12-16522,"3,195.92",Fosterplus Ltd
Nottinghamshire County Council,1111/1001,Children and Young People,CYP,Third Party Payments,EGA,03/03/2017,12-16531,"22,321.04",Teen Support Services Ltd
Nottinghamshire County Council,1111/1001,Children and Young People,CYP,Third Party Payments,EGA,03/03/2017,12-16532,"3,321.34",Teen Support Services Ltd
Nottinghamshire County Council,1111/1001,Children and Young People,CYP,Third Party Payments,EGA,03/03/2017,12-16538,"18,948.00",Barnardos Family Placement Unit
Nottinghamshire County Council,1111/1001,Children and Young People,CYP,Third Party Payments,EGA,03/03/2017,12-16546,"3,000.00",Hope Fostering Services Ltd
Nottinghamshire County Council,1111/1001,Children and Young People,CYP,Third Party Payments,EGA,06/03/2017,12-16497,"13,800.00",Caldecott Foundation Ltd
Nottinghamshire County Council,1111/1001,Children and Young People,CYP,Third Party Payments,EGA,06/03/2017,12-16527,"3,780.00",Unique Care Homes Support Ltd
Nottinghamshire County Council,1111/1001,Children and Young People,CYP,Third Party Payments,EGA,06/03/2017,12-16576,"2,622.96",Inspire Supported Accommodation Ltd
Nottinghamshire County Council,1111/1001,Children and Young People,CYP,Third Party Payments,EGA,06/03/2017,12-16577,"903,407.67",Nottinghamshire Healthcare Nhs F Tr
Nottinghamshire County Council,1111/1001,Children and Young People,CYP,Third Party Payments,EGA,06/03/2017,12-16579,"34,618.42","Culture, Learning & Libraries (Midl"
Nottinghamshire County Council,1111/1001,Children and Young People,CYP,Third Party Payments,EGA,07/03/2017,12-16611,"68,083.33",Framework Housing Association
Nottinghamshire County Council,1111/1001,Children and Young People,CYP,Third Party Payments,EGA,07/03/2017,12-16612,"38,250.00",Framework Housing Association
Nottinghamshire County Council,1111/1001,Children and Young People,CYP,Third Party Payments,EGA,08/03/2017,12-16620,"3,012.75",Portland College
Nottinghamshire County Council,1111/1001,Children and Young People,CYP,Third Party Payments,EGA,08/03/2017,12-16655,"3,158.55",TACT
Nottinghamshire County Council,1111/1001,Children and Young People,CYP,Third Party Payments,EGA,08/03/2017,12-16656,"3,349.50",TACT
Nottinghamshire County Council,1111/1001,Children and Young People,CYP,Third Party Payments,EGA,08/03/2017,12-16657,"3,362.88",TACT
Nottinghamshire County Council,1111/1001,Children and Young People,CYP,Third Party Payments,EGA,08/03/2017,12-16662,"13,600.16",Hope Fostering Services Ltd
Nottinghamshire County Council,1111/1001,Children and Young People,CYP,Third Party Payments,EGA,08/03/2017,12-16694,"48,776.40",Fostering Solutions Ltd
Nottinghamshire County Council,1111/1001,Children and Young People,CYP,Third Party Payments,EGA,08/03/2017,12-16716,"5,951.04",Fostering People Ltd
Nottinghamshire County Council,1111/1001,Children and Young People,CYP,Third Party Payments,EGA,09/03/2017,12-16726,"2,899.96",Compass Fostering Central Ltd
Nottinghamshire County Council,1111/1001,Children and Young People,CYP,Third Party Payments,EGA,09/03/2017,12-16727,"2,899.96",Compass Fostering Central Ltd
Nottinghamshire County Council,1111/1001,Children and Young People,CYP,Third Party Payments,EGA,09/03/2017,12-16730,"13,333.33",Remedi
Nottinghamshire County Council,1111/1001,Children and Young People,CYP,Third Party Payments,EGA,09/03/2017,12-16736,"29,850.07",Compass Fostering Central Ltd
Nottinghamshire County Council,1111/1001,Children and Young People,CYP,Third Party Payments,EGA,10/03/2017,12-16643,"7,200.04",PCT Care Services Ltd
Nottinghamshire County Council,1111/1001,Children and Young People,CYP,Third Party Payments,EGA,10/03/2017,12-16692,"1,416.00",Youth Justice Board For England & W
Nottinghamshire County Council,1111/1001,Children and Young People,CYP,Third Party Payments,EGA,10/03/2017,12-16693,"1,416.00",Youth Justice Board For England & W
Nottinghamshire County Council,1111/1001,Children and Young People,CYP,Third Party Payments,EGA,10/03/2017,12-16766,"11,505.34",Integrated Services Programme
Nottinghamshire County Council,1111/1001,Children and Young People,CYP,Third Party Payments,EGA,10/03/2017,12-16768,"2,833.85",Acorn Fostering Services Ltd
Nottinghamshire County Council,1111/1001,Children and Young People,CYP,Third Party Payments,EGA,10/03/2017,12-16785,"3,503.50",Fostering Dimensions Ltd
Nottinghamshire County Council,1111/1001,Children and Young People,CYP,Third Party Payments,EGA,10/03/2017,12-16800,"25,462.00",The Place Young Peoples Company Ltd
Nottinghamshire County Council,1111/1001,Children and Young People,CYP,Third Party Payments,EGA,13/03/2017,12-16819,"19,220.60",Team Fostering
Nottinghamshire County Council,1111/1001,Children and Young People,CYP,Third Party Payments,EGA,14/03/2017,12-16831,"2,876.44",Parallel Parents
Nottinghamshire County Council,1111/1001,Children and Young People,CYP,Third Party Payments,EGA,14/03/2017,12-16842,"2,802.80",Fostering Dimensions Ltd
Nottinghamshire County Council,1111/1001,Children and Young People,CYP,Third Party Payments,EGA,14/03/2017,12-16878,"3,195.92",Parallel Parents
Nottinghamshire County Council,1111/1001,Children and Young People,CYP,Third Party Payments,EGA,14/03/2017,12-16889,"16,514.32",Regional Foster Placements Ltd
Nottinghamshire County Council,1111/1001,Children and Young People,CYP,Third Party Payments,EGA,14/03/2017,12-16898,"9,000.00",Hexagon Care Services Ltd
Nottinghamshire County Council,1111/1001,Children and Young People,CYP,Third Party Payments,EGA,14/03/2017,12-16899,"17,490.00",Hexagon Care Services Ltd
Nottinghamshire County Council,1111/1001,Children and Young People,CYP,Third Party Payments,EGA,14/03/2017,12-16901,"59,349.80",The National Fostering Agency
Nottinghamshire County Council,1111/1001,Children and Young People,CYP,Third Party Payments,EGA,15/03/2017,12-16908,"15,084.48",Anglia Fostering Agency Ltd
Nottinghamshire County Council,1111/1001,Children and Young People,CYP,Third Party Payments,EGA,15/03/2017,12-16920,"9,742.68",Jani Homes Ltd
Nottinghamshire County Council,1111/1001,Children and Young People,CYP,Third Party Payments,EGA,15/03/2017,12-16933,"1,037.00",South Yorkshire Housing Association
Nottinghamshire County Council,1111/1001,Children and Young People,CYP,Third Party Payments,EGA,15/03/2017,12-16938,"3,764.29",Five Rivers Child Care Ltd
Nottinghamshire County Council,1111/1001,Children and Young People,CYP,Third Party Payments,EGA,15/03/2017,12-16939,"3,764.29",Five Rivers Child Care Ltd
Nottinghamshire County Council,1111/1001,Children and Young People,CYP,Third Party Payments,EGA,16/03/2017,12-12519,"18,795.15",Cranmer Pre-School
Nottinghamshire County Council,1111/1001,Children and Young People,CYP,Third Party Payments,EGA,16/03/2017,12-16704,922.88,Framework Housing Association
Nottinghamshire County Council,1111/1001,Children and Young People,CYP,Third Party Payments,EGA,16/03/2017,12-16705,"1,362.68",Framework Housing Association
Nottinghamshire County Council,1111/1001,Children and Young People,CYP,Third Party Payments,EGA,16/03/2017,12-16706,"1,098.72",Framework Housing Association
Nottinghamshire County Council,1111/1001,Children and Young People,CYP,Third Party Payments,EGA,16/03/2017,12-16707,"2,156.36",Framework Housing Association
Nottinghamshire County Council,1111/1001,Children and Young People,CYP,Third Party Payments,EGA,16/03/2017,12-16708,"1,509.06",Framework Housing Association
Nottinghamshire County Council,1111/1001,Children and Young People,CYP,Third Party Payments,EGA,16/03/2017,12-16709,882,Framework Housing Association
Nottinghamshire County Council,1111/1001,Children and Young People,CYP,Third Party Payments,EGA,16/03/2017,12-16710,"2,418.62",Framework Housing Association
Nottinghamshire County Council,1111/1001,Children and Young People,CYP,Third Party Payments,EGA,16/03/2017,12-16711,865.2,Framework Housing Association
Nottinghamshire County Council,1111/1001,Children and Young People,CYP,Third Party Payments,EGA,16/03/2017,12-16712,"2,689.50",Framework Housing Association
Nottinghamshire County Council,1111/1001,Children and Young People,CYP,Third Party Payments,EGA,16/03/2017,12-16713,959,Framework Housing Association
Nottinghamshire County Council,1111/1001,Children and Young People,CYP,Third Party Payments,EGA,16/03/2017,12-16714,961.62,Framework Housing Association
Nottinghamshire County Council,1111/1001,Children and Young People,CYP,Third Party Payments,EGA,16/03/2017,12-16799,"1,060.92",Framework Housing Association
Nottinghamshire County Council,1111/1001,Children and Young People,CYP,Third Party Payments,EGA,16/03/2017,12-16835,"15,980.00",Crystal Care Solutions Ltd
Nottinghamshire County Council,1111/1001,Children and Young People,CYP,Third Party Payments,EGA,16/03/2017,12-16836,"3,321.43",Crystal Care Solutions Ltd
Nottinghamshire County Council,1111/1001,Children and Young People,CYP,Third Party Payments,EGA,16/03/2017,12-16947,"3,764.29",Five Rivers Child Care Ltd
Nottinghamshire County Council,1111/1001,Children and Young People,CYP,Third Party Payments,EGA,16/03/2017,12-16948,"3,642.86",Five Rivers Child Care Ltd
Nottinghamshire County Council,1111/1001,Children and Young People,CYP,Third Party Payments,EGA,16/03/2017,12-16949,"3,764.29",Five Rivers Child Care Ltd
Nottinghamshire County Council,1111/1001,Children and Young People,CYP,Third Party Payments,EGA,16/03/2017,12-16956,"35,689.06",Fosterplus Ltd
Nottinghamshire County Council,1111/1001,Children and Young People,CYP,Third Party Payments,EGA,16/03/2017,12-16969,"2,100.00",Piers (UK) Ltd
Nottinghamshire County Council,1111/1001,Children and Young People,CYP,Third Party Payments,EGA,20/03/2017,12-12528,"6,101.85",Cedar House Day Nursery
Nottinghamshire County Council,1111/1001,Children and Young People,CYP,Third Party Payments,EGA,20/03/2017,12-16973,"22,072.00",Castle Homes Care Ltd
Nottinghamshire County Council,1111/1001,Children and Young People,CYP,Third Party Payments,EGA,20/03/2017,12-16974,"22,072.00",Castle Homes Care Ltd
Nottinghamshire County Council,1111/1001,Children and Young People,CYP,Third Party Payments,EGA,20/03/2017,12-16984,"99,509.97",Fostering People Ltd
Nottinghamshire County Council,1111/1001,Children and Young People,CYP,Third Party Payments,EGA,20/03/2017,12-17007,"6,079.54",Sunbeam Fostering Agency Ltd
Nottinghamshire County Council,1111/1001,Children and Young People,CYP,Third Party Payments,EGA,20/03/2017,12-17019,"17,908.52",Sunbeam Fostering Agency Ltd
Nottinghamshire County Council,1111/1001,Children and Young People,CYP,Third Party Payments,EGA,20/03/2017,12-17021,"17,908.52",Sunbeam Fostering Agency Ltd
Nottinghamshire County Council,1111/1001,Children and Young People,CYP,Third Party Payments,EGA,20/03/2017,12-17022,"17,908.52",Sunbeam Fostering Agency Ltd
Nottinghamshire County Council,1111/1001,Children and Young People,CYP,Third Party Payments,EGA,20/03/2017,12-17025,"17,908.52",Sunbeam Fostering Agency Ltd
Nottinghamshire County Council,1111/1001,Children and Young People,CYP,Third Party Payments,EGA,21/03/2017,12-16937,"22,213.88",Teen Support Services Ltd
Nottinghamshire County Council,1111/1001,Children and Young People,CYP,Third Party Payments,EGA,21/03/2017,12-17013,"6,079.54",Sunbeam Fostering Agency Ltd
Nottinghamshire County Council,1111/1001,Children and Young People,CYP,Third Party Payments,EGA,21/03/2017,12-17016,"6,722.57",Sunbeam Fostering Agency Ltd
Nottinghamshire County Council,1111/1001,Children and Young People,CYP,Third Party Payments,EGA,21/03/2017,12-17027,"6,722.57",Sunbeam Fostering Agency Ltd
Nottinghamshire County Council,1111/1001,Children and Young People,CYP,Third Party Payments,EGA,21/03/2017,12-17032,"6,505.71",Sunbeam Fostering Agency Ltd
Nottinghamshire County Council,1111/1001,Children and Young People,CYP,Third Party Payments,EGA,21/03/2017,12-17033,"5,883.43",Sunbeam Fostering Agency Ltd
Nottinghamshire County Council,1111/1001,Children and Young People,CYP,Third Party Payments,EGA,22/03/2017,12-15417,"6,037.43",Hickory House Day Nursery
Nottinghamshire County Council,1111/1001,Children and Young People,CYP,Third Party Payments,EGA,22/03/2017,12-15419,"1,680.00",Carlton & Gedling Day Nursery
Nottinghamshire County Council,1111/1001,Children and Young People,CYP,Third Party Payments,EGA,22/03/2017,12-15423,"1,068.90",[Redacted]
Nottinghamshire County Council,1111/1001,Children and Young People,CYP,Third Party Payments,EGA,22/03/2017,12-15426,534.45,Gognas Day Nursery Ltd
Nottinghamshire County Council,1111/1001,Children and Young People,CYP,Third Party Payments,EGA,22/03/2017,12-17070,544.05,The National Fostering Agency
Nottinghamshire County Council,1111/1001,Children and Young People,CYP,Third Party Payments,EGA,22/03/2017,12-17074,"2,829.06",The National Fostering Agency
Nottinghamshire County Council,1111/1001,Children and Young People,CYP,Third Party Payments,EGA,22/03/2017,12-17075,"1,296.00",A Place To Call Our Own Ltd
Nottinghamshire County Council,1111/1001,Children and Young People,CYP,Third Party Payments,EGA,22/03/2017,12-17082,"3,046.68",The National Fostering Agency
Nottinghamshire County Council,1111/1001,Children and Young People,CYP,Third Party Payments,EGA,22/03/2017,12-17087,"42,774.85",Fusion Fostering
Nottinghamshire County Council,1111/1001,Children and Young People,CYP,Third Party Payments,EGA,22/03/2017,12-17099,"6,675.00",Hope House School Ltd
Nottinghamshire County Council,1111/1001,Children and Young People,CYP,Third Party Payments,EGA,22/03/2017,12-17105,641.25,Sensory Learning & Play CIC
Nottinghamshire County Council,1111/1001,Children and Young People,CYP,Third Party Payments,EGA,22/03/2017,12-17106,"2,320.50",Sensory Learning & Play CIC
Nottinghamshire County Council,1111/1001,Children and Young People,CYP,Third Party Payments,EGA,22/03/2017,12-17110,"1,456.00",Sensory Learning & Play CIC
Nottinghamshire County Council,1111/1001,Children and Young People,CYP,Third Party Payments,EGA,23/03/2017,12-15578,"1,679.70",[Redacted]
Nottinghamshire County Council,1111/1001,Children and Young People,CYP,Third Party Payments,EGA,23/03/2017,12-15579,501.45,All Aboard Day Nursery
Nottinghamshire County Council,1111/1001,Children and Young People,CYP,Third Party Payments,EGA,23/03/2017,12-15580,"2,204.25",Alphabet House Day Nursery Worksop
Nottinghamshire County Council,1111/1001,Children and Young People,CYP,Third Party Payments,EGA,23/03/2017,12-15581,"1,838.70",Arnold House Day Nursery
Nottinghamshire County Council,1111/1001,Children and Young People,CYP,Third Party Payments,EGA,23/03/2017,12-15582,743.82,Arnold View Pre-School
Nottinghamshire County Council,1111/1001,Children and Young People,CYP,Third Party Payments,EGA,23/03/2017,12-15583,605.25,Balderton Pre-School
Nottinghamshire County Council,1111/1001,Children and Young People,CYP,Third Party Payments,EGA,23/03/2017,12-15584,807.95,Beacon Hill Day Nursery
Nottinghamshire County Council,1111/1001,Children and Young People,CYP,Third Party Payments,EGA,23/03/2017,12-15585,"2,635.56",Bircotes Pre-School
Nottinghamshire County Council,1111/1001,Children and Young People,CYP,Third Party Payments,EGA,23/03/2017,12-15586,955.1,Pretty Windows Ltd
Nottinghamshire County Council,1111/1001,Children and Young People,CYP,Third Party Payments,EGA,23/03/2017,12-15587,940.47,Cared 4 Ltd T/A Brookhill House Day
Nottinghamshire County Council,1111/1001,Children and Young People,CYP,Third Party Payments,EGA,23/03/2017,12-15588,855.24,Busy Bees (Daybrook)
Nottinghamshire County Council,1111/1001,Children and Young People,CYP,Third Party Payments,EGA,23/03/2017,12-15589,"1,663.20",Busy Bees Pre-School (Sutton)
Nottinghamshire County Council,1111/1001,Children and Young People,CYP,Third Party Payments,EGA,23/03/2017,12-15590,693.33,Foxy Creek Pre-School Playgroup
Nottinghamshire County Council,1111/1001,Children and Young People,CYP,Third Party Payments,EGA,23/03/2017,12-15591,881.85,Cheeky Monkeys Day Nursery
Nottinghamshire County Council,1111/1001,Children and Young People,CYP,Third Party Payments,EGA,23/03/2017,12-15592,605.4,Cherubs Childcare Centre (Mansfield
Nottinghamshire County Council,1111/1001,Children and Young People,CYP,Third Party Payments,EGA,23/03/2017,12-15593,709.5,Cherubs Day Nursery
Nottinghamshire County Council,1111/1001,Children and Young People,CYP,Third Party Payments,EGA,23/03/2017,12-15594,"1,163.10",Children 1st @ Newark Centre
Nottinghamshire County Council,1111/1001,Children and Young People,CYP,Third Party Payments,EGA,23/03/2017,12-15595,528,Breedon House Nurseries Ltd
Nottinghamshire County Council,1111/1001,Children and Young People,CYP,Third Party Payments,EGA,23/03/2017,12-15596,790.65,Breedon House Nurseries Ltd
Nottinghamshire County Council,1111/1001,Children and Young People,CYP,Third Party Payments,EGA,23/03/2017,12-15597,"1,584.30",Childrens Corner Day Nursery
Nottinghamshire County Council,1111/1001,Children and Young People,CYP,Third Party Payments,EGA,23/03/2017,12-15598,610.8,Creative Hands Childcare
Nottinghamshire County Council,1111/1001,Children and Young People,CYP,Third Party Payments,EGA,23/03/2017,12-15599,856.35,Daisies Day Nursery
Nottinghamshire County Council,1111/1001,Children and Young People,CYP,Third Party Payments,EGA,23/03/2017,12-15600,526.24,Duncroft Day Nursery Ltd
Nottinghamshire County Council,1111/1001,Children and Young People,CYP,Third Party Payments,EGA,23/03/2017,12-15602,803.6,Fernwood Day Nursery Ltd
Nottinghamshire County Council,1111/1001,Children and Young People,CYP,Third Party Payments,EGA,23/03/2017,12-15603,"1,624.50",Granby House Nursery
Nottinghamshire County Council,1111/1001,Children and Young People,CYP,Third Party Payments,EGA,23/03/2017,12-15604,"1,023.57",Hermitage Pre-School
Nottinghamshire County Council,1111/1001,Children and Young People,CYP,Third Party Payments,EGA,23/03/2017,12-15605,"2,102.40",Gognas Day Nursery Ltd
Nottinghamshire County Council,1111/1001,Children and Young People,CYP,Third Party Payments,EGA,23/03/2017,12-15606,769.89,Homestead Day Nursery Ltd
Nottinghamshire County Council,1111/1001,Children and Young People,CYP,Third Party Payments,EGA,23/03/2017,12-15607,526.35,Hucknall Day Nursery
Nottinghamshire County Council,1111/1001,Children and Young People,CYP,Third Party Payments,EGA,23/03/2017,12-15608,578.1,Tracey Hunt Childminding Service
Nottinghamshire County Council,1111/1001,Children and Young People,CYP,Third Party Payments,EGA,23/03/2017,12-15609,600.7,Inham Park Pre School Playgroup
Nottinghamshire County Council,1111/1001,Children and Young People,CYP,Third Party Payments,EGA,23/03/2017,12-15610,"1,374.30",[Redacted]
Nottinghamshire County Council,1111/1001,Children and Young People,CYP,Third Party Payments,EGA,23/03/2017,12-15611,676.5,Jubilee House Christian School
Nottinghamshire County Council,1111/1001,Children and Young People,CYP,Third Party Payments,EGA,23/03/2017,12-15612,"3,950.85",Kidzgrove
Nottinghamshire County Council,1111/1001,Children and Young People,CYP,Third Party Payments,EGA,23/03/2017,12-15613,747.45,Lambley Day Nursery Ltd
Nottinghamshire County Council,1111/1001,Children and Young People,CYP,Third Party Payments,EGA,23/03/2017,12-15614,775.22,Leahurst Road Pre-School
Nottinghamshire County Council,1111/1001,Children and Young People,CYP,Third Party Payments,EGA,23/03/2017,12-15615,874.05,Learning Ladder Childcare Ltd
Nottinghamshire County Council,1111/1001,Children and Young People,CYP,Third Party Payments,EGA,23/03/2017,12-15616,994.1,North Leverton Pre-School Playgroup
Nottinghamshire County Council,1111/1001,Children and Young People,CYP,Third Party Payments,EGA,23/03/2017,12-15617,"2,286.30",Little Kites Playgroup
Nottinghamshire County Council,1111/1001,Children and Young People,CYP,Third Party Payments,EGA,23/03/2017,12-15618,585.35,Longdale Nursery School
Nottinghamshire County Council,1111/1001,Children and Young People,CYP,Third Party Payments,EGA,23/03/2017,12-15619,528,Lowdham & Epperstone Pre-School
Nottinghamshire County Council,1111/1001,Children and Young People,CYP,Third Party Payments,EGA,23/03/2017,12-15620,"1,167.30",Oceans Day Nursery
Nottinghamshire County Council,1111/1001,Children and Young People,CYP,Third Party Payments,EGA,23/03/2017,12-15621,604.2,Papermoon Day Nursery
Nottinghamshire County Council,1111/1001,Children and Young People,CYP,Third Party Payments,EGA,23/03/2017,12-15622,766.8,Papermoon Day Nursery
Nottinghamshire County Council,1111/1001,Children and Young People,CYP,Third Party Payments,EGA,23/03/2017,12-15623,990.55,Papermoon Day Nursery
Nottinghamshire County Council,1111/1001,Children and Young People,CYP,Third Party Payments,EGA,23/03/2017,12-15624,"3,110.20",Papermoon Day Nursery Sutton In Ash
Nottinghamshire County Council,1111/1001,Children and Young People,CYP,Third Party Payments,EGA,23/03/2017,12-15625,"1,289.10",Papplewick Pre-School Playgroup
Nottinghamshire County Council,1111/1001,Children and Young People,CYP,Third Party Payments,EGA,23/03/2017,12-15626,978.51,Pre-School 345
Nottinghamshire County Council,1111/1001,Children and Young People,CYP,Third Party Payments,EGA,23/03/2017,12-15627,515.62,Puddleducks Pre-School
Nottinghamshire County Council,1111/1001,Children and Young People,CYP,Third Party Payments,EGA,23/03/2017,12-15628,"1,050.60",Rainbow Day Nursery
Nottinghamshire County Council,1111/1001,Children and Young People,CYP,Third Party Payments,EGA,23/03/2017,12-15629,809.3,Ravenshead Pre-School Playgroup
Nottinghamshire County Council,1111/1001,Children and Young People,CYP,Third Party Payments,EGA,23/03/2017,12-15630,"1,220.10",Rocking Horse Nursery Butlers Hill
Nottinghamshire County Council,1111/1001,Children and Young People,CYP,Third Party Payments,EGA,23/03/2017,12-15631,668.25,[Redacted]
Nottinghamshire County Council,1111/1001,Children and Young People,CYP,Third Party Payments,EGA,23/03/2017,12-15632,"1,207.35",Safe Haven Day Nursery
Nottinghamshire County Council,1111/1001,Children and Young People,CYP,Third Party Payments,EGA,23/03/2017,12-15633,682.5,Serendipity's Day Nursery
Nottinghamshire County Council,1111/1001,Children and Young People,CYP,Third Party Payments,EGA,23/03/2017,12-15634,"1,680.75",Shaping Futures Day Nursery
Nottinghamshire County Council,1111/1001,Children and Young People,CYP,Third Party Payments,EGA,23/03/2017,12-15635,"3,283.05",Sunnydale Nursery Ltd
Nottinghamshire County Council,1111/1001,Children and Young People,CYP,Third Party Payments,EGA,23/03/2017,12-15636,818.1,Sparkle Daycare
Nottinghamshire County Council,1111/1001,Children and Young People,CYP,Third Party Payments,EGA,23/03/2017,12-15637,616,St Giles Pre-school
Nottinghamshire County Council,1111/1001,Children and Young People,CYP,Third Party Payments,EGA,23/03/2017,12-15638,627.72,St Johns Playgroup
Nottinghamshire County Council,1111/1001,Children and Young People,CYP,Third Party Payments,EGA,23/03/2017,12-15639,"2,144.70",Stapleford Day Nursery
Nottinghamshire County Council,1111/1001,Children and Young People,CYP,Third Party Payments,EGA,23/03/2017,12-15640,704.58,Staunton Montessori Nursery School
Nottinghamshire County Council,1111/1001,Children and Young People,CYP,Third Party Payments,EGA,23/03/2017,12-15641,510.39,The Learning Tree Nursery
Nottinghamshire County Council,1111/1001,Children and Young People,CYP,Third Party Payments,EGA,23/03/2017,12-15642,927.3,The Lime Trees (Forest Town)
Nottinghamshire County Council,1111/1001,Children and Young People,CYP,Third Party Payments,EGA,23/03/2017,12-15643,"1,530.00",The Secret Garden Private Day Nurse
Nottinghamshire County Council,1111/1001,Children and Young People,CYP,Third Party Payments,EGA,23/03/2017,12-15644,"1,336.35",Tiny Talkers Day Nursery
Nottinghamshire County Council,1111/1001,Children and Young People,CYP,Third Party Payments,EGA,23/03/2017,12-15645,668.25,Tiny Teddies Day Nursery
Nottinghamshire County Council,1111/1001,Children and Young People,CYP,Third Party Payments,EGA,23/03/2017,12-15646,"1,895.40",Toddlers University (Bee)
Nottinghamshire County Council,1111/1001,Children and Young People,CYP,Third Party Payments,EGA,23/03/2017,12-15647,"1,384.17",Townrow Tiny Tots Ltd
Nottinghamshire County Council,1111/1001,Children and Young People,CYP,Third Party Payments,EGA,23/03/2017,12-15648,503.25,Walesby School Playgroup
Nottinghamshire County Council,1111/1001,Children and Young People,CYP,Third Party Payments,EGA,23/03/2017,12-15649,931.65,Willow Brook Pre-School
Nottinghamshire County Council,1111/1001,Children and Young People,CYP,Third Party Payments,EGA,23/03/2017,12-15650,708.9,Wishing Well Day Nursery
Nottinghamshire County Council,1111/1001,Children and Young People,CYP,Third Party Payments,EGA,23/03/2017,12-15651,"3,254.85",Wollaton Village Day Nurseries
Nottinghamshire County Council,1111/1001,Children and Young People,CYP,Third Party Payments,EGA,23/03/2017,12-15652,"1,770.15",Zoe's Childcare Ltd
Nottinghamshire County Council,1111/1001,Children and Young People,CYP,Third Party Payments,EGA,23/03/2017,12-15653,"2,137.80",Zoes Childcare Ltd
Nottinghamshire County Council,1111/1001,Children and Young People,CYP,Third Party Payments,EGA,23/03/2017,12-15656,752.67,Carnarvon Pre-School
Nottinghamshire County Council,1111/1001,Children and Young People,CYP,Third Party Payments,EGA,23/03/2017,12-17073,906,A Place To Call Our Own Ltd
Nottinghamshire County Council,1111/1001,Children and Young People,CYP,Third Party Payments,EGA,23/03/2017,12-17131,"59,349.80",The National Fostering Agency
Nottinghamshire County Council,1111/1001,Children and Young People,CYP,Third Party Payments,EGA,23/03/2017,12-17148,"11,840.00",Real Education Ltd
Nottinghamshire County Council,1111/1001,Children and Young People,CYP,Third Party Payments,EGA,23/03/2017,12-17149,712.5,Real Education Ltd
Nottinghamshire County Council,1111/1001,Children and Young People,CYP,Third Party Payments,EGA,23/03/2017,12-17150,"9,200.00",Unique Care Homes Support Ltd
Nottinghamshire County Council,1111/1001,Children and Young People,CYP,Third Party Payments,EGA,23/03/2017,12-17171,"44,076.57",Blue Mountain Homes Ltd
Nottinghamshire County Council,1111/1001,Children and Young People,CYP,Third Party Payments,EGA,23/03/2017,12-17173,"2,999.92",Teen Support Services Ltd
Nottinghamshire County Council,1111/1001,Children and Young People,CYP,Third Party Payments,EGA,24/03/2017,12-15657,"1,544.10",Treetops Nurseries Ltd
Nottinghamshire County Council,1111/1001,Children and Young People,CYP,Third Party Payments,EGA,24/03/2017,12-15658,"1,772.55",PSLA Newstead Childcare (HO)
Nottinghamshire County Council,1111/1001,Children and Young People,CYP,Third Party Payments,EGA,24/03/2017,12-15659,693,PSLA Newstead Childcare (HO)
Nottinghamshire County Council,1111/1001,Children and Young People,CYP,Third Party Payments,EGA,24/03/2017,12-15660,"1,095.27",PSLA Newstead Childcare (HO)
Nottinghamshire County Council,1111/1001,Children and Young People,CYP,Third Party Payments,EGA,24/03/2017,12-15661,561.39,Fun Farm Day Nursery
Nottinghamshire County Council,1111/1001,Children and Young People,CYP,Third Party Payments,EGA,24/03/2017,12-15673,745.6,Scotts Wood Private Day Nursery
Nottinghamshire County Council,1111/1001,Children and Young People,CYP,Third Party Payments,EGA,24/03/2017,12-15674,"2,513.75",Willow Pre-School Playgroup
Nottinghamshire County Council,1111/1001,Children and Young People,CYP,Third Party Payments,EGA,24/03/2017,12-15675,660,The Cornerhouse Childminding
Nottinghamshire County Council,1111/1001,Children and Young People,CYP,Third Party Payments,EGA,24/03/2017,12-15676,"4,216.25",Bullpit Road Nursery
Nottinghamshire County Council,1111/1001,Children and Young People,CYP,Third Party Payments,EGA,24/03/2017,12-15677,806.18,Butterflies Nursery (West Notts Col
Nottinghamshire County Council,1111/1001,Children and Young People,CYP,Third Party Payments,EGA,24/03/2017,12-15678,"6,297.15",Carlton & Gedling Day Nursery
Nottinghamshire County Council,1111/1001,Children and Young People,CYP,Third Party Payments,EGA,24/03/2017,12-15679,687.15,S Cave (Childminding Service)
Nottinghamshire County Council,1111/1001,Children and Young People,CYP,Third Party Payments,EGA,24/03/2017,12-15680,"1,080.00",Child First (Welbeck) (Childminding
Nottinghamshire County Council,1111/1001,Children and Young People,CYP,Third Party Payments,EGA,24/03/2017,12-15681,604.95,Claremont Early Years Ltd
Nottinghamshire County Council,1111/1001,Children and Young People,CYP,Third Party Payments,EGA,24/03/2017,12-15682,"1,644.30",Coteswood House School
Nottinghamshire County Council,1111/1001,Children and Young People,CYP,Third Party Payments,EGA,24/03/2017,12-15683,685.35,Fledglings Playgroup
Nottinghamshire County Council,1111/1001,Children and Young People,CYP,Third Party Payments,EGA,24/03/2017,12-15684,646.8,Almond Tree Childminding
Nottinghamshire County Council,1111/1001,Children and Young People,CYP,Third Party Payments,EGA,24/03/2017,12-15685,"2,141.30",Killisick Pre-School
Nottinghamshire County Council,1111/1001,Children and Young People,CYP,Third Party Payments,EGA,24/03/2017,12-15686,526,Lady Bay Pre School Playgroup
Nottinghamshire County Council,1111/1001,Children and Young People,CYP,Third Party Payments,EGA,24/03/2017,12-15687,"7,053.18",Little Bears Day Nursery
Nottinghamshire County Council,1111/1001,Children and Young People,CYP,Third Party Payments,EGA,24/03/2017,12-15688,"1,352.55",Little Lambs Day Nursery
Nottinghamshire County Council,1111/1001,Children and Young People,CYP,Third Party Payments,EGA,24/03/2017,12-15689,839.85,[Redacted]
Nottinghamshire County Council,1111/1001,Children and Young People,CYP,Third Party Payments,EGA,24/03/2017,12-15690,720.04,Portland Place Pre-School
Nottinghamshire County Council,1111/1001,Children and Young People,CYP,Third Party Payments,EGA,24/03/2017,12-15691,"1,423.63",Radcliffe On Trent Pre School Playg
Nottinghamshire County Council,1111/1001,Children and Young People,CYP,Third Party Payments,EGA,24/03/2017,12-15692,"1,596.90",Rainbows Day Nursery
Nottinghamshire County Council,1111/1001,Children and Young People,CYP,Third Party Payments,EGA,24/03/2017,12-15693,839.85,[Redacted]
Nottinghamshire County Council,1111/1001,Children and Young People,CYP,Third Party Payments,EGA,24/03/2017,12-15694,889.5,The Rocking Horse Child Care Centre
Nottinghamshire County Council,1111/1001,Children and Young People,CYP,Third Party Payments,EGA,24/03/2017,12-15695,"2,063.40",PSLA Newstead Childcare (HO)
Nottinghamshire County Council,1111/1001,Children and Young People,CYP,Third Party Payments,EGA,24/03/2017,12-15696,652.8,The Enchanted Garden Day Nursery
Nottinghamshire County Council,1111/1001,Children and Young People,CYP,Third Party Payments,EGA,24/03/2017,12-15697,"1,293.00",The Lime Trees
Nottinghamshire County Council,1111/1001,Children and Young People,CYP,Third Party Payments,EGA,24/03/2017,12-15698,744.75,Tiny Tots Playgroup
Nottinghamshire County Council,1111/1001,Children and Young People,CYP,Third Party Payments,EGA,24/03/2017,12-15699,"2,272.80",Tiny World Mansfield
Nottinghamshire County Council,1111/1001,Children and Young People,CYP,Third Party Payments,EGA,24/03/2017,12-15700,987.45,Treetops Nursery
Nottinghamshire County Council,1111/1001,Children and Young People,CYP,Third Party Payments,EGA,24/03/2017,12-15701,679.2,West Bridgford Out Of School Care L
Nottinghamshire County Council,1111/1001,Children and Young People,CYP,Third Party Payments,EGA,24/03/2017,12-15702,"1,508.40",Wollaton Village Day Nurseries Ltd.
Nottinghamshire County Council,1111/1001,Children and Young People,CYP,Third Party Payments,EGA,24/03/2017,12-15703,797.85,[Redacted]
Nottinghamshire County Council,1111/1001,Children and Young People,CYP,Third Party Payments,EGA,24/03/2017,12-17175,"6,396.00",Real Education Ltd
Nottinghamshire County Council,1111/1001,Children and Young People,CYP,Third Party Payments,EGA,24/03/2017,12-17188,"21,973.20",East Midlands Care Matters
Nottinghamshire County Council,1111/1001,Children and Young People,CYP,Third Party Payments,EGA,24/03/2017,12-17190,"73,871.43",Esland North Ltd
Nottinghamshire County Council,1111/1001,Children and Young People,CYP,Third Party Payments,EGA,24/03/2017,12-17191,"73,871.43",Esland North Ltd
Nottinghamshire County Council,1111/1001,Children and Young People,CYP,Third Party Payments,EGA,24/03/2017,12-17193,"103,693.25",Pathway Care Solutions II Ltd
Nottinghamshire County Council,1111/1001,Children and Young People,CYP,Third Party Payments,EGA,24/03/2017,12-17194,"14,782.57",Pathway Care Solutions Ltd
Nottinghamshire County Council,1111/1001,Children and Young People,CYP,Third Party Payments,EGA,24/03/2017,12-17198,"1,328.00",Carers Trust East Midlands
Nottinghamshire County Council,1111/1001,Children and Young People,CYP,Third Party Payments,EGA,24/03/2017,12-17205,"5,356.12",Parallel Parents
Nottinghamshire County Council,1111/1001,Children and Young People,CYP,Third Party Payments,EGA,24/03/2017,12-17206,"3,356.08",Parallel Parents
Nottinghamshire County Council,1111/1001,Children and Young People,CYP,Third Party Payments,EGA,24/03/2017,12-17207,"44,076.57",Blue Mountain Homes Ltd
Nottinghamshire County Council,1111/1001,Children and Young People,CYP,Third Party Payments,EGA,24/03/2017,12-17208,"103,693.25",Pathway Care Solutions II Ltd
Nottinghamshire County Council,1111/1001,Children and Young People,CYP,Third Party Payments,EGA,24/03/2017,12-17209,"11,319.86",Integrated Services Programme
Nottinghamshire County Council,1111/1001,Children and Young People,CYP,Third Party Payments,EGA,27/03/2017,12-17250,"1,025.00",Spectrum Wasp
Nottinghamshire County Council,1111/1001,Children and Young People,CYP,Third Party Payments,EGA,27/03/2017,12-17267,"14,860.00",Real Education Ltd
Nottinghamshire County Council,1111/1001,Children and Young People,CYP,Third Party Payments,EGA,28/03/2017,12-17312,"48,776.40",Fostering Solutions Ltd
Nottinghamshire County Council,1111/1001,Children and Young People,CYP,Third Party Payments,EGA,29/03/2017,12-16980,"89,883.07",Foster Care Associates Limited
Nottinghamshire County Council,1111/1001,Children and Young People,CYP,Third Party Payments,EGA,29/03/2017,12-17318,657.5,Fostering People Ltd
Nottinghamshire County Council,1111/1001,Children and Young People,CYP,Third Party Payments,EGA,29/03/2017,12-17319,"26,433.40",Jay Fostering
Nottinghamshire County Council,1111/1001,Children and Young People,CYP,Third Party Payments,EGA,29/03/2017,12-17320,"26,433.40",Jay Fostering
Nottinghamshire County Council,1111/1001,Children and Young People,CYP,Third Party Payments,EGA,29/03/2017,12-17321,"15,057.32",Hope Fostering Services Ltd
Nottinghamshire County Council,1111/1001,Children and Young People,CYP,Third Party Payments,EGA,29/03/2017,12-17322,"3,000.00",Hope Fostering Services Ltd
Nottinghamshire County Council,1111/1001,Children and Young People,CYP,Third Party Payments,EGA,29/03/2017,12-17348,"10,582.00",Safe Haven Accommodation Ltd
Nottinghamshire County Council,1111/1001,Children and Young People,CYP,Third Party Payments,EGA,30/03/2017,12-16254,"1,102.50",Serendipity's Day Nursery
Nottinghamshire County Council,1111/1001,Children and Young People,CYP,Third Party Payments,EGA,30/03/2017,12-16255,577.5,Claremont Early Years Ltd
Nottinghamshire County Council,1111/1001,Children and Young People,CYP,Third Party Payments,EGA,30/03/2017,12-16613,"58,750.00",Nottm Community Housing Assoc
Nottinghamshire County Council,1111/1001,Children and Young People,CYP,Third Party Payments,EGA,30/03/2017,12-16696,"24,461.33",Treehouse Care Fostering Solutions
Nottinghamshire County Council,1111/1001,Children and Young People,CYP,Third Party Payments,EGA,30/03/2017,12-16856,"6,119.96",Banya Family Placement Agency Ltd
Nottinghamshire County Council,1111/1001,Children and Young People,CYP,Third Party Payments,EGA,30/03/2017,12-17031,"3,222.80",Foster Care Associates Limited
Nottinghamshire County Council,1111/1001,Children and Young People,CYP,Third Party Payments,EGA,30/03/2017,12-17107,"16,114.42",Chrysalis Consortium Ltd
Nottinghamshire County Council,1111/1001,Children and Young People,CYP,Third Party Payments,EGA,30/03/2017,12-17116,"15,278.57",Caldecott Foundation Ltd
Nottinghamshire County Council,1111/1001,Children and Young People,CYP,Third Party Payments,EGA,30/03/2017,12-17141,"42,774.85",Fusion Fostering
Nottinghamshire County Council,1111/1001,Children and Young People,CYP,Third Party Payments,EGA,30/03/2017,12-17169,"20,499.88",Total Care Matters Ltd
Nottinghamshire County Council,1111/1001,Children and Young People,CYP,Third Party Payments,EGA,30/03/2017,12-17186,"102,720.00",G4S Care & Justice Services (UK) Li
Nottinghamshire County Council,1111/1001,Children and Young People,CYP,Third Party Payments,EGA,30/03/2017,12-17223,"1,875.00",Hope House School Ltd
Nottinghamshire County Council,1111/1001,Children and Young People,CYP,Third Party Payments,EGA,30/03/2017,12-17224,"1,682.00",Hope House School Ltd
Nottinghamshire County Council,1111/1001,Children and Young People,CYP,Third Party Payments,EGA,30/03/2017,12-17225,"1,406.50",Hope House School Ltd
Nottinghamshire County Council,1111/1001,Children and Young People,CYP,Third Party Payments,EGA,30/03/2017,12-17226,"1,225.00",Hope House School Ltd
Nottinghamshire County Council,1111/1001,Children and Young People,CYP,Third Party Payments,EGA,30/03/2017,12-17227,"2,356.75",Hope House School Ltd
Nottinghamshire County Council,1111/1001,Children and Young People,CYP,Third Party Payments,EGA,30/03/2017,12-17234,600,JPAC Ltd
Nottinghamshire County Council,1111/1001,Children and Young People,CYP,Third Party Payments,EGA,30/03/2017,12-17235,"13,356.50",Hope House School Ltd
Nottinghamshire County Council,1111/1001,Children and Young People,CYP,Third Party Payments,EGA,30/03/2017,12-17299,"3,852.75",Hope House School Ltd
Nottinghamshire County Council,1111/1001,Children and Young People,CYP,Third Party Payments,EGA,30/03/2017,12-17328,"7,200.04",PCT Care Services Ltd
Nottinghamshire County Council,1111/1001,Children and Young People,CYP,Third Party Payments,EGA,30/03/2017,12-17340,"31,500.00",Nottinghamshire YMCA (HO)
Nottinghamshire County Council,1111/1001,Children and Young People,CYP,Third Party Payments,EGA,30/03/2017,12-17363,"14,782.57",Pathway Care Solutions Ltd
Nottinghamshire County Council,1111/1001,Children and Young People,CYP,Third Party Payments,EGA,30/03/2017,12-17369,"34,607.05",By The Bridge Ltd
Nottinghamshire County Council,1111/1001,Children and Young People,CYP,Third Party Payments,EGA,31/03/2017,12-16266,687.15,Hollies Day Nurseries
Nottinghamshire County Council,1111/1001,Children and Young People,CYP,Third Party Payments,EGA,31/03/2017,12-16267,"1,499.85",Rainbows Day Nursery
Nottinghamshire County Council,1111/1001,Children and Young People,CYP,Third Party Payments,EGA,31/03/2017,12-16268,839.85,Wollaton Village Day Nurseries
Nottinghamshire County Council,1111/1001,Children and Young People,CYP,Third Party Payments,EGA,31/03/2017,12-16270,503.91,Prebend Pre-School Playgroup
Nottinghamshire County Council,1111/1001,Children and Young People,CYP,Third Party Payments,EGA,31/03/2017,12-16272,"1,980.00",Serendipity's Day Nursery
Nottinghamshire County Council,1111/1001,Children and Young People,CYP,Third Party Payments,EGA,31/03/2017,12-16273,780,Linzi Swain Childminding Service
Nottinghamshire County Council,1111/1001,Children and Young People,CYP,Third Party Payments,EGA,31/03/2017,12-16918,"8,228.57",Cove Care Residential Ltd
Nottinghamshire County Council,1111/1001,Children and Young People,CYP,Third Party Payments,EGA,31/03/2017,12-16919,"15,942.85",Cove Care Residential Ltd
Nottinghamshire County Council,1111/1001,Children and Young People,CYP,Third Party Payments,EGA,31/03/2017,12-17394,600,Piers (UK) Ltd
Nottinghamshire County Council,1111/1001,Children and Young People,CYP,Third Party Payments,EGA,31/03/2017,12-17403,"3,103.10",Fostering Dimensions Ltd
Nottinghamshire County Council,1111/1001,Children and Young People,CYP,Third Party Payments,EGA,31/03/2017,12-17414,"16,117.00",Wings Education Ltd
Nottinghamshire County Council,1111/1001,Children and Young People,CYP,Third Party Payments,EGA,31/03/2017,12-17415,"16,117.00",Wings Education Ltd
Nottinghamshire County Council,1111/1001,Children and Young People,CYP,Third Party Payments,EGA,31/03/2017,12-17417,"1,460.81",Nottingham Mencap
Nottinghamshire County Council,1111/1001,Children and Young People,CYP,Third Party Payments,EGA,31/03/2017,12-17418,"3,102.75",Nottingham Mencap
Nottinghamshire County Council,1111/1001,Children and Young People,CYP,Third Party Payments,EGA,31/03/2017,12-17419,562.5,Nottingham Mencap
Nottinghamshire County Council,1111/1001,Children and Young People,CYP,Third Party Payments,EGA,31/03/2017,12-17426,"99,509.97",Fostering People Ltd
Nottinghamshire County Council,1111/1001,Children and Young People,CYP,Third Party Payments,EHA,02/03/2017,12-16297,"9,000.00",Coventry City Council
Nottinghamshire County Council,1111/1001,Children and Young People,CYP,Third Party Payments,EHA,02/03/2017,12-16328,750,Faith In Families
Nottinghamshire County Council,1111/1001,Children and Young People,CYP,Third Party Payments,EHA,02/03/2017,12-16329,750,Faith In Families
Nottinghamshire County Council,1111/1001,Children and Young People,CYP,Third Party Payments,EHA,02/03/2017,12-16446,"18,193.55",Faith In Families
Nottinghamshire County Council,1111/1001,Children and Young People,CYP,Third Party Payments,EHA,14/03/2017,12-16845,"18,000.00",Derbyshire County Council
Nottinghamshire County Council,1111/1001,Children and Young People,CYP,Third Party Payments,EHA,14/03/2017,12-16868,"18,000.00",Adoption Matters (northwest)
Nottinghamshire County Council,1111/1001,Children and Young People,CYP,Third Party Payments,EHA,23/03/2017,12-17130,"28,667.00",After Adoption
Nottinghamshire County Council,1111/1001,Children and Young People,CYP,Third Party Payments,EHA,30/03/2017,12-16603,750,Faith In Families
Nottinghamshire County Council,1111/1001,Children and Young People,CYP,Third Party Payments,EHA,30/03/2017,12-16604,750,Faith In Families
Nottinghamshire County Council,1111/1001,Children and Young People,CYP,Third Party Payments,EHA,30/03/2017,12-16609,750,Faith In Families
Nottinghamshire County Council,1111/1001,Children and Young People,CYP,Third Party Payments,EHA,30/03/2017,12-17124,"28,667.00",Leicester City Council
Nottinghamshire County Council,1111/1001,Children and Young People,CYP,Third Party Payments,EHA,31/03/2017,12-17431,"18,000.00",Adoption Matters (northwest)
Nottinghamshire County Council,1111/1001,Children and Young People,CYP,Transfer Payments,GAA,02/03/2017,12-16288,"1,900.00",Acacia Hall (Kisimul)
Nottinghamshire County Council,1111/1001,Children and Young People,CYP,Transfer Payments,GAA,02/03/2017,12-16290,"1,900.00",Friesland School
Nottinghamshire County Council,1111/1001,Children and Young People,CYP,Transfer Payments,GAA,02/03/2017,12-16301,"1,900.00",Acacia Hall (Kisimul)
Nottinghamshire County Council,1111/1001,Children and Young People,CYP,Transfer Payments,GAA,02/03/2017,12-16341,"3,800.00",The Holgate Academy
Nottinghamshire County Council,1111/1001,Children and Young People,CYP,Transfer Payments,GAA,02/03/2017,12-16348,"1,900.00",Derby Pride Academy
Nottinghamshire County Council,1111/1001,Children and Young People,CYP,Transfer Payments,GAA,02/03/2017,12-16380,630,Carlton Le Willows Academy
Nottinghamshire County Council,1111/1001,Children and Young People,CYP,Transfer Payments,GAA,02/03/2017,12-16462,"1,430.00",[Redacted]
Nottinghamshire County Council,1111/1001,Children and Young People,CYP,Transfer Payments,GAA,02/03/2017,12-16468,550,[Redacted]
Nottinghamshire County Council,1111/1001,Children and Young People,CYP,Transfer Payments,GAA,03/03/2017,12-16311,"1,900.00",Yardleys School
Nottinghamshire County Council,1111/1001,Children and Young People,CYP,Transfer Payments,GAA,03/03/2017,12-16321,"1,900.00",Hungerhill Academy Trust
Nottinghamshire County Council,1111/1001,Children and Young People,CYP,Transfer Payments,GAA,03/03/2017,12-16323,"3,800.00",The Beech Academy
Nottinghamshire County Council,1111/1001,Children and Young People,CYP,Transfer Payments,GAA,03/03/2017,12-16356,"3,800.00",Brockington College
Nottinghamshire County Council,1111/1001,Children and Young People,CYP,Transfer Payments,GAA,03/03/2017,12-16362,"10,130.00",St Philip Neri with St Bede Vol Aca
Nottinghamshire County Council,1111/1001,Children and Young People,CYP,Transfer Payments,GAA,03/03/2017,12-16519,"15,170.00",Quarrydale Academy
Nottinghamshire County Council,1111/1001,Children and Young People,CYP,Transfer Payments,GAA,06/03/2017,12-16537,550,[Redacted]
Nottinghamshire County Council,1111/1001,Children and Young People,CYP,Transfer Payments,GAA,08/03/2017,12-16595,770,[Redacted]
Nottinghamshire County Council,1111/1001,Children and Young People,CYP,Transfer Payments,GAA,08/03/2017,12-16596,770,[Redacted]
Nottinghamshire County Council,1111/1001,Children and Young People,CYP,Transfer Payments,GAA,08/03/2017,12-16597,770,[Redacted]
Nottinghamshire County Council,1111/1001,Children and Young People,CYP,Transfer Payments,GAA,08/03/2017,12-16598,770,[Redacted]
Nottinghamshire County Council,1111/1001,Children and Young People,CYP,Transfer Payments,GAA,08/03/2017,12-16599,770,[Redacted]
Nottinghamshire County Council,1111/1001,Children and Young People,CYP,Transfer Payments,GAA,08/03/2017,12-16652,"1,430.00",[Redacted]
Nottinghamshire County Council,1111/1001,Children and Young People,CYP,Transfer Payments,GAA,13/03/2017,12-16698,"1,900.00",St Oswalds C of E Academy
Nottinghamshire County Council,1111/1001,Children and Young People,CYP,Transfer Payments,GAA,21/03/2017,12-16724,990,Sally Eagle Ltd
Nottinghamshire County Council,1111/1001,Children and Young People,CYP,Transfer Payments,GAA,21/03/2017,12-17037,"10,120.00",The Manor Academy
Nottinghamshire County Council,1111/1001,Children and Young People,CYP,Transfer Payments,GAA,21/03/2017,12-17072,"1,870.00",Good Apple Education
Nottinghamshire County Council,1111/1001,Children and Young People,CYP,Transfer Payments,GAA,21/03/2017,12-17080,750,Good Apple Education
Nottinghamshire County Council,1111/1001,Children and Young People,CYP,Transfer Payments,GAA,22/03/2017,12-16720,770,[Redacted]
Nottinghamshire County Council,1111/1001,Children and Young People,CYP,Transfer Payments,GAA,22/03/2017,12-16791,770,[Redacted]
Nottinghamshire County Council,1111/1001,Children and Young People,CYP,Transfer Payments,GAA,22/03/2017,12-16839,770,[Redacted]
Nottinghamshire County Council,1111/1001,Children and Young People,CYP,Transfer Payments,GAA,22/03/2017,12-16840,770,[Redacted]
Nottinghamshire County Council,1111/1001,Children and Young People,CYP,Transfer Payments,GAA,22/03/2017,12-16841,770,[Redacted]
Nottinghamshire County Council,1111/1001,Children and Young People,CYP,Transfer Payments,GAA,22/03/2017,12-17023,770,[Redacted]
Nottinghamshire County Council,1111/1001,Children and Young People,CYP,Transfer Payments,GAA,22/03/2017,12-17024,770,[Redacted]
Nottinghamshire County Council,1111/1001,Children and Young People,CYP,Transfer Payments,GAA,22/03/2017,12-17065,550,[Redacted]
Nottinghamshire County Council,1111/1001,Children and Young People,CYP,Transfer Payments,GAA,22/03/2017,12-17076,550,[Redacted]
Nottinghamshire County Council,1111/1001,Children and Young People,CYP,Transfer Payments,GAA,22/03/2017,12-17104,"1,500.00",Derbyshire County Council
Nottinghamshire County Council,1111/1001,Children and Young People,CYP,Transfer Payments,GAA,23/03/2017,12-17077,"1,000.00",E Learning Team Ltd
Nottinghamshire County Council,1111/1001,Children and Young People,CYP,Transfer Payments,GAA,23/03/2017,12-17121,770,[Redacted]
Nottinghamshire County Council,1111/1001,Children and Young People,CYP,Transfer Payments,GAA,24/03/2017,12-17158,770,[Redacted]
Nottinghamshire County Council,1111/1001,Children and Young People,CYP,Transfer Payments,GAA,27/03/2017,12-17266,"1,900.00",NYCC Kirk Smeaton School BAFS
Nottinghamshire County Council,1111/1001,Children and Young People,CYP,Transfer Payments,GAA,30/03/2017,12-16490,"3,800.00",The Priory Witham Academy
Nottinghamshire County Council,1111/1001,Children and Young People,CYP,Transfer Payments,GAA,30/03/2017,12-16555,"1,900.00",Gainsborough Parish Church Primary
Nottinghamshire County Council,1111/1001,Children and Young People,CYP,Transfer Payments,GAA,30/03/2017,12-16560,"1,900.00",Cavendish Primary School
Nottinghamshire County Council,1111/1001,Children and Young People,CYP,Transfer Payments,GAA,30/03/2017,12-16580,"7,600.00",Sir William Robertson Academy
Nottinghamshire County Council,1111/1001,Children and Young People,CYP,Transfer Payments,GAA,30/03/2017,12-16590,"1,900.00",Pennine View School
Nottinghamshire County Council,1111/1001,Children and Young People,CYP,Transfer Payments,GAA,30/03/2017,12-16669,990,Sally Eagle Ltd
Nottinghamshire County Council,1111/1001,Children and Young People,CYP,Transfer Payments,GAA,30/03/2017,12-16870,"4,430.00",Christ The King Catholic Voluntary
Nottinghamshire County Council,1111/1001,Children and Young People,CYP,Transfer Payments,GAA,30/03/2017,12-17310,770,[Redacted]
Nottinghamshire County Council,1111/1001,Children and Young People,CYP,Transfer Payments,GAA,30/03/2017,12-17316,770,[Redacted]
Nottinghamshire County Council,1111/1001,Children and Young People,CYP,Transfer Payments,GAA,31/03/2017,12-17393,550,[Redacted]
Nottinghamshire County Council,1111/1001,Children and Young People,CYP,Transfer Payments,GAA,31/03/2017,12-17400,"1,430.00",[Redacted]
Nottinghamshire County Council,1111/1001,Children and Young People,CYP,Support Services,HAA,06/03/2017,12-10499,"1,350.00",All Wayz Travel
Nottinghamshire County Council,1111/1001,Children and Young People,CYP,Support Services,HAA,06/03/2017,12-10500,"1,120.00",All Wayz Travel
Nottinghamshire County Council,1111/1001,Children and Young People,CYP,Support Services,HAA,06/03/2017,12-10502,"14,625.00",Johnson Bros Tours Ltd
Nottinghamshire County Council,1111/1001,Children and Young People,CYP,Support Services,HAA,06/03/2017,12-10503,"3,430.00",Johnson Bros Tours Ltd
Nottinghamshire County Council,1111/1001,Children and Young People,CYP,Support Services,HAA,06/03/2017,12-10504,"3,062.50",Johnson Bros Tours Ltd
Nottinghamshire County Council,1111/1001,Children and Young People,CYP,Support Services,HAA,06/03/2017,12-10505,"16,313.50",Johnson Bros Tours Ltd
Nottinghamshire County Council,1111/1001,Children and Young People,CYP,Support Services,HAA,06/03/2017,12-10507,312,200 Cars Ltd
Nottinghamshire County Council,1111/1001,Children and Young People,CYP,Support Services,HAA,06/03/2017,12-10509,308,200 Cars Ltd
Nottinghamshire County Council,1111/1001,Children and Young People,CYP,Support Services,HAA,06/03/2017,12-10511,"1,875.00",Arnold Acorn Travel
Nottinghamshire County Council,1111/1001,Children and Young People,CYP,Support Services,HAA,06/03/2017,12-10513,"1,200.00",Acorn Contracts
Nottinghamshire County Council,1111/1001,Children and Young People,CYP,Support Services,HAA,06/03/2017,12-10518,"1,540.00",Fozcabs Newark Taxis
Nottinghamshire County Council,1111/1001,Children and Young People,CYP,Support Services,HAA,06/03/2017,12-10554,"2,052.00",Garys Coaches Ltd
Nottinghamshire County Council,1111/1001,Children and Young People,CYP,Support Services,HAA,06/03/2017,12-10555,"1,665.00",K & R Cars
Nottinghamshire County Council,1111/1001,Children and Young People,CYP,Support Services,HAA,06/03/2017,12-10562,"2,163.42",Nottingham Minibuses & Coaches
Nottinghamshire County Council,1111/1001,Children and Young People,CYP,Support Services,HAA,06/03/2017,12-10565,"1,466.55",Nottingham Minibuses & Coaches
Nottinghamshire County Council,1111/1001,Children and Young People,CYP,Support Services,HAA,06/03/2017,12-10573,"1,131.20",P & P Taxis
Nottinghamshire County Council,1111/1001,Children and Young People,CYP,Support Services,HAA,06/03/2017,12-10577,"5,755.50",Freeway Coaches Ltd
Nottinghamshire County Council,1111/1001,Children and Young People,CYP,Support Services,HAA,06/03/2017,12-10578,"2,076.00",Freeway Coaches Ltd
Nottinghamshire County Council,1111/1001,Children and Young People,CYP,Support Services,HAA,06/03/2017,12-10579,"1,950.50",Freeway Coaches Ltd
Nottinghamshire County Council,1111/1001,Children and Young People,CYP,Support Services,HAA,06/03/2017,12-10580,"1,800.00",Freeway Coaches Ltd
Nottinghamshire County Council,1111/1001,Children and Young People,CYP,Support Services,HAA,06/03/2017,12-10581,"2,955.00",Freeway Coaches Ltd
Nottinghamshire County Council,1111/1001,Children and Young People,CYP,Support Services,HAA,06/03/2017,12-10582,"1,278.00",Freeway Coaches Ltd
Nottinghamshire County Council,1111/1001,Children and Young People,CYP,Support Services,HAA,06/03/2017,12-10583,"2,700.00",Kettlewell Retford Ltd
Nottinghamshire County Council,1111/1001,Children and Young People,CYP,Support Services,HAA,06/03/2017,12-10584,"5,400.00",Kettlewell Retford Ltd
Nottinghamshire County Council,1111/1001,Children and Young People,CYP,Support Services,HAA,06/03/2017,12-10585,"2,475.00",Kettlewell Retford Ltd
Nottinghamshire County Council,1111/1001,Children and Young People,CYP,Support Services,HAA,06/03/2017,12-10586,"2,475.00",Kettlewell Retford Ltd
Nottinghamshire County Council,1111/1001,Children and Young People,CYP,Support Services,HAA,06/03/2017,12-10587,"1,845.00",Kettlewell Retford Ltd
Nottinghamshire County Council,1111/1001,Children and Young People,CYP,Support Services,HAA,06/03/2017,12-10588,"3,392.40",Kettlewell Retford Ltd
Nottinghamshire County Council,1111/1001,Children and Young People,CYP,Support Services,HAA,06/03/2017,12-10591,"5,625.00",C W Moxon Ltd
Nottinghamshire County Council,1111/1001,Children and Young People,CYP,Support Services,HAA,06/03/2017,12-10592,"7,043.00",C W Moxon Ltd
Nottinghamshire County Council,1111/1001,Children and Young People,CYP,Support Services,HAA,06/03/2017,12-10610,"1,500.00",Broadsword Cars
Nottinghamshire County Council,1111/1001,Children and Young People,CYP,Support Services,HAA,06/03/2017,12-10611,"1,575.00",Travel Liner
Nottinghamshire County Council,1111/1001,Children and Young People,CYP,Support Services,HAA,06/03/2017,12-10612,"1,057.00",A2B Licensed Taxis
Nottinghamshire County Council,1111/1001,Children and Young People,CYP,Support Services,HAA,06/03/2017,12-10613,855,Forest Cars
Nottinghamshire County Council,1111/1001,Children and Young People,CYP,Support Services,HAA,06/03/2017,12-10617,282,Forest Cars
Nottinghamshire County Council,1111/1001,Children and Young People,CYP,Support Services,HAA,06/03/2017,12-10620,360,Forest Cars
Nottinghamshire County Council,1111/1001,Children and Young People,CYP,Support Services,HAA,06/03/2017,12-10633,"1,814.25",Hammonds Coaches Ltd
Nottinghamshire County Council,1111/1001,Children and Young People,CYP,Support Services,HAA,06/03/2017,12-10634,"1,188.60",Hammonds Coaches Ltd
Nottinghamshire County Council,1111/1001,Children and Young People,CYP,Support Services,HAA,07/03/2017,12-10809,"2,247.60",Sharpes Of Nottingham
Nottinghamshire County Council,1111/1001,Children and Young People,CYP,Support Services,HAA,07/03/2017,12-10810,"2,093.25",Sharpes Of Nottingham
Nottinghamshire County Council,1111/1001,Children and Young People,CYP,Support Services,HAA,07/03/2017,12-10811,"2,285.25",Sharpes Of Nottingham
Nottinghamshire County Council,1111/1001,Children and Young People,CYP,Support Services,HAA,07/03/2017,12-10812,"1,989.75",Sharpes Of Nottingham
Nottinghamshire County Council,1111/1001,Children and Young People,CYP,Support Services,HAA,07/03/2017,12-10813,"2,220.25",Sharpes Of Nottingham
Nottinghamshire County Council,1111/1001,Children and Young People,CYP,Support Services,HAA,07/03/2017,12-10814,"2,285.25",Sharpes Of Nottingham
Nottinghamshire County Council,1111/1001,Children and Young People,CYP,Support Services,HAA,07/03/2017,12-10815,"4,008.50",Sharpes Of Nottingham
Nottinghamshire County Council,1111/1001,Children and Young People,CYP,Support Services,HAA,07/03/2017,12-10816,"2,285.25",Sharpes Of Nottingham
Nottinghamshire County Council,1111/1001,Children and Young People,CYP,Support Services,HAA,07/03/2017,12-10817,"2,259.25",Sharpes Of Nottingham
Nottinghamshire County Council,1111/1001,Children and Young People,CYP,Support Services,HAA,07/03/2017,12-10818,"2,285.10",Sharpes Of Nottingham
Nottinghamshire County Council,1111/1001,Children and Young People,CYP,Support Services,HAA,07/03/2017,12-10819,"2,186.25",Sharpes Of Nottingham
Nottinghamshire County Council,1111/1001,Children and Young People,CYP,Support Services,HAA,07/03/2017,12-10829,"3,623.00",Glenn Ryder Coaches
Nottinghamshire County Council,1111/1001,Children and Young People,CYP,Support Services,HAA,07/03/2017,12-10831,"1,260.00",Wrights Coaches
Nottinghamshire County Council,1111/1001,Children and Young People,CYP,Support Services,HAA,07/03/2017,12-10833,312.5,Ace Of Mansfield Ltd
Nottinghamshire County Council,1111/1001,Children and Young People,CYP,Support Services,HAA,07/03/2017,12-10842,"1,843.00",Lowes Coaches Ltd
Nottinghamshire County Council,1111/1001,Children and Young People,CYP,Support Services,HAA,07/03/2017,12-10843,"2,095.50",Lowes Coaches Ltd
Nottinghamshire County Council,1111/1001,Children and Young People,CYP,Support Services,HAA,07/03/2017,12-10844,"1,960.00",Lowes Coaches Ltd
Nottinghamshire County Council,1111/1001,Children and Young People,CYP,Support Services,HAA,07/03/2017,12-10846,545.4,Ng11 Cars
Nottinghamshire County Council,1111/1001,Children and Young People,CYP,Support Services,HAA,07/03/2017,12-10859,636.3,Shelleys Taxis Ltd
Nottinghamshire County Council,1111/1001,Children and Young People,CYP,Support Services,HAA,07/03/2017,12-10905,"1,492.39",Jb Tours Watnall Ltd
Nottinghamshire County Council,1111/1001,Children and Young People,CYP,Support Services,HAA,07/03/2017,12-10906,"1,595.41",Jb Tours Watnall Ltd
Nottinghamshire County Council,1111/1001,Children and Young People,CYP,Support Services,HAA,07/03/2017,12-10907,"2,067.00",Jb Tours Watnall Ltd
Nottinghamshire County Council,1111/1001,Children and Young People,CYP,Support Services,HAA,07/03/2017,12-10908,"1,957.55",Jb Tours Watnall Ltd
Nottinghamshire County Council,1111/1001,Children and Young People,CYP,Support Services,HAA,07/03/2017,12-10909,"1,470.98",Marshalls Of Sutton On Trent Ltd
Nottinghamshire County Council,1111/1001,Children and Young People,CYP,Support Services,HAA,07/03/2017,12-10916,"2,413.18",Marshalls Of Sutton On Trent Ltd
Nottinghamshire County Council,1111/1001,Children and Young People,CYP,Support Services,HAA,07/03/2017,12-10918,"2,380.00",Marshalls Of Sutton On Trent Ltd
Nottinghamshire County Council,1111/1001,Children and Young People,CYP,Support Services,HAA,07/03/2017,12-10920,"1,815.84",Marshalls Of Sutton On Trent Ltd
Nottinghamshire County Council,1111/1001,Children and Young People,CYP,Support Services,HAA,07/03/2017,12-10922,"2,745.00",Marshalls Of Sutton On Trent Ltd
Nottinghamshire County Council,1111/1001,Children and Young People,CYP,Support Services,HAA,07/03/2017,12-10923,975,Meden Travel
Nottinghamshire County Council,1111/1001,Children and Young People,CYP,Support Services,HAA,07/03/2017,12-10924,"1,190.00",Tiger European Uk Ltd
Nottinghamshire County Council,1111/1001,Children and Young People,CYP,Support Services,HAA,07/03/2017,12-10925,"1,440.00",Tiger European Uk Ltd
Nottinghamshire County Council,1111/1001,Children and Young People,CYP,Support Services,HAA,07/03/2017,12-10926,"9,996.35",Tiger European Uk Ltd
Nottinghamshire County Council,1111/1001,Children and Young People,CYP,Support Services,HAA,07/03/2017,12-10927,"8,626.10",Tiger European Uk Ltd
Nottinghamshire County Council,1111/1001,Children and Young People,CYP,Support Services,HAA,07/03/2017,12-10928,"2,925.00",Tiger European Uk Ltd
Nottinghamshire County Council,1111/1001,Children and Young People,CYP,Support Services,HAA,07/03/2017,12-10929,"2,295.00",Tiger European Uk Ltd
Nottinghamshire County Council,1111/1001,Children and Young People,CYP,Support Services,HAA,07/03/2017,12-10930,"2,672.50",Tiger European Uk Ltd
Nottinghamshire County Council,1111/1001,Children and Young People,CYP,Support Services,HAA,07/03/2017,12-10931,"2,925.00",Tiger European Uk Ltd
Nottinghamshire County Council,1111/1001,Children and Young People,CYP,Support Services,HAA,07/03/2017,12-10934,"1,332.00",Rio Cabs
Nottinghamshire County Council,1111/1001,Children and Young People,CYP,Support Services,HAA,07/03/2017,12-10938,960,Rio Cabs
Nottinghamshire County Council,1111/1001,Children and Young People,CYP,Support Services,HAA,07/03/2017,12-10945,"1,699.00",Nottingham Coaches
Nottinghamshire County Council,1111/1001,Children and Young People,CYP,Support Services,HAA,07/03/2017,12-10946,"2,260.50",Nottingham Coaches
Nottinghamshire County Council,1111/1001,Children and Young People,CYP,Support Services,HAA,07/03/2017,12-10947,"1,820.00",Nottingham Coaches
Nottinghamshire County Council,1111/1001,Children and Young People,CYP,Support Services,HAA,07/03/2017,12-10948,"4,185.50",Nottingham Coaches
Nottinghamshire County Council,1111/1001,Children and Young People,CYP,Support Services,HAA,07/03/2017,12-10949,885,Nottingham Coaches
Nottinghamshire County Council,1111/1001,Children and Young People,CYP,Support Services,HAA,07/03/2017,12-10964,"1,500.00",Shiny Sky Ltd T/A A2b Cars
Nottinghamshire County Council,1111/1001,Children and Young People,CYP,Support Services,HAA,08/03/2017,12-11713,"1,300.00",Muskham Car Hire Ltd T/A Z Cars
Nottinghamshire County Council,1111/1001,Children and Young People,CYP,Support Services,HAA,08/03/2017,12-11733,"2,385.00",AOT Coaches
Nottinghamshire County Council,1111/1001,Children and Young People,CYP,Support Services,HAA,08/03/2017,12-11735,"1,989.00",AOT Coaches
Nottinghamshire County Council,1111/1001,Children and Young People,CYP,Support Services,HAA,08/03/2017,12-11736,"1,783.00",AOT Coaches
Nottinghamshire County Council,1111/1001,Children and Young People,CYP,Support Services,HAA,08/03/2017,12-11738,"3,430.05",Stagecoach Services Ltd
Nottinghamshire County Council,1111/1001,Children and Young People,CYP,Support Services,HAA,08/03/2017,12-11739,"2,491.77",Stagecoach Services Ltd
Nottinghamshire County Council,1111/1001,Children and Young People,CYP,Support Services,HAA,08/03/2017,12-11745,"2,107.80",Stagecoach Services Ltd
Nottinghamshire County Council,1111/1001,Children and Young People,CYP,Support Services,HAA,08/03/2017,12-11747,"2,835.00",Stagecoach Services Ltd
Nottinghamshire County Council,1111/1001,Children and Young People,CYP,Support Services,HAA,08/03/2017,12-11751,"2,685.00",Stagecoach Services Ltd
Nottinghamshire County Council,1111/1001,Children and Young People,CYP,Support Services,HAA,08/03/2017,12-11752,"2,685.00",Stagecoach Services Ltd
Nottinghamshire County Council,1111/1001,Children and Young People,CYP,Support Services,HAA,08/03/2017,12-11753,"4,031.60",Stagecoach Services Ltd
Nottinghamshire County Council,1111/1001,Children and Young People,CYP,Support Services,HAA,08/03/2017,12-11754,"4,158.25",Stagecoach Services Ltd
Nottinghamshire County Council,1111/1001,Children and Young People,CYP,Support Services,HAA,08/03/2017,12-11756,"1,192.50",Stagecoach Services Ltd
Nottinghamshire County Council,1111/1001,Children and Young People,CYP,Support Services,HAA,08/03/2017,12-11759,"5,290.20",Stagecoach Services Ltd
Nottinghamshire County Council,1111/1001,Children and Young People,CYP,Support Services,HAA,08/03/2017,12-11761,"4,244.22",Stagecoach Services Ltd
Nottinghamshire County Council,1111/1001,Children and Young People,CYP,Support Services,HAA,08/03/2017,12-11763,"4,159.00",Stagecoach Services Ltd
Nottinghamshire County Council,1111/1001,Children and Young People,CYP,Support Services,HAA,08/03/2017,12-11764,"3,366.25",Stagecoach Services Ltd
Nottinghamshire County Council,1111/1001,Children and Young People,CYP,Support Services,HAA,08/03/2017,12-11766,"1,192.50",Stagecoach Services Ltd
Nottinghamshire County Council,1111/1001,Children and Young People,CYP,Support Services,HAA,08/03/2017,12-11776,"3,824.26",Stagecoach Services Ltd
Nottinghamshire County Council,1111/1001,Children and Young People,CYP,Support Services,HAA,08/03/2017,12-11781,"6,384.32",Travel Wright Ltd
Nottinghamshire County Council,1111/1001,Children and Young People,CYP,Support Services,HAA,08/03/2017,12-11783,373.36,Travel Wright Ltd
Nottinghamshire County Council,1111/1001,Children and Young People,CYP,Support Services,HAA,08/03/2017,12-11785,"10,178.30",Travel Wright Ltd
Nottinghamshire County Council,1111/1001,Children and Young People,CYP,Support Services,HAA,08/03/2017,12-11786,"1,871.68",Travel Wright Ltd
Nottinghamshire County Council,1111/1001,Children and Young People,CYP,Support Services,HAA,08/03/2017,12-11788,"1,680.00",Travel Wright Ltd
Nottinghamshire County Council,1111/1001,Children and Young People,CYP,Support Services,HAA,08/03/2017,12-11793,"2,533.50",Travel Wright Ltd
Nottinghamshire County Council,1111/1001,Children and Young People,CYP,Support Services,HAA,08/03/2017,12-11794,"1,664.60",Travel Wright Ltd
Nottinghamshire County Council,1111/1001,Children and Young People,CYP,Support Services,HAA,08/03/2017,12-11796,"7,050.00",Wilfreda Beehive
Nottinghamshire County Council,1111/1001,Children and Young People,CYP,Support Services,HAA,08/03/2017,12-11802,686,Paul S Winson Coaches
Nottinghamshire County Council,1111/1001,Children and Young People,CYP,Support Services,HAA,08/03/2017,12-11804,"3,546.45",Isle Coaches
Nottinghamshire County Council,1111/1001,Children and Young People,CYP,Support Services,HAA,08/03/2017,12-11813,"1,462.20",Community Transport for Town & Coun
Nottinghamshire County Council,1111/1001,Children and Young People,CYP,Support Services,HAA,08/03/2017,12-11816,"1,710.00",Cocktail Travel T/A Unity Coaches L
Nottinghamshire County Council,1111/1001,Children and Young People,CYP,Support Services,HAA,08/03/2017,12-11817,"1,500.00",Cocktail Travel T/A Unity Coaches L
Nottinghamshire County Council,1111/1001,Children and Young People,CYP,Support Services,HAA,08/03/2017,12-11818,"1,155.00",Cocktail Travel T/A Unity Coaches L
Nottinghamshire County Council,1111/1001,Children and Young People,CYP,Support Services,HAA,09/03/2017,12-12145,700,D G Private Hire Ltd
Nottinghamshire County Council,1111/1001,Children and Young People,CYP,Support Services,HAA,09/03/2017,12-12146,672,D G Private Hire Ltd
